Organisation Name (A),Department (B),Service Cat Label (C ),Purpose of Spend (D),Expenditure CIPFA Sub Group (E ),Supplier (F),Supplier Reference (G),Pay Date (H),Transaction Number (I),Net Amount (J),Grant to VCSE? (K),Charity Number (L),Card Transaction (M),Irrecoverable VAT (N),,
Pendle Borough Council,Parks & Recreation Services,Transport Related Expense,Tprt : Repairs : General,3105,FST CONSUMABLES LIMITED,A0000004, 16/02/2017,PCO0277879,46.78,N,N/A,N,N/A,,
Pendle Borough Council,Parks & Recreation Services,Premises Related Expense,Bldgs : R & M : Day To Day,2001,APSE,A0000021, 02/02/2017,PCO0277062,229.00,N,N/A,N,N/A,,
Pendle Borough Council,Parks & Recreation Services,Transport Related Expense,Tprt : Repairs : General,3105,BALMERS GM LIMITED,A0000198, 09/02/2017,PCO0277386,1.24,N,N/A,N,N/A,,
Pendle Borough Council,Parks & Recreation Services,Transport Related Expense,Tprt : Repairs : General,3105,BALMERS GM LIMITED,A0000198, 09/02/2017,PCO0277386,2.67,N,N/A,N,N/A,,
Pendle Borough Council,Parks & Recreation Services,Transport Related Expense,Tprt : Repairs : General,3105,BALMERS GM LIMITED,A0000198, 09/02/2017,PCO0277386,3.24,N,N/A,N,N/A,,
Pendle Borough Council,Parks & Recreation Services,Transport Related Expense,Tprt : Repairs : General,3105,BALMERS GM LIMITED,A0000198, 09/02/2017,PCO0277386,6.60,N,N/A,N,N/A,,
Pendle Borough Council,Parks & Recreation Services,Transport Related Expense,Tprt : Repairs : General,3105,BALMERS GM LIMITED,A0000198, 09/02/2017,PCO0277386,19.80,N,N/A,N,N/A,,
Pendle Borough Council,Parks & Recreation Services,Transport Related Expense,Tprt : Repairs : General,3105,BALMERS GM LIMITED,A0000198, 16/02/2017,PCO0277899,20.72,N,N/A,N,N/A,,
Pendle Borough Council,Parks & Recreation Services,Transport Related Expense,Tprt : Repairs : General,3105,BALMERS GM LIMITED,A0000198, 16/02/2017,PCO0277899,20.73,N,N/A,N,N/A,,
Pendle Borough Council,Parks & Recreation Services,Transport Related Expense,Tprt : Repairs : General,3105,BALMERS GM LIMITED,A0000198, 16/02/2017,PCO0277898,27.40,N,N/A,N,N/A,,
Pendle Borough Council,Parks & Recreation Services,Transport Related Expense,Tprt : Repairs : General,3105,BALMERS GM LIMITED,A0000198, 09/02/2017,PCO0277386,35.16,N,N/A,N,N/A,,
Pendle Borough Council,Parks & Recreation Services,Transport Related Expense,Tprt : Repairs : General,3105,BALMERS GM LIMITED,A0000198, 02/02/2017,PCO0277074,10.22,N,N/A,N,N/A,,
Pendle Borough Council,Parks & Recreation Services,Transport Related Expense,Tprt : Repairs : General,3105,BALMERS GM LIMITED,A0000198, 23/02/2017,PCO0278041,48.70,N,N/A,N,N/A,,
Pendle Borough Council,Parks & Recreation Services,Transport Related Expense,Tprt : Repairs : General,3105,BALMERS GM LIMITED,A0000198, 23/02/2017,PCO0278038,18.66,N,N/A,N,N/A,,
Pendle Borough Council,Parks & Recreation Services,Transport Related Expense,Tprt : Repairs : General,3105,BALMERS GM LIMITED,A0000198, 02/02/2017,PCO0277074,27.56,N,N/A,N,N/A,,
Pendle Borough Council,Parks & Recreation Services,Transport Related Expense,Tprt : Repairs : General,3105,BALMERS GM LIMITED,A0000198, 02/02/2017,PCO0277074,3.94,N,N/A,N,N/A,,
Pendle Borough Council,Parks & Recreation Services,Transport Related Expense,Tprt : Repairs : General,3105,BALMERS GM LIMITED,A0000198, 02/02/2017,PCO0277074,23.62,N,N/A,N,N/A,,
Pendle Borough Council,Parks & Recreation Services,Transport Related Expense,Tprt : Repairs : General,3105,BALMERS GM LIMITED,A0000198, 02/02/2017,PCO0277074,3.94,N,N/A,N,N/A,,
Pendle Borough Council,Parks & Recreation Services,Transport Related Expense,Tprt : Repairs : General,3105,BALMERS GM LIMITED,A0000198, 16/02/2017,PCO0277878,1.70,N,N/A,N,N/A,,
Pendle Borough Council,Parks & Recreation Services,Transport Related Expense,Tprt : Repairs : General,3105,BALMERS GM LIMITED,A0000198, 16/02/2017,PCO0277878,25.08,N,N/A,N,N/A,,
Pendle Borough Council,Parks & Recreation Services,Premises Related Expense,Bldgs : R & M : Day To Day,2001,BARNES JB LIMITED,A0000202, 23/02/2017,PCO0278036,0.33,N,N/A,N,N/A,,
Pendle Borough Council,Parks & Recreation Services,Premises Related Expense,Bldgs : R & M : Day To Day,2001,BARNES JB LIMITED,A0000202, 23/02/2017,PCO0278036,0.85,N,N/A,N,N/A,,
Pendle Borough Council,Parks & Recreation Services,Premises Related Expense,Bldgs : R & M : Day To Day,2001,BARNES JB LIMITED,A0000202, 23/02/2017,PCO0278036,1.67,N,N/A,N,N/A,,
Pendle Borough Council,Parks & Recreation Services,Premises Related Expense,Grounds : R & M : Day to Day : Routine,2101,BARNES JB LIMITED,A0000202, 23/02/2017,PCO0278037,16.00,N,N/A,N,N/A,,
Pendle Borough Council,Parks & Recreation Services,Transport Related Expense,Tprt : Repairs : General,3105,BARNES JB LIMITED,A0000202, 16/02/2017,PCO0277891,45.70,N,N/A,N,N/A,,
Pendle Borough Council,Parks & Recreation Services,Transport Related Expense,Tprt : Repairs : General,3105,BARNES JB LIMITED,A0000202, 23/02/2017,PCO0278039,18.44,N,N/A,N,N/A,,
Pendle Borough Council,Operational Services,Transport Related Expense,Tprt : Annual Hire Charge,3601,BARNES JB LIMITED,A0000202, 23/02/2017,OPS0278065,3.25,N,N/A,N,N/A,,
Pendle Borough Council,Economic Development & Tourism,Supplies and Services,EFM : Other Equipment,4003,BARNES JB LIMITED,A0000202, 16/02/2017,REG0277375,59.90,N,N/A,N,N/A,,
Pendle Borough Council,Operational Services,Supplies and Services,EFM Materials,4004,BARNES JB LIMITED,A0000202, 23/02/2017,OPS0278063,137.09,N,N/A,N,N/A,,
Pendle Borough Council,Economic Development & Tourism,Supplies and Services,EFM Materials,4004,BARNES JB LIMITED,A0000202, 02/02/2017,REG0277099,7.99,N,N/A,N,N/A,,
Pendle Borough Council,Operational Services,Supplies and Services,EFM Materials,4004,BARNES JB LIMITED,A0000202, 09/02/2017,OPS0277368,3.33,N,N/A,N,N/A,,
Pendle Borough Council,Engineering & Special Projects,Capital Costs,Capital : Payments,CD14,BARROWFORD PARISH COUNCIL,A0000239, 16/02/2017,HED0277875,880.00,N,N/A,N,N/A,,
Pendle Borough Council,Chief Executives Policy Unit,Supplies and Services,Other Expenses,4705,BLACKBURN/DARWEN BOROUGH COUNCIL,A0000381, 16/02/2017,COR0278004,1557.61,N,N/A,N,N/A,,
Pendle Borough Council,Chief Executives Policy Unit,Supplies and Services,Other Expenses,4705,BLACKBURN/DARWEN BOROUGH COUNCIL,A0000381, 16/02/2017,COR0278004,623.05,N,N/A,N,N/A,,
Pendle Borough Council,Chief Executives Policy Unit,Supplies and Services,Other Expenses,4705,BLACKBURN/DARWEN BOROUGH COUNCIL,A0000381, 16/02/2017,COR0278004,750.00,N,N/A,N,N/A,,
Pendle Borough Council,Chief Executives Policy Unit,Supplies and Services,Other Expenses,4705,BLACKBURN/DARWEN BOROUGH COUNCIL,A0000381, 16/02/2017,COR0278004,350.00,N,N/A,N,N/A,,
Pendle Borough Council,Housing Regeneration Services,Transfer Payments,Accommodation ,6103,BLACKBURN/DARWEN BOROUGH COUNCIL,A0000381, 23/02/2017,HMR0278105,63.00,N,N/A,N,N/A,,
Pendle Borough Council,Parks & Recreation Services,Transport Related Expense,Tprt : Repairs : General,3105,BOC GASES LTD,A0000386, 16/02/2017,PCO0277907,2.00,N,N/A,N,N/A,,
Pendle Borough Council,Parks & Recreation Services,Transport Related Expense,Tprt : Repairs : General,3105,BOC GASES LTD,A0000386, 16/02/2017,PCO0277907,9.15,N,N/A,N,N/A,,
Pendle Borough Council,Parks & Recreation Services,Transport Related Expense,Tprt : Repairs : General,3105,BOC GASES LTD,A0000386, 16/02/2017,PCO0277907,80.25,N,N/A,N,N/A,,
Pendle Borough Council,Human Resources,Supplies and Services,Seminars etc All Costs,4601,BURNLEY COLLEGE,A0000428, 02/02/2017,PER0277128,350.00,N,N/A,N,N/A,,
Pendle Borough Council,Property Services,Premises Related Expense,Bldgs : R & M : Day To Day,2001,BARROWFORD SAFE & LOCK SERV LT,A0000458, 02/02/2017,EST0277109,42.08,N,N/A,N,N/A,,
Pendle Borough Council,Property Services,Premises Related Expense,Bldgs : R & M : Day To Day,2001,BARROWFORD SAFE & LOCK SERV LT,A0000458, 16/02/2017,EST0277984,102.44,N,N/A,N,N/A,,
Pendle Borough Council,Operational Services,Supplies and Services,Sub-Contractors,4007,BARROWFORD SAFE & LOCK SERV LT,A0000458, 16/02/2017,OPS0277844,11.68,N,N/A,N,N/A,,
Pendle Borough Council,Parks & Recreation Services,Premises Related Expense,Bldgs : R & M : Day To Day,2001,BARROWFORD SAFE & LOCK & BB LOCKSMITHS,A0000510, 09/02/2017,PCO0277436,27.94,N,N/A,N,N/A,,
Pendle Borough Council,Parks & Recreation Services,Premises Related Expense,Grounds : R & M : Day to Day : Routine,2101,BARROWFORD SAFE & LOCK & BB LOCKSMITHS,A0000510, 09/02/2017,PCO0277436,3.75,N,N/A,N,N/A,,
Pendle Borough Council,Parks & Recreation Services,Premises Related Expense,Grounds : R & M : Day to Day : Routine,2101,BARROWFORD SAFE & LOCK & BB LOCKSMITHS,A0000510, 09/02/2017,PCO0277436,7.92,N,N/A,N,N/A,,
Pendle Borough Council,Parks & Recreation Services,Premises Related Expense,Grounds : R & M : Day to Day : Routine,2101,BARROWFORD SAFE & LOCK & BB LOCKSMITHS,A0000510, 09/02/2017,PCO0277436,8.76,N,N/A,N,N/A,,
Pendle Borough Council,Parks & Recreation Services,Premises Related Expense,Bldgs : R & M : Day To Day,2001,R J CLOUGH & SON LTD,A0000567, 02/02/2017,PCO0277056,11.00,N,N/A,N,N/A,,
Pendle Borough Council,Environmental Health Services,Premises Related Expense,Bldgs : R & M : Abnormal,2002,MARTIN COLLINS JOINERY & GLAZING,A0000623, 16/02/2017,ENV0277940,150.00,N,N/A,N,N/A,,
Pendle Borough Council,Environmental Health Services,Premises Related Expense,Bldgs : R & M : Abnormal,2002,MARTIN COLLINS JOINERY & GLAZING,A0000623, 23/02/2017,ENV0278118,126.00,N,N/A,N,N/A,,
Pendle Borough Council,Environmental Health Services,Premises Related Expense,Bldgs : R & M : Abnormal,2002,MARTIN COLLINS JOINERY & GLAZING,A0000623, 16/02/2017,ENV0277939,66.00,N,N/A,N,N/A,,
Pendle Borough Council,Environmental Health Services,Premises Related Expense,Bldgs : R & M : Abnormal,2002,MARTIN COLLINS JOINERY & GLAZING,A0000623, 02/02/2017,ENV0277162,54.00,N,N/A,N,N/A,,
Pendle Borough Council,Housing Regeneration Services,Capital Costs,Capital : Payments,CD14,MARTIN COLLINS JOINERY & GLAZING,A0000623, 09/02/2017,HMR0277437,71.00,N,N/A,N,N/A,,
Pendle Borough Council,Housing Regeneration Services,Capital Costs,Capital : Payments,CD14,MARTIN COLLINS JOINERY & GLAZING,A0000623, 09/02/2017,HMR0277429,290.00,N,N/A,N,N/A,,
Pendle Borough Council,Economic Development & Tourism,Supplies and Services,Other Expenses,4705,NORTH WEST AEROSPACE ALLIANCE,A0000666, 02/02/2017,REG0277178,1620.00,N,N/A,N,N/A,,
Pendle Borough Council,Parks & Recreation Services,Premises Related Expense,Bldgs : R & M : Day To Day,2001,DEWHURST DECORATING SUPPLIES,A0000879, 09/02/2017,PCO0277382,217.44,N,N/A,N,N/A,,
Pendle Borough Council,Property Services,Premises Related Expense,Bldgs : R & M : Day To Day,2001,J DRIVER LTD,A0000884, 23/02/2017,EST0278084,245.50,N,N/A,N,N/A,,
Pendle Borough Council,Property Services,Premises Related Expense,Bldgs : R & M : Day To Day,2001,J DRIVER LTD,A0000884, 09/02/2017,EST0277440,136.03,N,N/A,N,N/A,,
Pendle Borough Council,Property Services,Premises Related Expense,Bldgs : R & M : Day To Day,2001,J DRIVER LTD,A0000884, 23/02/2017,EST0278084,785.97,N,N/A,N,N/A,,
Pendle Borough Council,Property Services,Premises Related Expense,Bldgs : R & M : Day To Day,2001,J DRIVER LTD,A0000884, 09/02/2017,EST0277440,184.77,N,N/A,N,N/A,,
Pendle Borough Council,Property Services,Premises Related Expense,Bldgs : R & M : Day To Day,2001,J DRIVER LTD,A0000884, 09/02/2017,EST0277440,225.38,N,N/A,N,N/A,,
Pendle Borough Council,Property Services,Premises Related Expense,Bldgs : R & M : Day To Day,2001,J DRIVER LTD,A0000884, 23/02/2017,EST0278084,88.00,N,N/A,N,N/A,,
Pendle Borough Council,Property Services,Premises Related Expense,Bldgs : R & M : Day To Day,2001,J DRIVER LTD,A0000884, 09/02/2017,EST0277440,89.10,N,N/A,N,N/A,,
Pendle Borough Council,Property Services,Premises Related Expense,Bldgs : R & M : Day To Day,2001,J DRIVER LTD,A0000884, 09/02/2017,EST0277440,66.00,N,N/A,N,N/A,,
Pendle Borough Council,Property Services,Premises Related Expense,Bldgs : R & M : Day To Day,2001,J DRIVER LTD,A0000884, 23/02/2017,EST0278084,122.17,N,N/A,N,N/A,,
Pendle Borough Council,Property Services,Premises Related Expense,Bldgs : R & M : Day To Day,2001,J DRIVER LTD,A0000884, 09/02/2017,EST0277440,66.00,N,N/A,N,N/A,,
Pendle Borough Council,Property Services,Premises Related Expense,Bldgs : R & M : Day To Day,2001,J DRIVER LTD,A0000884, 23/02/2017,EST0278084,67.65,N,N/A,N,N/A,,
Pendle Borough Council,Property Services,Premises Related Expense,Bldgs : R & M : Day To Day,2001,J DRIVER LTD,A0000884, 09/02/2017,EST0277440,678.96,N,N/A,N,N/A,,
Pendle Borough Council,Property Services,Premises Related Expense,Bldgs : R & M : Day To Day,2001,J DRIVER LTD,A0000884, 09/02/2017,EST0277440,55.00,N,N/A,N,N/A,,
Pendle Borough Council,Property Services,Premises Related Expense,Bldgs : R & M : Day To Day,2001,J DRIVER LTD,A0000884, 23/02/2017,EST0278084,147.72,N,N/A,N,N/A,,
Pendle Borough Council,Property Services,Premises Related Expense,Bldgs : R & M : Day To Day,2001,J DRIVER LTD,A0000884, 23/02/2017,EST0278084,186.61,N,N/A,N,N/A,,
Pendle Borough Council,Property Services,Premises Related Expense,Bldgs : R & M : Day To Day,2001,J DRIVER LTD,A0000884, 23/02/2017,EST0278084,150.00,N,N/A,N,N/A,,
Pendle Borough Council,Property Services,Premises Related Expense,Bldgs : R & M : Day To Day,2001,J DRIVER LTD,A0000884, 09/02/2017,EST0277440,342.33,N,N/A,N,N/A,,
Pendle Borough Council,Property Services,Premises Related Expense,Bldgs : R & M : Day To Day,2001,J DRIVER LTD,A0000884, 09/02/2017,EST0277440,66.00,N,N/A,N,N/A,,
Pendle Borough Council,Property Services,Premises Related Expense,Bldgs : R & M : Day To Day,2001,J DRIVER LTD,A0000884, 23/02/2017,EST0278084,77.00,N,N/A,N,N/A,,
Pendle Borough Council,Property Services,Premises Related Expense,Bldgs : R & M : Day To Day,2001,J DRIVER LTD,A0000884, 23/02/2017,EST0278084,120.11,N,N/A,N,N/A,,
Pendle Borough Council,Property Services,Capital Costs,Capital : Payments,CD14,J DRIVER LTD,A0000884, 16/02/2017,EST0277988,3785.14,N,N/A,N,N/A,,
Pendle Borough Council,Property Services,Capital Costs,Capital : Payments,CD14,J DRIVER LTD,A0000884, 09/02/2017,EST0277419,4007.91,N,N/A,N,N/A,,
Pendle Borough Council,Parks & Recreation Services,Supplies and Services,Expenditure : Materials,0002,ENGINEERING & FOUNDRY SUPPLIES,A0001002, 16/02/2017,PCO0277888,13.20,N,N/A,N,N/A,,
Pendle Borough Council,Parks & Recreation Services,Supplies and Services,Expenditure : Materials,0002,ENGINEERING & FOUNDRY SUPPLIES,A0001002, 16/02/2017,PCO0277888,21.45,N,N/A,N,N/A,,
Pendle Borough Council,Parks & Recreation Services,Supplies and Services,Expenditure : Materials,0002,ENGINEERING & FOUNDRY SUPPLIES,A0001002, 16/02/2017,PCO0277888,91.20,N,N/A,N,N/A,,
Pendle Borough Council,Parks & Recreation Services,Supplies and Services,Expenditure : Materials,0002,ENGINEERING & FOUNDRY SUPPLIES,A0001002, 16/02/2017,PCO0277888,341.01,N,N/A,N,N/A,,
Pendle Borough Council,Parks & Recreation Services,Supplies and Services,Protective Clothing,4201,ENGINEERING & FOUNDRY SUPPLIES,A0001002, 16/02/2017,PCO0277892,11.34,N,N/A,N,N/A,,
Pendle Borough Council,Parks & Recreation Services,Supplies and Services,Protective Clothing,4201,ENGINEERING & FOUNDRY SUPPLIES,A0001002, 09/02/2017,PCO0277392,70.00,N,N/A,N,N/A,,
Pendle Borough Council,Parks & Recreation Services,Supplies and Services,Protective Clothing,4201,ENGINEERING & FOUNDRY SUPPLIES,A0001002, 09/02/2017,PCO0277392,86.40,N,N/A,N,N/A,,
Pendle Borough Council,Parks & Recreation Services,Supplies and Services,Protective Clothing,4201,ENGINEERING & FOUNDRY SUPPLIES,A0001002, 09/02/2017,PCO0277392,129.60,N,N/A,N,N/A,,
Pendle Borough Council,Parks & Recreation Services,Supplies and Services,Protective Clothing,4201,ENGINEERING & FOUNDRY SUPPLIES,A0001002, 09/02/2017,PCO0277392,216.00,N,N/A,N,N/A,,
Pendle Borough Council,Economic Development & Tourism,Supplies and Services,Protective Clothing,4201,ENGINEERING & FOUNDRY SUPPLIES,A0001002, 02/02/2017,REG0277100,85.34,N,N/A,N,N/A,,
Pendle Borough Council,Operational Services,,Stock : Purchases,PJ01,ENGINEERING & FOUNDRY SUPPLIES,A0001002, 16/02/2017,OPS4005554,-43.50,N,N/A,N,N/A,,
Pendle Borough Council,Operational Services,,Stock : Purchases,PJ01,ENGINEERING & FOUNDRY SUPPLIES,A0001002, 16/02/2017,OPS0277917,5.90,N,N/A,N,N/A,,
Pendle Borough Council,Operational Services,,Stock : Purchases,PJ01,ENGINEERING & FOUNDRY SUPPLIES,A0001002, 16/02/2017,OPS0277917,5.90,N,N/A,N,N/A,,
Pendle Borough Council,Operational Services,,Stock : Purchases,PJ01,ENGINEERING & FOUNDRY SUPPLIES,A0001002, 02/02/2017,OPS0277127,29.00,N,N/A,N,N/A,,
Pendle Borough Council,Operational Services,,Stock : Purchases,PJ01,ENGINEERING & FOUNDRY SUPPLIES,A0001002, 09/02/2017,OPS0277416,29.00,N,N/A,N,N/A,,
Pendle Borough Council,Operational Services,,Stock : Purchases,PJ01,ENGINEERING & FOUNDRY SUPPLIES,A0001002, 09/02/2017,OPS0277416,43.50,N,N/A,N,N/A,,
Pendle Borough Council,Operational Services,,Stock : Purchases,PJ01,ENGINEERING & FOUNDRY SUPPLIES,A0001002, 09/02/2017,OPS0277416,45.60,N,N/A,N,N/A,,
Pendle Borough Council,Operational Services,,Stock : Purchases,PJ01,ENGINEERING & FOUNDRY SUPPLIES,A0001002, 09/02/2017,OPS0277416,45.60,N,N/A,N,N/A,,
Pendle Borough Council,Operational Services,,Stock : Purchases,PJ01,ENGINEERING & FOUNDRY SUPPLIES,A0001002, 09/02/2017,OPS0277416,45.60,N,N/A,N,N/A,,
Pendle Borough Council,Operational Services,,Stock : Purchases,PJ01,ENGINEERING & FOUNDRY SUPPLIES,A0001002, 09/02/2017,OPS0277416,48.00,N,N/A,N,N/A,,
Pendle Borough Council,Operational Services,,Stock : Purchases,PJ01,ENGINEERING & FOUNDRY SUPPLIES,A0001002, 09/02/2017,OPS0277416,48.03,N,N/A,N,N/A,,
Pendle Borough Council,Operational Services,,Stock : Purchases,PJ01,ENGINEERING & FOUNDRY SUPPLIES,A0001002, 02/02/2017,OPS0277127,58.00,N,N/A,N,N/A,,
Pendle Borough Council,Operational Services,,Stock : Purchases,PJ01,ENGINEERING & FOUNDRY SUPPLIES,A0001002, 09/02/2017,OPS0277416,72.00,N,N/A,N,N/A,,
Pendle Borough Council,Operational Services,,Stock : Purchases,PJ01,ENGINEERING & FOUNDRY SUPPLIES,A0001002, 02/02/2017,OPS0277127,75.96,N,N/A,N,N/A,,
Pendle Borough Council,Operational Services,,Stock : Purchases,PJ01,ENGINEERING & FOUNDRY SUPPLIES,A0001002, 02/02/2017,OPS0277127,75.96,N,N/A,N,N/A,,
Pendle Borough Council,Operational Services,,Stock : Purchases,PJ01,ENGINEERING & FOUNDRY SUPPLIES,A0001002, 02/02/2017,OPS0277127,76.00,N,N/A,N,N/A,,
Pendle Borough Council,Operational Services,,Stock : Purchases,PJ01,ENGINEERING & FOUNDRY SUPPLIES,A0001002, 02/02/2017,OPS0277127,90.00,N,N/A,N,N/A,,
Pendle Borough Council,Operational Services,,Stock : Purchases,PJ01,ENGINEERING & FOUNDRY SUPPLIES,A0001002, 09/02/2017,OPS0277416,90.00,N,N/A,N,N/A,,
Pendle Borough Council,Operational Services,,Stock : Purchases,PJ01,ENGINEERING & FOUNDRY SUPPLIES,A0001002, 16/02/2017,OPS0277917,90.00,N,N/A,N,N/A,,
Pendle Borough Council,Operational Services,,Stock : Purchases,PJ01,ENGINEERING & FOUNDRY SUPPLIES,A0001002, 02/02/2017,OPS0277127,91.20,N,N/A,N,N/A,,
Pendle Borough Council,Operational Services,,Stock : Purchases,PJ01,ENGINEERING & FOUNDRY SUPPLIES,A0001002, 16/02/2017,OPS0277917,113.94,N,N/A,N,N/A,,
Pendle Borough Council,Operational Services,,Stock : Purchases,PJ01,ENGINEERING & FOUNDRY SUPPLIES,A0001002, 16/02/2017,OPS0277917,113.94,N,N/A,N,N/A,,
Pendle Borough Council,Operational Services,,Stock : Purchases,PJ01,ENGINEERING & FOUNDRY SUPPLIES,A0001002, 16/02/2017,OPS0277917,113.94,N,N/A,N,N/A,,
Pendle Borough Council,Operational Services,Transport Related Expense,Tprt : Repairs : General,3105,FREIGHT TRANSPORT ASSOCIATION,A0001124, 09/02/2017,OPS0277397,14.60,N,N/A,N,N/A,,
Pendle Borough Council,Parks & Recreation Services,Transport Related Expense,Tprt : Repairs : General,3105,GIBSONS GARDEN MACHINERY LTD,A0001201, 16/02/2017,PCO0277897,26.32,N,N/A,N,N/A,,
Pendle Borough Council,Parks & Recreation Services,Transport Related Expense,Tprt : Repairs : General,3105,GIBSONS GARDEN MACHINERY LTD,A0001201, 16/02/2017,PCO0277896,181.33,N,N/A,N,N/A,,
Pendle Borough Council,Parks & Recreation Services,Transport Related Expense,Tprt : Repairs : General,3105,GIBSONS GARDEN MACHINERY LTD,A0001201, 16/02/2017,PCO0277896,181.33,N,N/A,N,N/A,,
Pendle Borough Council,Parks & Recreation Services,Transport Related Expense,Tprt : Repairs : General,3105,GIBSONS GARDEN MACHINERY LTD,A0001201, 02/02/2017,PCO0277070,189.00,N,N/A,N,N/A,,
Pendle Borough Council,Parks & Recreation Services,Transport Related Expense,Tprt : Repairs : General,3105,GIBSONS GARDEN MACHINERY LTD,A0001201, 02/02/2017,PCO0277068,59.20,N,N/A,N,N/A,,
Pendle Borough Council,Parks & Recreation Services,Transport Related Expense,Tprt : Repairs : General,3105,GIBSONS GARDEN MACHINERY LTD,A0001201, 02/02/2017,PCO0277068,126.76,N,N/A,N,N/A,,
Pendle Borough Council,Parks & Recreation Services,Transport Related Expense,Tprt : Repairs : General,3105,GIBSONS GARDEN MACHINERY LTD,A0001201, 02/02/2017,PCO4005240,-15.68,N,N/A,N,N/A,,
Pendle Borough Council,Parks & Recreation Services,Transport Related Expense,Tprt : Repairs : General,3105,GIBSONS GARDEN MACHINERY LTD,A0001201, 02/02/2017,PCO0277072,8.72,N,N/A,N,N/A,,
Pendle Borough Council,Parks & Recreation Services,Transport Related Expense,Tprt : Repairs : General,3105,GIBSONS GARDEN MACHINERY LTD,A0001201, 02/02/2017,PCO0277069,37.96,N,N/A,N,N/A,,
Pendle Borough Council,Parks & Recreation Services,Transport Related Expense,Tprt : Repairs : General,3105,GIBSONS GARDEN MACHINERY LTD,A0001201, 02/02/2017,PCO0277069,126.76,N,N/A,N,N/A,,
Pendle Borough Council,Parks & Recreation Services,Transport Related Expense,Tprt : Repairs : General,3105,GIBSONS GARDEN MACHINERY LTD,A0001201, 16/02/2017,PCO0277900,84.15,N,N/A,N,N/A,,
Pendle Borough Council,Engineering & Special Projects,Premises Related Expense,Grounds : R & M : Day to Day : Routine,2101,G B SIGNS SOLUTIONS LIMITED,A0001202, 23/02/2017,HED0278008,19.20,N,N/A,N,N/A,,
Pendle Borough Council,Engineering & Special Projects,Premises Related Expense,Grounds : R & M : Day to Day : Routine,2101,G B SIGNS SOLUTIONS LIMITED,A0001202, 23/02/2017,HED0278008,66.27,N,N/A,N,N/A,,
Pendle Borough Council,Engineering & Special Projects,Premises Related Expense,Grounds : R & M : Day to Day : Routine,2101,G B SIGNS SOLUTIONS LIMITED,A0001202, 23/02/2017,HED0278008,36.65,N,N/A,N,N/A,,
Pendle Borough Council,Engineering & Special Projects,Premises Related Expense,Grounds : R & M : Day to Day : Routine,2101,G B SIGNS SOLUTIONS LIMITED,A0001202, 23/02/2017,HED0278008,45.38,N,N/A,N,N/A,,
Pendle Borough Council,Democratic & Legal Services,Supplies and Services,Mayoral Expenses,4614,GOING DUTCH FLORIST,A0001216, 09/02/2017,DAL0277461,25.00,N,N/A,N,N/A,,
Pendle Borough Council,Parks & Recreation Services,Premises Related Expense,Bldgs : R & M : Day To Day,2001,JEWSON LIMITED,A0001323, 09/02/2017,PCO0277390,28.80,N,N/A,N,N/A,,
Pendle Borough Council,Economic Development & Tourism,Supplies and Services,Miscellaneous : Other,4707,JEWSON LIMITED,A0001323, 02/02/2017,REG0277175,42.90,N,N/A,N,N/A,,
Pendle Borough Council,Economic Development & Tourism,Supplies and Services,Miscellaneous : Other,4707,JEWSON LIMITED,A0001323, 02/02/2017,REG0277174,65.84,N,N/A,N,N/A,,
Pendle Borough Council,Economic Development & Tourism,Supplies and Services,Miscellaneous : Other,4707,JEWSON LIMITED,A0001323, 16/02/2017,REG0277371,68.11,N,N/A,N,N/A,,
Pendle Borough Council,Economic Development & Tourism,Supplies and Services,Miscellaneous : Other,4707,JEWSON LIMITED,A0001323, 16/02/2017,REG0277370,81.25,N,N/A,N,N/A,,
Pendle Borough Council,Parks & Recreation Services,Premises Related Expense,Bldgs : R & M : Day To Day,2001,J HARGREAVES,A0001359, 23/02/2017,PCO0278054,25.00,N,N/A,N,N/A,,
Pendle Borough Council,Financial Services,Supplies and Services,Subscriptions & Donations,4706,CIPFA BUSINESS LIMITED,A0001556, 23/02/2017,AAS0278191,500.00,N,N/A,N,N/A,,
Pendle Borough Council,Environmental Health Services,Supplies and Services,EFM : Other Equipment,4003,KILLGERM CHEMICALS LTD,A0001624, 23/02/2017,ENV0278120,91.20,N,N/A,N,N/A,,
Pendle Borough Council,Environmental Health Services,Supplies and Services,EFM Materials,4004,KILLGERM CHEMICALS LTD,A0001624, 23/02/2017,ENV0278120,29.10,N,N/A,N,N/A,,
Pendle Borough Council,Environmental Health Services,Supplies and Services,EFM Materials,4004,KILLGERM CHEMICALS LTD,A0001624, 23/02/2017,ENV0278120,41.60,N,N/A,N,N/A,,
Pendle Borough Council,Environmental Health Services,Supplies and Services,EFM Materials,4004,KILLGERM CHEMICALS LTD,A0001624, 23/02/2017,ENV0278120,54.40,N,N/A,N,N/A,,
Pendle Borough Council,Environmental Health Services,Supplies and Services,EFM Materials,4004,KILLGERM CHEMICALS LTD,A0001624, 23/02/2017,ENV0278120,59.10,N,N/A,N,N/A,,
Pendle Borough Council,Environmental Health Services,Supplies and Services,EFM Materials,4004,KILLGERM CHEMICALS LTD,A0001624, 23/02/2017,ENV0278120,90.96,N,N/A,N,N/A,,
Pendle Borough Council,Environmental Health Services,Supplies and Services,EFM Materials,4004,KILLGERM CHEMICALS LTD,A0001624, 23/02/2017,ENV0278120,152.34,N,N/A,N,N/A,,
Pendle Borough Council,Environmental Health Services,Supplies and Services,Protective Clothing,4201,KILLGERM CHEMICALS LTD,A0001624, 23/02/2017,ENV0278120,20.80,N,N/A,N,N/A,,
Pendle Borough Council,Parks & Recreation Services,Supplies and Services,Expenditure : Materials,0002,LANLEE SUPPLIES LIMITED,A0001672, 23/02/2017,PCO0278052,120.48,N,N/A,N,N/A,,
Pendle Borough Council,Engineering & Special Projects,Premises Related Expense,Grounds : R & M : Day to Day : Routine,2101,LANLEE SUPPLIES LIMITED,A0001672, 09/02/2017,HED0277396,1.53,N,N/A,N,N/A,,
Pendle Borough Council,Engineering & Special Projects,Premises Related Expense,Grounds : R & M : Day to Day : Routine,2101,LANLEE SUPPLIES LIMITED,A0001672, 09/02/2017,HED0277396,2.19,N,N/A,N,N/A,,
Pendle Borough Council,Engineering & Special Projects,Premises Related Expense,Grounds : R & M : Day to Day : Routine,2101,LANLEE SUPPLIES LIMITED,A0001672, 09/02/2017,HED0277396,14.28,N,N/A,N,N/A,,
Pendle Borough Council,Engineering & Special Projects,Premises Related Expense,Grounds : R & M : Day to Day : Routine,2101,LANLEE SUPPLIES LIMITED,A0001672, 09/02/2017,HED0277396,24.00,N,N/A,N,N/A,,
Pendle Borough Council,Engineering & Special Projects,Premises Related Expense,Grounds : R & M : Day to Day : Routine,2101,LANLEE SUPPLIES LIMITED,A0001672, 09/02/2017,HED0277396,24.89,N,N/A,N,N/A,,
Pendle Borough Council,Engineering & Special Projects,Premises Related Expense,Grounds : R & M : Day to Day : Routine,2101,LANLEE SUPPLIES LIMITED,A0001672, 09/02/2017,HED0277396,25.23,N,N/A,N,N/A,,
Pendle Borough Council,Engineering & Special Projects,Premises Related Expense,Grounds : R & M : Day to Day : Routine,2101,LANLEE SUPPLIES LIMITED,A0001672, 09/02/2017,HED0277396,41.62,N,N/A,N,N/A,,
Pendle Borough Council,Engineering & Special Projects,Premises Related Expense,Grounds : R & M : Day to Day : Routine,2101,LANLEE SUPPLIES LIMITED,A0001672, 09/02/2017,HED0277396,42.42,N,N/A,N,N/A,,
Pendle Borough Council,Engineering & Special Projects,Premises Related Expense,Grounds : R & M : Day to Day : Routine,2101,LANLEE SUPPLIES LIMITED,A0001672, 09/02/2017,HED0277396,66.50,N,N/A,N,N/A,,
Pendle Borough Council,Economic Development & Tourism,Supplies and Services,EFM Materials,4004,LANLEE SUPPLIES LIMITED,A0001672, 02/02/2017,REG0277096,25.89,N,N/A,N,N/A,,
Pendle Borough Council,Economic Development & Tourism,Supplies and Services,Miscellaneous : Other,4707,LANLEE SUPPLIES LIMITED,A0001672, 16/02/2017,REG0277369,9.24,N,N/A,N,N/A,,
Pendle Borough Council,Economic Development & Tourism,Supplies and Services,Miscellaneous : Other,4707,LANLEE SUPPLIES LIMITED,A0001672, 23/02/2017,REG0278029,11.91,N,N/A,N,N/A,,
Pendle Borough Council,Economic Development & Tourism,Supplies and Services,Miscellaneous : Other,4707,LANLEE SUPPLIES LIMITED,A0001672, 23/02/2017,REG0277882,13.56,N,N/A,N,N/A,,
Pendle Borough Council,Economic Development & Tourism,Supplies and Services,Miscellaneous : Other,4707,LANLEE SUPPLIES LIMITED,A0001672, 02/02/2017,REG0277093,29.00,N,N/A,N,N/A,,
Pendle Borough Council,Economic Development & Tourism,Supplies and Services,Miscellaneous : Other,4707,LANLEE SUPPLIES LIMITED,A0001672, 23/02/2017,REG0277883,29.91,N,N/A,N,N/A,,
Pendle Borough Council,Economic Development & Tourism,Supplies and Services,Miscellaneous : Other,4707,LANLEE SUPPLIES LIMITED,A0001672, 02/02/2017,REG0277096,51.00,N,N/A,N,N/A,,
Pendle Borough Council,Economic Development & Tourism,Supplies and Services,Miscellaneous : Other,4707,LANLEE SUPPLIES LIMITED,A0001672, 02/02/2017,REG0277095,55.42,N,N/A,N,N/A,,
Pendle Borough Council,Economic Development & Tourism,Supplies and Services,Miscellaneous : Other,4707,LANLEE SUPPLIES LIMITED,A0001672, 23/02/2017,REG0277881,76.77,N,N/A,N,N/A,,
Pendle Borough Council,Economic Development & Tourism,Supplies and Services,Miscellaneous : Other,4707,LANLEE SUPPLIES LIMITED,A0001672, 23/02/2017,REG0277884,208.82,N,N/A,N,N/A,,
Pendle Borough Council,Economic Development & Tourism,Supplies and Services,Miscellaneous : Other,4707,LANLEE SUPPLIES LIMITED,A0001672, 02/02/2017,REG0277094,256.98,N,N/A,N,N/A,,
Pendle Borough Council,Parks & Recreation Services,Premises Related Expense,Bldgs : R & M : Day To Day,2001,LBS WORLDWIDE LIMITED,A0001673, 02/02/2017,PCO0277058,4.95,N,N/A,N,N/A,,
Pendle Borough Council,Parks & Recreation Services,Premises Related Expense,Bldgs : R & M : Day To Day,2001,LBS WORLDWIDE LIMITED,A0001673, 02/02/2017,PCO0277076,11.21,N,N/A,N,N/A,,
Pendle Borough Council,Parks & Recreation Services,Premises Related Expense,Bldgs : R & M : Day To Day,2001,LBS WORLDWIDE LIMITED,A0001673, 02/02/2017,PCO0277058,11.80,N,N/A,N,N/A,,
Pendle Borough Council,Parks & Recreation Services,Premises Related Expense,Grounds : R & M : Day to Day : Routine,2101,LBS WORLDWIDE LIMITED,A0001673, 02/02/2017,PCO0277063,35.99,N,N/A,N,N/A,,
Pendle Borough Council,Parks & Recreation Services,Transport Related Expense,Tprt : Repairs : General,3105,DICK LEIGH,A0001675, 09/02/2017,PCO0277388,33.94,N,N/A,N,N/A,,
Pendle Borough Council,Parks & Recreation Services,Transport Related Expense,Tprt : Repairs : General,3105,DICK LEIGH,A0001675, 23/02/2017,PCO0278044,194.40,N,N/A,N,N/A,,
Pendle Borough Council,Parks & Recreation Services,Transport Related Expense,Diesel Oil,3202,DICK LEIGH,A0001675, 09/02/2017,PCO0277387,176.80,N,N/A,N,N/A,,
Pendle Borough Council,Parks & Recreation Services,Supplies and Services,Protective Clothing,4201,DICK LEIGH,A0001675, 09/02/2017,PCO0277387,10.20,N,N/A,N,N/A,,
Pendle Borough Council,Parks & Recreation Services,Supplies and Services,Protective Clothing,4201,DICK LEIGH,A0001675, 09/02/2017,PCO0277387,24.78,N,N/A,N,N/A,,
Pendle Borough Council,Parks & Recreation Services,Supplies and Services,Seminars etc All Costs,4601,DICK LEIGH,A0001675, 09/02/2017,PCO0277388,24.38,N,N/A,N,N/A,,
Pendle Borough Council,Engineering & Special Projects,Premises Related Expense,Bldgs : R & M : Day To Day,2001,LANCASHIRE COUNTY COUNCIL,A0001690, 09/02/2017,HED0277373,65.00,N,N/A,N,N/A,,
Pendle Borough Council,Engineering & Special Projects,Premises Related Expense,Bldgs : R & M : Day To Day,2001,LANCASHIRE COUNTY COUNCIL,A0001690, 09/02/2017,HED0277379,299.50,N,N/A,N,N/A,,
Pendle Borough Council,Engineering & Special Projects,Premises Related Expense,Grounds : R & M : Day to Day : Routine,2101,LANCASHIRE COUNTY COUNCIL,A0001690, 09/02/2017,HED0277377,261.95,N,N/A,N,N/A,,
Pendle Borough Council,Engineering & Special Projects,Premises Related Expense,Grounds : R & M : Day to Day : Routine,2101,LANCASHIRE COUNTY COUNCIL,A0001690, 09/02/2017,HED0277457,360.00,N,N/A,N,N/A,,
Pendle Borough Council,Democratic & Legal Services,Supplies and Services,Search Fees,4404,LANCASHIRE COUNTY COUNCIL,A0001690, 16/02/2017,DAL0277957,534.00,N,N/A,N,N/A,,
Pendle Borough Council,Democratic & Legal Services,Supplies and Services,Search Fees,4404,LANCASHIRE COUNTY COUNCIL,A0001690, 16/02/2017,DAL0277947,540.00,N,N/A,N,N/A,,
Pendle Borough Council,Financial Services,Capital Financing Costs,Lease costs:Computer (Orchard),8204,LANCASHIRE COUNTY COUNCIL,A0001690, 09/02/2017,AAS0277447,6902.00,N,N/A,N,N/A,,
Pendle Borough Council,Engineering & Special Projects,Premises Related Expense,Bldgs : R & M : Day To Day,2001,MONK OF COLNE LTD,A0001828, 23/02/2017,HED0278087,919.20,N,N/A,N,N/A,,
Pendle Borough Council,Engineering & Special Projects,Premises Related Expense,Bldgs : R & M : Day To Day,2001,MONK OF COLNE LTD,A0001828, 09/02/2017,HED0277381,780.00,N,N/A,N,N/A,,
Pendle Borough Council,Engineering & Special Projects,Capital Costs,Capital : Payments,CD14,MONK OF COLNE LTD,A0001828, 23/02/2017,HED0278087,2200.00,N,N/A,N,N/A,,
Pendle Borough Council,Operational Services,Premises Related Expense,Grounds : R & M : Day to Day : Routine,2101,JOHN MACADAM & SON (RESCUE) LTD,A0001846, 09/02/2017,OPS0277409,45.00,N,N/A,N,N/A,,
Pendle Borough Council,Operational Services,Premises Related Expense,Grounds : R & M : Day to Day : Routine,2101,JOHN MACADAM & SON (RESCUE) LTD,A0001846, 02/02/2017,OPS0277087,45.00,N,N/A,N,N/A,,
Pendle Borough Council,Parks & Recreation Services,Premises Related Expense,Grounds : R & M : Day to Day : Routine,2101,JOHN MACADAM & SON (RESCUE) LTD,A0001846, 09/02/2017,PCO0277360,45.00,N,N/A,N,N/A,,
Pendle Borough Council,Parks & Recreation Services,Premises Related Expense,Grounds : R & M : Day to Day : Routine,2101,JOHN MACADAM & SON (RESCUE) LTD,A0001846, 09/02/2017,PCO0277365,45.00,N,N/A,N,N/A,,
Pendle Borough Council,Parks & Recreation Services,Premises Related Expense,Grounds : R & M : Day to Day : Routine,2101,JOHN MACADAM & SON (RESCUE) LTD,A0001846, 09/02/2017,PCO0277366,45.00,N,N/A,N,N/A,,
Pendle Borough Council,Parks & Recreation Services,Premises Related Expense,Grounds : R & M : Day to Day : Routine,2101,JOHN MACADAM & SON (RESCUE) LTD,A0001846, 09/02/2017,PCO0277367,45.00,N,N/A,N,N/A,,
Pendle Borough Council,Financial Services,Supplies and Services,EFM : Other Equipment,4003,NELSON & COLNE COLLEGE,A0001974, 16/02/2017,AAS0277950,5000.00,N,N/A,N,N/A,,
Pendle Borough Council,Property Services,Premises Related Expense,Water & Sewerage,2501,UNITED UTILITIES,A0001986, 23/02/2017,EST0278104,89.62,N,N/A,N,N/A,,
Pendle Borough Council,Property Services,Premises Related Expense,Water & Sewerage,2501,UNITED UTILITIES,A0001986, 16/02/2017,EST0277998,149.35,N,N/A,N,N/A,,
Pendle Borough Council,Property Services,Premises Related Expense,Water & Sewerage,2501,UNITED UTILITIES,A0001986, 16/02/2017,EST0278000,383.13,N,N/A,N,N/A,,
Pendle Borough Council,Property Services,Premises Related Expense,Water & Sewerage,2501,UNITED UTILITIES,A0001986, 09/02/2017,EST0277420,138.15,N,N/A,N,N/A,,
Pendle Borough Council,Property Services,Premises Related Expense,Water & Sewerage,2501,UNITED UTILITIES,A0001986, 02/02/2017,EST0277111,45.90,N,N/A,N,N/A,,
Pendle Borough Council,Property Services,Premises Related Expense,Water & Sewerage,2501,UNITED UTILITIES,A0001986, 02/02/2017,EST0277112,102.27,N,N/A,N,N/A,,
Pendle Borough Council,Property Services,Premises Related Expense,Water & Sewerage,2501,UNITED UTILITIES,A0001986, 09/02/2017,EST0277421,44.16,N,N/A,N,N/A,,
Pendle Borough Council,Property Services,Premises Related Expense,Bldgs : R & M : Day To Day,2001,F NUTTER & SONS,A0002037, 16/02/2017,EST0277987,960.00,N,N/A,N,N/A,,
Pendle Borough Council,Property Services,Premises Related Expense,Bldgs : R & M : Day To Day,2001,F NUTTER & SONS,A0002037, 23/02/2017,EST0278083,14.80,N,N/A,N,N/A,,
Pendle Borough Council,Property Services,Premises Related Expense,Bldgs : R & M : Day To Day,2001,F NUTTER & SONS,A0002037, 23/02/2017,EST0278083,25.20,N,N/A,N,N/A,,
Pendle Borough Council,Property Services,Premises Related Expense,Bldgs : R & M : Day To Day,2001,F NUTTER & SONS,A0002037, 23/02/2017,EST0278083,117.00,N,N/A,N,N/A,,
Pendle Borough Council,Property Services,Premises Related Expense,Bldgs : R & M : Day To Day,2001,F NUTTER & SONS,A0002037, 23/02/2017,EST0278083,208.00,N,N/A,N,N/A,,
Pendle Borough Council,Property Services,Premises Related Expense,Bldgs : Vandalism Repairs,2005,F NUTTER & SONS,A0002037, 23/02/2017,EST0278083,180.00,N,N/A,N,N/A,,
Pendle Borough Council,Property Services,Premises Related Expense,Bldgs : Vandalism Repairs,2005,F NUTTER & SONS,A0002037, 23/02/2017,EST0278083,190.00,N,N/A,N,N/A,,
Pendle Borough Council,Property Services,Premises Related Expense,Grounds : R & M : Day to Day : Routine,2101,F NUTTER & SONS,A0002037, 16/02/2017,EST0277987,20.68,N,N/A,N,N/A,,
Pendle Borough Council,Property Services,Premises Related Expense,Grounds : R & M : Day to Day : Routine,2101,F NUTTER & SONS,A0002037, 09/02/2017,EST0277444,774.32,N,N/A,N,N/A,,
Pendle Borough Council,Property Services,Premises Related Expense,Grounds : R & M : Day to Day : Routine,2101,F NUTTER & SONS,A0002037, 16/02/2017,EST0277987,2000.00,N,N/A,N,N/A,,
Pendle Borough Council,Property Services,Premises Related Expense,Grounds : R & M : Day to Day : Routine,2101,F NUTTER & SONS,A0002037, 09/02/2017,EST0277444,2330.68,N,N/A,N,N/A,,
Pendle Borough Council,Property Services,Capital Costs,Capital : Payments,CD14,F NUTTER & SONS,A0002037, 09/02/2017,EST0277444,395.00,N,N/A,N,N/A,,
Pendle Borough Council,Parks & Recreation Services,Transport Related Expense,Tprt : Repairs : General,3105,OPTION HYGIENE LIMITED,A0002063, 23/02/2017,PCO0278047,7.43,N,N/A,N,N/A,,
Pendle Borough Council,Parks & Recreation Services,Transport Related Expense,Tprt : Repairs : General,3105,OPTION HYGIENE LIMITED,A0002063, 23/02/2017,PCO0278047,20.14,N,N/A,N,N/A,,
Pendle Borough Council,Parks & Recreation Services,Transport Related Expense,Tprt : Repairs : General,3105,POWER PIPES (PENDLE) LIMITED,A0002089, 02/02/2017,PCO0277067,32.38,N,N/A,N,N/A,,
Pendle Borough Council,Democratic & Legal Services,Supplies and Services,Other Expenses,4705,PRINTOFF GRAPHIC ARTS LTD,A0002115, 16/02/2017,DAL0277868,1000.00,N,N/A,N,N/A,,
Pendle Borough Council,Operational Services,Agency Staff,Emp : Agency Wages,1004,PENDLE PERSONNEL LTD,A0002198, 02/02/2017,OPS0277091,149.30,N,N/A,N,N/A,,
Pendle Borough Council,Operational Services,Agency Staff,Emp : Agency Wages,1004,PENDLE PERSONNEL LTD,A0002198, 23/02/2017,OPS0278069,179.10,N,N/A,N,N/A,,
Pendle Borough Council,Operational Services,Agency Staff,Emp : Agency Wages,1004,PENDLE PERSONNEL LTD,A0002198, 02/02/2017,OPS0277082,200.20,N,N/A,N,N/A,,
Pendle Borough Council,Operational Services,Agency Staff,Emp : Agency Wages,1004,PENDLE PERSONNEL LTD,A0002198, 09/02/2017,OPS0277398,200.46,N,N/A,N,N/A,,
Pendle Borough Council,Operational Services,Agency Staff,Emp : Agency Wages,1004,PENDLE PERSONNEL LTD,A0002198, 02/02/2017,OPS0277091,74.64,N,N/A,N,N/A,,
Pendle Borough Council,Operational Services,Agency Staff,Emp : Agency Wages,1004,PENDLE PERSONNEL LTD,A0002198, 09/02/2017,OPS0277406,295.00,N,N/A,N,N/A,,
Pendle Borough Council,Operational Services,Agency Staff,Emp : Agency Wages,1004,PENDLE PERSONNEL LTD,A0002198, 16/02/2017,OPS0277930,295.00,N,N/A,N,N/A,,
Pendle Borough Council,Operational Services,Agency Staff,Emp : Agency Wages,1004,PENDLE PERSONNEL LTD,A0002198, 23/02/2017,OPS0278068,365.00,N,N/A,N,N/A,,
Pendle Borough Council,Operational Services,Agency Staff,Emp : Agency Wages,1004,PENDLE PERSONNEL LTD,A0002198, 02/02/2017,OPS0277083,370.00,N,N/A,N,N/A,,
Pendle Borough Council,Operational Services,Agency Staff,Emp : Agency Wages,1004,PENDLE PERSONNEL LTD,A0002198, 02/02/2017,OPS0277091,149.29,N,N/A,N,N/A,,
Pendle Borough Council,Operational Services,Agency Staff,Emp : Agency Wages,1004,PENDLE PERSONNEL LTD,A0002198, 23/02/2017,OPS0278069,179.11,N,N/A,N,N/A,,
Pendle Borough Council,Operational Services,Agency Staff,Emp : Agency Wages,1004,PENDLE PERSONNEL LTD,A0002198, 02/02/2017,OPS0277082,200.19,N,N/A,N,N/A,,
Pendle Borough Council,Operational Services,Agency Staff,Emp : Agency Wages,1004,PENDLE PERSONNEL LTD,A0002198, 09/02/2017,OPS0277398,200.45,N,N/A,N,N/A,,
Pendle Borough Council,Parks & Recreation Services,Agency Staff,Emp : Salaries & Wages,1020,PENDLE PERSONNEL LTD,A0002198, 23/02/2017,PCO0278060,271.60,N,N/A,N,N/A,,
Pendle Borough Council,Parks & Recreation Services,Agency Staff,Emp : Salaries & Wages,1020,PENDLE PERSONNEL LTD,A0002198, 16/02/2017,PCO0277908,346.77,N,N/A,N,N/A,,
Pendle Borough Council,Parks & Recreation Services,Agency Staff,Emp : Salaries & Wages,1020,PENDLE PERSONNEL LTD,A0002198, 02/02/2017,PCO0277079,407.40,N,N/A,N,N/A,,
Pendle Borough Council,Democratic & Legal Services,Supplies and Services,Postages,4501,ROYAL MAIL GROUP LIMITED,A0002281, 23/02/2017,DAL0278160,51.71,N,N/A,N,N/A,,
Pendle Borough Council,Democratic & Legal Services,Supplies and Services,Postages,4501,ROYAL MAIL GROUP LIMITED,A0002281, 23/02/2017,DAL0278160,362.46,N,N/A,N,N/A,,
Pendle Borough Council,Democratic & Legal Services,Supplies and Services,Postages,4501,ROYAL MAIL GROUP LIMITED,A0002281, 23/02/2017,DAL0278160,23.56,N,N/A,N,N/A,,
Pendle Borough Council,Democratic & Legal Services,Supplies and Services,Postages,4501,ROYAL MAIL GROUP LIMITED,A0002281, 23/02/2017,DAL0278160,23.68,N,N/A,N,N/A,,
Pendle Borough Council,Democratic & Legal Services,Supplies and Services,Postages,4501,ROYAL MAIL GROUP LIMITED,A0002281, 23/02/2017,DAL0278160,7.52,N,N/A,N,N/A,,
Pendle Borough Council,Democratic & Legal Services,Supplies and Services,Postages,4501,ROYAL MAIL GROUP LIMITED,A0002281, 23/02/2017,DAL0278160,72.91,N,N/A,N,N/A,,
Pendle Borough Council,Democratic & Legal Services,Supplies and Services,Postages,4501,ROYAL MAIL GROUP LIMITED,A0002281, 09/02/2017,DAL0277452,3.17,N,N/A,N,N/A,,
Pendle Borough Council,Democratic & Legal Services,Supplies and Services,Postages,4501,ROYAL MAIL GROUP LIMITED,A0002281, 23/02/2017,DAL0278160,236.51,N,N/A,N,N/A,,
Pendle Borough Council,Democratic & Legal Services,Supplies and Services,Postages,4501,ROYAL MAIL GROUP LIMITED,A0002281, 23/02/2017,DAL0278160,26.81,N,N/A,N,N/A,,
Pendle Borough Council,Democratic & Legal Services,Supplies and Services,Postages,4501,ROYAL MAIL GROUP LIMITED,A0002281, 23/02/2017,DAL0278160,27.81,N,N/A,N,N/A,,
Pendle Borough Council,Democratic & Legal Services,Supplies and Services,Postages,4501,ROYAL MAIL GROUP LIMITED,A0002281, 23/02/2017,DAL0278160,30.36,N,N/A,N,N/A,,
Pendle Borough Council,Operational Services,Supplies and Services,Postages,4501,ROYAL MAIL GROUP LIMITED,A0002281, 02/02/2017,OPS0277121,-23.83,N,N/A,N,N/A,,
Pendle Borough Council,Operational Services,Supplies and Services,Postages,4501,ROYAL MAIL GROUP LIMITED,A0002281, 02/02/2017,OPS0277121,104.94,N,N/A,N,N/A,,
Pendle Borough Council,Democratic & Legal Services,Supplies and Services,Postages,4501,ROYAL MAIL GROUP LIMITED,A0002281, 23/02/2017,DAL0278160,269.25,N,N/A,N,N/A,,
Pendle Borough Council,Democratic & Legal Services,Supplies and Services,Postages,4501,ROYAL MAIL GROUP LIMITED,A0002281, 23/02/2017,DAL0278160,3.94,N,N/A,N,N/A,,
Pendle Borough Council,Democratic & Legal Services,Supplies and Services,Postages,4501,ROYAL MAIL GROUP LIMITED,A0002281, 23/02/2017,DAL0278160,71.81,N,N/A,N,N/A,,
Pendle Borough Council,Democratic & Legal Services,Supplies and Services,Postages,4501,ROYAL MAIL GROUP LIMITED,A0002281, 16/02/2017,DAL0277865,299.92,N,N/A,N,N/A,,
Pendle Borough Council,Democratic & Legal Services,Supplies and Services,Other Expenses,4705,ROYAL MAIL GROUP LIMITED,A0002281, 23/02/2017,DAL0278160,10.26,N,N/A,N,N/A,,
Pendle Borough Council,Democratic & Legal Services,Supplies and Services,Other Expenses,4705,ROYAL MAIL GROUP LIMITED,A0002281, 23/02/2017,DAL0278160,3.80,N,N/A,N,N/A,,
Pendle Borough Council,Democratic & Legal Services,Supplies and Services,Other Expenses,4705,ROYAL MAIL GROUP LIMITED,A0002281, 23/02/2017,DAL0278160,160.74,N,N/A,N,N/A,,
Pendle Borough Council,Operational Services,Transport Related Expense,Tprt : Annual Hire Charge,3601,STANLEY BROTHERS (TIPPERS) LTD,A0002422, 23/02/2017,OPS0278064,2100.00,N,N/A,N,N/A,,
Pendle Borough Council,Planning & Building Control,Supplies and Services,EFM : Other Equipment,4003,STANLEY HOUSE VETERINARY GROUP,A0002423, 16/02/2017,PBC0277961,216.00,N,N/A,N,N/A,,
Pendle Borough Council,Planning & Building Control,Supplies and Services,EFM : Other Equipment,4003,STANLEY HOUSE VETERINARY GROUP,A0002423, 16/02/2017,PBC0277962,216.00,N,N/A,N,N/A,,
Pendle Borough Council,Parks & Recreation Services,Premises Related Expense,Bldgs : R & M : Day To Day,2001,ROBERTSON MEMORIALS,A0002590, 16/02/2017,PCO0277895,221.00,N,N/A,N,N/A,,
Pendle Borough Council,Financial Services,Support Services,Bank Charges,7201,G4S CASH SOLUTIONS (UK) LIMITED,A0002616, 16/02/2017,AAS0277954,157.47,N,N/A,N,N/A,,
Pendle Borough Council,Property Services,Premises Related Expense,Bldgs : R & M : Day To Day,2001,T & F STEEL DESIGNS LTD,A0002627, 09/02/2017,EST0277442,75.00,N,N/A,N,N/A,,
Pendle Borough Council,Property Services,Premises Related Expense,Bldgs : R & M : Day To Day,2001,T & F STEEL DESIGNS LTD,A0002627, 09/02/2017,EST0277442,150.00,N,N/A,N,N/A,,
Pendle Borough Council,Engineering & Special Projects,Premises Related Expense,Grounds : R & M : Day to Day : Routine,2101,T & F STEEL DESIGNS LTD,A0002627, 09/02/2017,HED0277376,43.00,N,N/A,N,N/A,,
Pendle Borough Council,Engineering & Special Projects,Premises Related Expense,Grounds : R & M : Day to Day : Routine,2101,T & F STEEL DESIGNS LTD,A0002627, 09/02/2017,HED0277378,75.00,N,N/A,N,N/A,,
Pendle Borough Council,Engineering & Special Projects,Premises Related Expense,Grounds : R & M : Day to Day : Routine,2101,T & F STEEL DESIGNS LTD,A0002627, 09/02/2017,HED0277380,97.00,N,N/A,N,N/A,,
Pendle Borough Council,Engineering & Special Projects,Premises Related Expense,Grounds : R & M : Day to Day : Routine,2101,T & F STEEL DESIGNS LTD,A0002627, 09/02/2017,HED0277376,150.00,N,N/A,N,N/A,,
Pendle Borough Council,Engineering & Special Projects,Premises Related Expense,Grounds : R & M : Day to Day : Routine,2101,T & F STEEL DESIGNS LTD,A0002627, 09/02/2017,HED0277378,190.00,N,N/A,N,N/A,,
Pendle Borough Council,Engineering & Special Projects,Premises Related Expense,Grounds : R & M : Day to Day : Routine,2101,T & F STEEL DESIGNS LTD,A0002627, 09/02/2017,HED0277380,285.00,N,N/A,N,N/A,,
Pendle Borough Council,Property Services,Capital Costs,Capital : Payments,CD14,T & F STEEL DESIGNS LTD,A0002627, 09/02/2017,EST0277443,20.00,N,N/A,N,N/A,,
Pendle Borough Council,Property Services,Capital Costs,Capital : Payments,CD14,T & F STEEL DESIGNS LTD,A0002627, 09/02/2017,EST0277443,100.00,N,N/A,N,N/A,,
Pendle Borough Council,Operational Services,,Stock : Purchases,PJ01,THE HELPING HAND CO LTD,A0002655, 23/02/2017,OPS0278062,160.40,N,N/A,N,N/A,,
Pendle Borough Council,Environmental Health Services,Supplies and Services,Other Expenses,4705,JOHNSONS TEXICARE LTD,A0002665, 02/02/2017,ENV0277151,78.80,N,N/A,N,N/A,,
Pendle Borough Council,Parks & Recreation Services,Supplies and Services,Expenditure : Materials,0002,TRAVIS PERKINS TRADING CO LTD,A0002709, 16/02/2017,PCO0277894,8.79,N,N/A,N,N/A,,
Pendle Borough Council,Parks & Recreation Services,Supplies and Services,Expenditure : Materials,0002,TRAVIS PERKINS TRADING CO LTD,A0002709, 09/02/2017,PCO0277385,13.42,N,N/A,N,N/A,,
Pendle Borough Council,Parks & Recreation Services,Premises Related Expense,Bldgs : R & M : Day To Day,2001,TRAVIS PERKINS TRADING CO LTD,A0002709, 09/02/2017,PCO0277384,10.95,N,N/A,N,N/A,,
Pendle Borough Council,Parks & Recreation Services,Premises Related Expense,Grounds : R & M : Day to Day : Routine,2101,TRAVIS PERKINS TRADING CO LTD,A0002709, 16/02/2017,PCO0277889,114.36,N,N/A,N,N/A,,
Pendle Borough Council,Economic Development & Tourism,Supplies and Services,Miscellaneous : Other,4707,TRAVIS PERKINS TRADING CO LTD,A0002709, 02/02/2017,REG0277092,59.74,N,N/A,N,N/A,,
Pendle Borough Council,Economic Development & Tourism,Supplies and Services,Miscellaneous : Other,4707,TRAVIS PERKINS TRADING CO LTD,A0002709, 16/02/2017,REG0277374,149.37,N,N/A,N,N/A,,
Pendle Borough Council,Economic Development & Tourism,Supplies and Services,Miscellaneous : Other,4707,TRAVIS PERKINS TRADING CO LTD,A0002709, 23/02/2017,REG0277880,177.45,N,N/A,N,N/A,,
Pendle Borough Council,Economic Development & Tourism,Supplies and Services,Miscellaneous : Other,4707,TRAVIS PERKINS TRADING CO LTD,A0002709, 16/02/2017,REG0277372,280.12,N,N/A,N,N/A,,
Pendle Borough Council,Economic Development & Tourism,Supplies and Services,Miscellaneous : Other,4707,WOLFENDEN CONCRETE,A0002779, 23/02/2017,REG0278031,24.00,N,N/A,N,N/A,,
Pendle Borough Council,Economic Development & Tourism,Supplies and Services,Miscellaneous : Other,4707,WOLFENDEN CONCRETE,A0002779, 23/02/2017,REG0278095,222.00,N,N/A,N,N/A,,
Pendle Borough Council,Economic Development & Tourism,Supplies and Services,Miscellaneous : Other,4707,WOLFENDEN CONCRETE,A0002779, 23/02/2017,REG0278094,666.00,N,N/A,N,N/A,,
Pendle Borough Council,Engineering & Special Projects,Premises Related Expense,Grounds : R & M : Day to Day : Routine,2101,YORKSHIRE WATER,A0002808, 09/02/2017,HED0277400,30.81,N,N/A,N,N/A,,
Pendle Borough Council,Property Services,Premises Related Expense,Water & Sewerage,2501,YORKSHIRE WATER,A0002808, 23/02/2017,EST0278114,31.45,N,N/A,N,N/A,,
Pendle Borough Council,Property Services,Premises Related Expense,Water & Sewerage,2501,YORKSHIRE WATER,A0002808, 23/02/2017,EST0278115,10.14,N,N/A,N,N/A,,
Pendle Borough Council,Property Services,Premises Related Expense,Water & Sewerage,2501,YORKSHIRE WATER,A0002808, 23/02/2017,EST0278107,117.17,N,N/A,N,N/A,,
Pendle Borough Council,Democratic & Legal Services,Supplies and Services,Printing & Stationery,4301,PHS DATASHRED,A0002886, 16/02/2017,DAL0277863,114.74,N,N/A,N,N/A,,
Pendle Borough Council,Property Services,Premises Related Expense,Bldgs : R & M : Day To Day,2001,FAST GLASS GLAZING LIMITED,A0005903, 16/02/2017,EST0277985,37.80,N,N/A,N,N/A,,
Pendle Borough Council,Property Services,Premises Related Expense,Bldgs : R & M : Day To Day,2001,FAST GLASS GLAZING LIMITED,A0005903, 16/02/2017,EST0277985,45.00,N,N/A,N,N/A,,
Pendle Borough Council,Democratic & Legal Services,Indirect Employee Expenses,Staff Refreshments,1261,PHILIP SANDERSON,A0006611, 09/02/2017,DAL0277462,10.00,N,N/A,N,N/A,,
Pendle Borough Council,Democratic & Legal Services,Indirect Employee Expenses,Staff Refreshments,1261,PHILIP SANDERSON,A0006611, 09/02/2017,DAL0277462,7.40,N,N/A,N,N/A,,
Pendle Borough Council,Democratic & Legal Services,Supplies and Services,Hospitality,4611,PHILIP SANDERSON,A0006611, 09/02/2017,DAL0277462,20.40,N,N/A,N,N/A,,
Pendle Borough Council,Human Resources,Transport Related Expense,Car Allows : Offs : Lease Exps,3806,REDACTED - PERSONAL DATA,A0007326, 02/02/2017,PER0277123,-165.00,N,N/A,N,N/A,,
Pendle Borough Council,Human Resources,Transport Related Expense,Car Allows : Offs : Lease Exps,3806,REDACTED - PERSONAL DATA,A0007326, 02/02/2017,PER0277123,770.45,N,N/A,N,N/A,,
Pendle Borough Council,Property Services,Indirect Employee Expenses,Staff Refreshments,1261,VENDA VALET (MACHINES) LTD,A0009649, 02/02/2017,EST0277115,216.67,N,N/A,N,N/A,,
Pendle Borough Council,Engineering & Special Projects,Premises Related Expense,Bldgs : R & M : Day To Day,2001,CPC PROP & GARDENING SERV LTD,A0011770, 16/02/2017,HED0277955,820.00,N,N/A,N,N/A,,
Pendle Borough Council,Human Resources,Supplies and Services,Seminars etc All Costs,4601,PENDLE LEISURE LTD,A0012961, 02/02/2017,PER0277130,300.00,N,N/A,N,N/A,,
Pendle Borough Council,Directorate,Supplies and Services,Seminars etc All Costs,4601,PENDLE LEISURE LTD,A0012961, 23/02/2017,MAN0278035,23.33,N,N/A,N,N/A,,
Pendle Borough Council,Democratic & Legal Services,Supplies and Services,Meeting Expenses,4610,PENDLE LEISURE LTD,A0012961, 23/02/2017,DAL0278128,145.83,N,N/A,N,N/A,,
Pendle Borough Council,Democratic & Legal Services,Supplies and Services,Meeting Expenses,4610,PENDLE LEISURE LTD,A0012961, 23/02/2017,DAL0278135,145.83,N,N/A,N,N/A,,
Pendle Borough Council,Chief Executives Policy Unit,Supplies and Services,Other Expenses,4705,PENDLE LEISURE LTD,A0012961, 23/02/2017,COR0278028,30.00,N,N/A,N,N/A,,
Pendle Borough Council,Chief Executives Policy Unit,Supplies and Services,Other Expenses,4705,PENDLE LEISURE LTD,A0012961, 23/02/2017,COR0278028,90.00,N,N/A,N,N/A,,
Pendle Borough Council,Engineering & Special Projects,Supplies and Services,Other Expenses,4705,PENDLE LEISURE LTD,A0012961, 16/02/2017,HED0277876,1100.00,N,N/A,N,N/A,,
Pendle Borough Council,Engineering & Special Projects,Supplies and Services,Other Expenses,4705,PENDLE LEISURE LTD,A0012961, 16/02/2017,HED0277876,4015.13,N,N/A,N,N/A,,
Pendle Borough Council,Housing Regeneration Services,Supplies and Services,Other Expenses,4705,PENDLE LEISURE LTD,A0012961, 02/02/2017,HMR0277051,50.00,N,N/A,N,N/A,,
Pendle Borough Council,Economic Development & Tourism,Supplies and Services,Grants/Contributions,4739,PENDLE LEISURE LTD,A0012961, 02/02/2017,REG0277055,33.33,N,N/A,N,N/A,,
Pendle Borough Council,Economic Development & Tourism,Supplies and Services,Grants/Contributions,4739,PENDLE LEISURE LTD,A0012961, 02/02/2017,REG0277055,60.00,N,N/A,N,N/A,,
Pendle Borough Council,Parks & Recreation Services,Premises Related Expense,Grounds : R & M : Day to Day : Routine,2101,BROWNS ENGINEERING SERVICES,A0012980, 02/02/2017,PCO0277078,384.00,N,N/A,N,N/A,,
Pendle Borough Council,Parks & Recreation Services,Premises Related Expense,Grounds : R & M : Day to Day : Routine,2101,BROWNS ENGINEERING SERVICES,A0012980, 02/02/2017,PCO0277077,300.00,N,N/A,N,N/A,,
Pendle Borough Council,Parks & Recreation Services,Premises Related Expense,Grounds : R & M : Day to Day : Routine,2101,BROWNS ENGINEERING SERVICES,A0012980, 16/02/2017,PCO0277906,120.00,N,N/A,N,N/A,,
Pendle Borough Council,Property Services,Premises Related Expense,Grounds : R & M : Day to Day : Routine,2101,LANDSCAPE ENGINEERING LTD,A0013135, 23/02/2017,EST0278081,363.00,N,N/A,N,N/A,,
Pendle Borough Council,Operational Services,Supplies and Services,Sub-Contractors,4007,ORCHARD RECYCLING SERVICE,A0015803, 09/02/2017,OPS0277412,1423.80,N,N/A,N,N/A,,
Pendle Borough Council,Operational Services,Supplies and Services,Sub-Contractors,4007,ORCHARD RECYCLING SERVICE,A0015803, 16/02/2017,OPS0277942,1430.10,N,N/A,N,N/A,,
Pendle Borough Council,Operational Services,Supplies and Services,Sub-Contractors,4007,ORCHARD RECYCLING SERVICE,A0015803, 02/02/2017,OPS0277126,1436.40,N,N/A,N,N/A,,
Pendle Borough Council,Operational Services,Supplies and Services,Sub-Contractors,4007,ORCHARD RECYCLING SERVICE,A0015803, 23/02/2017,OPS0278182,1461.60,N,N/A,N,N/A,,
Pendle Borough Council,Operational Services,Supplies and Services,Miscellaneous : Other,4707,ORCHARD RECYCLING SERVICE,A0015803, 16/02/2017,OPS0277922,74.75,N,N/A,N,N/A,,
Pendle Borough Council,Operational Services,Supplies and Services,Miscellaneous : Other,4707,ORCHARD RECYCLING SERVICE,A0015803, 02/02/2017,OPS0277157,80.00,N,N/A,N,N/A,,
Pendle Borough Council,Operational Services,Supplies and Services,Miscellaneous : Other,4707,ORCHARD RECYCLING SERVICE,A0015803, 23/02/2017,OPS0278187,109.75,N,N/A,N,N/A,,
Pendle Borough Council,Operational Services,Supplies and Services,Miscellaneous : Other,4707,ORCHARD RECYCLING SERVICE,A0015803, 16/02/2017,OPS0277943,127.75,N,N/A,N,N/A,,
Pendle Borough Council,Operational Services,Agency Costs,Fast Action Response,5009,ORCHARD RECYCLING SERVICE,A0015803, 16/02/2017,OPS0277922,74.75,N,N/A,N,N/A,,
Pendle Borough Council,Operational Services,Agency Costs,Fast Action Response,5009,ORCHARD RECYCLING SERVICE,A0015803, 02/02/2017,OPS0277157,80.00,N,N/A,N,N/A,,
Pendle Borough Council,Operational Services,Agency Costs,Fast Action Response,5009,ORCHARD RECYCLING SERVICE,A0015803, 23/02/2017,OPS0278187,109.75,N,N/A,N,N/A,,
Pendle Borough Council,Operational Services,Agency Costs,Fast Action Response,5009,ORCHARD RECYCLING SERVICE,A0015803, 16/02/2017,OPS0277943,127.75,N,N/A,N,N/A,,
Pendle Borough Council,Engineering & Special Projects,Supplies and Services,LCC Levy (Admins Costs),4419,JACOBS,A0016294, 23/02/2017,HED0278055,-1.00,N,N/A,N,N/A,,
Pendle Borough Council,Engineering & Special Projects,Supplies and Services,LCC Levy (Admins Costs),4419,JACOBS,A0016294, 23/02/2017,HED0278055,1.00,N,N/A,N,N/A,,
Pendle Borough Council,Economic Development & Tourism,Indirect Employee Expenses,Emp : Training : General,1217,ABC AWARDS,A0017706, 23/02/2017,REG0277885,93.60,N,N/A,N,N/A,,
Pendle Borough Council,Operational Services,Supplies and Services,Other Expenses,4705,ASPEN VALLEY KENNELS & CATTERY,A0022106, 16/02/2017,OPS0277929,750.25,N,N/A,N,N/A,,
Pendle Borough Council,Engineering & Special Projects,Premises Related Expense,Grounds : R & M : Day to Day : Routine,2101,E.ON,A0023073, 23/02/2017,HED0278076,196.99,N,N/A,N,N/A,,
Pendle Borough Council,Engineering & Special Projects,Premises Related Expense,Grounds : R & M : Day to Day : Routine,2101,E.ON,A0023073, 23/02/2017,HED0278078,671.49,N,N/A,N,N/A,,
Pendle Borough Council,Financial Services,Premises Related Expense,Electricity,2203,E.ON,A0023073, 09/02/2017,AAS0277449,2.11,N,N/A,N,N/A,,
Pendle Borough Council,Property Services,Premises Related Expense,Electricity,2203,E.ON,A0023073, 23/02/2017,EST0278121,44.70,N,N/A,N,N/A,,
Pendle Borough Council,Property Services,Premises Related Expense,Electricity,2203,E.ON,A0023073, 16/02/2017,EST0277997,59.03,N,N/A,N,N/A,,
Pendle Borough Council,Property Services,Premises Related Expense,Electricity,2203,E.ON,A0023073, 23/02/2017,EST0278119,0.19,N,N/A,N,N/A,,
Pendle Borough Council,Property Services,Premises Related Expense,Electricity,2203,E.ON,A0023073, 23/02/2017,EST0278122,0.19,N,N/A,N,N/A,,
Pendle Borough Council,Housing Regeneration Services,Transfer Payments,Storage & Homelessness prevention,6104,HENDON MILL CO LTD,A0024924, 16/02/2017,HMR0277858,145.83,N,N/A,N,N/A,,
Pendle Borough Council,Economic Development & Tourism,Supplies and Services,Other Expenses,4705,NORTHSTAR CREATIVE DESIGN & ADVERTISING LLP,A0025031, 02/02/2017,REG0277116,59.15,N,N/A,N,N/A,,
Pendle Borough Council,Financial Services,Transport Related Expense,Tprt : Annual Hire Charge,3601,ALD AUTOMOTIVES,A0025555, 24/02/2017,AAS0278326,244.87,N,N/A,N,N/A,,
Pendle Borough Council,Environmental Health Services,Supplies and Services,Other Expenses,4705,GRADKO INTERNATIONAL LTD,A0025806, 02/02/2017,ENV0277147,191.90,N,N/A,N,N/A,,
Pendle Borough Council,Property Services,Supplies and Services,Telephones : Direct,4502,BRITISH TELECOMMUNICATIONS PLC,A0040001, 16/02/2017,EST0277991,40.00,N,N/A,N,N/A,,
Pendle Borough Council,Property Services,Supplies and Services,Telephones : Direct,4502,BRITISH TELECOMMUNICATIONS PLC,A0040001, 16/02/2017,EST0277991,49.30,N,N/A,N,N/A,,
Pendle Borough Council,Engineering & Special Projects,Premises Related Expense,Bldgs : R & M : Day To Day,2001,LITE,A0040032, 09/02/2017,HED0277455,155.00,N,N/A,N,N/A,,
Pendle Borough Council,Engineering & Special Projects,Premises Related Expense,Bldgs : R & M : Day To Day,2001,LITE,A0040032, 09/02/2017,HED0277471,495.00,N,N/A,N,N/A,,
Pendle Borough Council,Engineering & Special Projects,Premises Related Expense,Grounds : R & M : Day to Day : Routine,2101,LITE,A0040032, 09/02/2017,HED0277456,2095.00,N,N/A,N,N/A,,
Pendle Borough Council,Financial Services,Supplies and Services,Telephones : Central,4503,BRITISH TELECOMMUNICATIONS PLC,A0040210, 09/02/2017,AAS0277448,2225.00,N,N/A,N,N/A,,
Pendle Borough Council,Democratic & Legal Services,Supplies and Services,Printing & Stationery,4301,ELECTORAL REFORM SERVICES,A0041321, 09/02/2017,DAL0277459,288.90,N,N/A,N,N/A,,
Pendle Borough Council,Democratic & Legal Services,Supplies and Services,Postages,4501,ELECTORAL REFORM SERVICES,A0041321, 09/02/2017,DAL0277459,1834.64,N,N/A,N,N/A,,
Pendle Borough Council,Engineering & Special Projects,Premises Related Expense,Grounds : R & M : Day to Day : Routine,2101,ANDIDRAIN LIMITED,A0041404, 23/02/2017,HED0278088,6650.00,N,N/A,N,N/A,,
Pendle Borough Council,Economic Development & Tourism,Supplies and Services,Grants/Contributions,4739,CARRADICE OF NELSON LIMITED,A0041549, 09/02/2017,REG0277470,650.00,N,N/A,N,N/A,,
Pendle Borough Council,Parks & Recreation Services,Supplies and Services,Other Expenses,4705,J A JONES & SONS,A0042299, 02/02/2017,PCO0277060,1217.75,N,N/A,N,N/A,,
Pendle Borough Council,Parks & Recreation Services,Supplies and Services,Other Expenses,4705,J A JONES & SONS,A0042299, 02/02/2017,PCO0277060,1217.75,N,N/A,N,N/A,,
Pendle Borough Council,Economic Development & Tourism,Supplies and Services,EFM : Other Equipment,4003,ROBERTSHAWS GARDEN MACHINERY LTD,A0043296, 23/02/2017,REG0278093,16.99,N,N/A,N,N/A,,
Pendle Borough Council,Property Services,Premises Related Expense,Bldgs : R & M : Day To Day,2001,ASKEW REFRIGERATION SERVICES LTD,A0043524, 23/02/2017,EST0278085,133.62,N,N/A,N,N/A,,
Pendle Borough Council,Parks & Recreation Services,Supplies and Services,Sub-Contractors,4007,S M SHEPHERD BUILDING CONTRACTORS,A0044037, 09/02/2017,PCO0277361,30.00,N,N/A,N,N/A,,
Pendle Borough Council,Parks & Recreation Services,Supplies and Services,Sub-Contractors,4007,S M SHEPHERD BUILDING CONTRACTORS,A0044037, 09/02/2017,PCO0277361,30.00,N,N/A,N,N/A,,
Pendle Borough Council,Operational Services,Supplies and Services,Sub-Contractors,4007,S M SHEPHERD BUILDING CONTRACTORS,A0044037, 02/02/2017,OPS0277119,40.00,N,N/A,N,N/A,,
Pendle Borough Council,Operational Services,Supplies and Services,Sub-Contractors,4007,S M SHEPHERD BUILDING CONTRACTORS,A0044037, 02/02/2017,OPS0277119,60.00,N,N/A,N,N/A,,
Pendle Borough Council,Operational Services,Supplies and Services,Sub-Contractors,4007,S M SHEPHERD BUILDING CONTRACTORS,A0044037, 23/02/2017,OPS0278186,70.00,N,N/A,N,N/A,,
Pendle Borough Council,Operational Services,Supplies and Services,Sub-Contractors,4007,S M SHEPHERD BUILDING CONTRACTORS,A0044037, 23/02/2017,OPS0278186,90.00,N,N/A,N,N/A,,
Pendle Borough Council,Operational Services,,Paid in the Year,PD03,S M SHEPHERD BUILDING CONTRACTORS,A0044037, 02/02/2017,OPS0277118,160.00,N,N/A,N,N/A,,
Pendle Borough Council,Operational Services,,Paid in the Year,PD03,S M SHEPHERD BUILDING CONTRACTORS,A0044037, 02/02/2017,OPS0277118,200.00,N,N/A,N,N/A,,
Pendle Borough Council,Property Services,Premises Related Expense,Electricity,2203,E.ON UK PLC,A0044040, 16/02/2017,EST0277990,292.95,N,N/A,N,N/A,,
Pendle Borough Council,Property Services,Premises Related Expense,Electricity,2203,NPOWER LTD,A0044051, 23/02/2017,EST0278101,832.81,N,N/A,N,N/A,,
Pendle Borough Council,Operational Services,Premises Related Expense,Bldgs : R & M : Day To Day,2001,GO PLANT LIMITED,A0045105, 02/02/2017,OPS0277138,106.00,N,N/A,N,N/A,,
Pendle Borough Council,Operational Services,Transport Related Expense,Tprt : Repairs : General,3105,GO PLANT LIMITED,A0045105, 02/02/2017,OPS0277136,34.13,N,N/A,N,N/A,,
Pendle Borough Council,Operational Services,Transport Related Expense,Tprt : Repairs : General,3105,GO PLANT LIMITED,A0045105, 02/02/2017,OPS0277137,48.45,N,N/A,N,N/A,,
Pendle Borough Council,Operational Services,Transport Related Expense,Tprt : Repairs : General,3105,GO PLANT LIMITED,A0045105, 23/02/2017,OPS0278173,691.09,N,N/A,N,N/A,,
Pendle Borough Council,Operational Services,Transport Related Expense,Tprt : Repairs : General,3105,GO PLANT LIMITED,A0045105, 02/02/2017,OPS0277142,30.74,N,N/A,N,N/A,,
Pendle Borough Council,Operational Services,Transport Related Expense,Tprt : Repairs : General,3105,GO PLANT LIMITED,A0045105, 23/02/2017,OPS0278180,136.28,N,N/A,N,N/A,,
Pendle Borough Council,Operational Services,Transport Related Expense,Tprt : Repairs : General,3105,GO PLANT LIMITED,A0045105, 02/02/2017,OPS0277141,305.63,N,N/A,N,N/A,,
Pendle Borough Council,Operational Services,Transport Related Expense,Tprt : Repairs : General,3105,GO PLANT LIMITED,A0045105, 02/02/2017,OPS0277139,165.60,N,N/A,N,N/A,,
Pendle Borough Council,Operational Services,Transport Related Expense,Tprt : Repairs : General,3105,GO PLANT LIMITED,A0045105, 23/02/2017,OPS0278168,211.60,N,N/A,N,N/A,,
Pendle Borough Council,Operational Services,Transport Related Expense,Tprt : Repairs : General,3105,GO PLANT LIMITED,A0045105, 23/02/2017,OPS0278170,882.42,N,N/A,N,N/A,,
Pendle Borough Council,Operational Services,Transport Related Expense,Tprt : Repairs : General,3105,GO PLANT LIMITED,A0045105, 23/02/2017,OPS0278165,121.05,N,N/A,N,N/A,,
Pendle Borough Council,Operational Services,Transport Related Expense,Tprt : Repairs : General,3105,GO PLANT LIMITED,A0045105, 02/02/2017,OPS0277140,139.06,N,N/A,N,N/A,,
Pendle Borough Council,Operational Services,Transport Related Expense,Tprt : Repairs : General,3105,GO PLANT LIMITED,A0045105, 23/02/2017,OPS0278179,1073.50,N,N/A,N,N/A,,
Pendle Borough Council,Operational Services,Transport Related Expense,Tprt : Repairs : General,3105,GO PLANT LIMITED,A0045105, 02/02/2017,OPS0277135,497.50,N,N/A,N,N/A,,
Pendle Borough Council,Operational Services,Transport Related Expense,Tprt : Repairs : General,3105,GO PLANT LIMITED,A0045105, 23/02/2017,OPS0278174,141.00,N,N/A,N,N/A,,
Pendle Borough Council,Operational Services,Transport Related Expense,Tprt : Repairs : General,3105,GO PLANT LIMITED,A0045105, 23/02/2017,OPS0278178,86.98,N,N/A,N,N/A,,
Pendle Borough Council,Operational Services,Transport Related Expense,Tprt : Repairs : General,3105,GO PLANT LIMITED,A0045105, 02/02/2017,OPS0277143,144.54,N,N/A,N,N/A,,
Pendle Borough Council,Operational Services,Transport Related Expense,Tprt : Repairs : General,3105,GO PLANT LIMITED,A0045105, 23/02/2017,OPS0278176,281.75,N,N/A,N,N/A,,
Pendle Borough Council,Operational Services,Transport Related Expense,Tprt : Repairs : General,3105,GO PLANT LIMITED,A0045105, 23/02/2017,OPS0278175,186.16,N,N/A,N,N/A,,
Pendle Borough Council,Operational Services,Transport Related Expense,Tprt : Repairs : General,3105,GO PLANT LIMITED,A0045105, 23/02/2017,OPS0278164,48.53,N,N/A,N,N/A,,
Pendle Borough Council,Operational Services,Transport Related Expense,Tprt : Repairs : General,3105,GO PLANT LIMITED,A0045105, 23/02/2017,OPS0278171,107.34,N,N/A,N,N/A,,
Pendle Borough Council,Operational Services,Transport Related Expense,Tprt : Repairs : General,3105,GO PLANT LIMITED,A0045105, 23/02/2017,OPS0278181,612.71,N,N/A,N,N/A,,
Pendle Borough Council,Operational Services,Transport Related Expense,Tyres,3204,GO PLANT LIMITED,A0045105, 23/02/2017,OPS0278166,48.45,N,N/A,N,N/A,,
Pendle Borough Council,Operational Services,Transport Related Expense,Tyres,3204,GO PLANT LIMITED,A0045105, 23/02/2017,OPS0278163,51.75,N,N/A,N,N/A,,
Pendle Borough Council,Operational Services,Transport Related Expense,Tyres,3204,GO PLANT LIMITED,A0045105, 23/02/2017,OPS0278167,129.85,N,N/A,N,N/A,,
Pendle Borough Council,Operational Services,Transport Related Expense,Tyres,3204,GO PLANT LIMITED,A0045105, 02/02/2017,OPS0277145,23.13,N,N/A,N,N/A,,
Pendle Borough Council,Operational Services,Transport Related Expense,Tyres,3204,GO PLANT LIMITED,A0045105, 02/02/2017,OPS0277133,71.50,N,N/A,N,N/A,,
Pendle Borough Council,Operational Services,Transport Related Expense,Tyres,3204,GO PLANT LIMITED,A0045105, 02/02/2017,OPS0277134,41.83,N,N/A,N,N/A,,
Pendle Borough Council,Operational Services,Transport Related Expense,Tyres,3204,GO PLANT LIMITED,A0045105, 02/02/2017,OPS0277144,41.83,N,N/A,N,N/A,,
Pendle Borough Council,Operational Services,Transport Related Expense,Tyres,3204,GO PLANT LIMITED,A0045105, 02/02/2017,OPS0277146,48.43,N,N/A,N,N/A,,
Pendle Borough Council,Operational Services,Transport Related Expense,Tyres,3204,GO PLANT LIMITED,A0045105, 23/02/2017,OPS0278169,217.83,N,N/A,N,N/A,,
Pendle Borough Council,Operational Services,Transport Related Expense,Tyres,3204,GO PLANT LIMITED,A0045105, 23/02/2017,OPS0278172,305.83,N,N/A,N,N/A,,
Pendle Borough Council,Operational Services,Transport Related Expense,Tyres,3204,GO PLANT LIMITED,A0045105, 02/02/2017,OPS0277131,171.65,N,N/A,N,N/A,,
Pendle Borough Council,Operational Services,Transport Related Expense,Tyres,3204,GO PLANT LIMITED,A0045105, 16/02/2017,OPS0277399,23.13,N,N/A,N,N/A,,
Pendle Borough Council,Parks & Recreation Services,Transport Related Expense,Tyres,3204,GO PLANT LIMITED,A0045105, 16/02/2017,PCO0277383,34.13,N,N/A,N,N/A,,
Pendle Borough Council,Operational Services,Transport Related Expense,Tprt : Annual Hire Charge,3601,GO PLANT LIMITED,A0045105, 16/02/2017,OPS4005529,-100.00,N,N/A,N,N/A,,
Pendle Borough Council,Operational Services,Transport Related Expense,Tprt : Annual Hire Charge,3601,GO PLANT LIMITED,A0045105, 16/02/2017,OPS0277843,100.00,N,N/A,N,N/A,,
Pendle Borough Council,Operational Services,Transport Related Expense,Tprt : Annual Hire Charge,3601,GO PLANT LIMITED,A0045105, 23/02/2017,OPS0278177,100.00,N,N/A,N,N/A,,
Pendle Borough Council,Operational Services,Transport Related Expense,Tprt : Annual Hire Charge,3601,GO PLANT LIMITED,A0045105, 02/02/2017,OPS0277046,350.00,N,N/A,N,N/A,,
Pendle Borough Council,Operational Services,Transport Related Expense,Tprt : Annual Hire Charge,3601,GO PLANT LIMITED,A0045105, 02/02/2017,OPS0277046,850.00,N,N/A,N,N/A,,
Pendle Borough Council,Parks & Recreation Services,Transport Related Expense,Tprt : Annual Hire Charge,3601,GO PLANT LIMITED,A0045105, 16/02/2017,PCO4005553,-600.00,N,N/A,N,N/A,,
Pendle Borough Council,Parks & Recreation Services,Transport Related Expense,Tprt : Annual Hire Charge,3601,GO PLANT LIMITED,A0045105, 16/02/2017,PCO0277905,600.00,N,N/A,N,N/A,,
Pendle Borough Council,Financial Services,Supplies and Services,EFM : Other Equipment,4003,BARCLAYCARD COMMERCIAL,A0045954, 22/02/2017,AAS0278310,91.66,N,N/A,N,N/A,,
Pendle Borough Council,Financial Services,Supplies and Services,Postages,4501,BARCLAYCARD COMMERCIAL,A0045954, 22/02/2017,AAS0278304,2.00,N,N/A,N,N/A,,
Pendle Borough Council,Financial Services,Supplies and Services,Computer Charges,4509,BARCLAYCARD COMMERCIAL,A0045954, 22/02/2017,AAS0278304,-7.33,N,N/A,N,N/A,,
Pendle Borough Council,Financial Services,Supplies and Services,Computer Charges,4509,BARCLAYCARD COMMERCIAL,A0045954, 22/02/2017,AAS0278304,13.74,N,N/A,N,N/A,,
Pendle Borough Council,Financial Services,Supplies and Services,Computer Charges,4509,BARCLAYCARD COMMERCIAL,A0045954, 22/02/2017,AAS0278304,16.24,N,N/A,N,N/A,,
Pendle Borough Council,Financial Services,Supplies and Services,Computer Charges,4509,BARCLAYCARD COMMERCIAL,A0045954, 22/02/2017,AAS0278304,17.90,N,N/A,N,N/A,,
Pendle Borough Council,Financial Services,Supplies and Services,Computer Charges,4509,BARCLAYCARD COMMERCIAL,A0045954, 22/02/2017,AAS0278304,19.03,N,N/A,N,N/A,,
Pendle Borough Council,Financial Services,Supplies and Services,Computer Charges,4509,BARCLAYCARD COMMERCIAL,A0045954, 22/02/2017,AAS0278304,19.57,N,N/A,N,N/A,,
Pendle Borough Council,Financial Services,Supplies and Services,Computer Charges,4509,BARCLAYCARD COMMERCIAL,A0045954, 22/02/2017,AAS0278304,19.57,N,N/A,N,N/A,,
Pendle Borough Council,Financial Services,Supplies and Services,Computer Charges,4509,BARCLAYCARD COMMERCIAL,A0045954, 22/02/2017,AAS0278304,19.57,N,N/A,N,N/A,,
Pendle Borough Council,Financial Services,Supplies and Services,Computer Charges,4509,BARCLAYCARD COMMERCIAL,A0045954, 22/02/2017,AAS0278304,19.57,N,N/A,N,N/A,,
Pendle Borough Council,Financial Services,Supplies and Services,Computer Charges,4509,BARCLAYCARD COMMERCIAL,A0045954, 22/02/2017,AAS0278304,19.57,N,N/A,N,N/A,,
Pendle Borough Council,Financial Services,Supplies and Services,Computer Charges,4509,BARCLAYCARD COMMERCIAL,A0045954, 22/02/2017,AAS0278304,19.57,N,N/A,N,N/A,,
Pendle Borough Council,Financial Services,Supplies and Services,Computer Charges,4509,BARCLAYCARD COMMERCIAL,A0045954, 22/02/2017,AAS0278304,19.57,N,N/A,N,N/A,,
Pendle Borough Council,Financial Services,Supplies and Services,Computer Charges,4509,BARCLAYCARD COMMERCIAL,A0045954, 22/02/2017,AAS0278304,19.57,N,N/A,N,N/A,,
Pendle Borough Council,Financial Services,Supplies and Services,Computer Charges,4509,BARCLAYCARD COMMERCIAL,A0045954, 22/02/2017,AAS0278304,19.57,N,N/A,N,N/A,,
Pendle Borough Council,Financial Services,Supplies and Services,Computer Charges,4509,BARCLAYCARD COMMERCIAL,A0045954, 22/02/2017,AAS0278304,19.57,N,N/A,N,N/A,,
Pendle Borough Council,Financial Services,Supplies and Services,Computer Charges,4509,BARCLAYCARD COMMERCIAL,A0045954, 22/02/2017,AAS0278304,19.57,N,N/A,N,N/A,,
Pendle Borough Council,Financial Services,Supplies and Services,Computer Charges,4509,BARCLAYCARD COMMERCIAL,A0045954, 22/02/2017,AAS0278304,19.57,N,N/A,N,N/A,,
Pendle Borough Council,Financial Services,Supplies and Services,Computer Charges,4509,BARCLAYCARD COMMERCIAL,A0045954, 22/02/2017,AAS0278304,19.57,N,N/A,N,N/A,,
Pendle Borough Council,Financial Services,Supplies and Services,Computer Charges,4509,BARCLAYCARD COMMERCIAL,A0045954, 22/02/2017,AAS0278304,19.57,N,N/A,N,N/A,,
Pendle Borough Council,Financial Services,Supplies and Services,Computer Charges,4509,BARCLAYCARD COMMERCIAL,A0045954, 22/02/2017,AAS0278304,19.99,N,N/A,N,N/A,,
Pendle Borough Council,Financial Services,Supplies and Services,Computer Charges,4509,BARCLAYCARD COMMERCIAL,A0045954, 22/02/2017,AAS0278304,30.17,N,N/A,N,N/A,,
Pendle Borough Council,Financial Services,Supplies and Services,Computer Charges,4509,BARCLAYCARD COMMERCIAL,A0045954, 22/02/2017,AAS0278304,37.07,N,N/A,N,N/A,,
Pendle Borough Council,Financial Services,Supplies and Services,Computer Charges,4509,BARCLAYCARD COMMERCIAL,A0045954, 22/02/2017,AAS0278304,13.74,N,N/A,N,N/A,,
Pendle Borough Council,Financial Services,Supplies and Services,Seminars etc All Costs,4601,BARCLAYCARD COMMERCIAL,A0045954, 22/02/2017,AAS0278289,127.70,N,N/A,N,N/A,,
Pendle Borough Council,Financial Services,Supplies and Services,Seminars etc All Costs,4601,BARCLAYCARD COMMERCIAL,A0045954, 22/02/2017,AAS0278289,194.51,N,N/A,N,N/A,,
Pendle Borough Council,Financial Services,Supplies and Services,Seminars etc All Costs,4601,BARCLAYCARD COMMERCIAL,A0045954, 22/02/2017,AAS0278289,197.06,N,N/A,N,N/A,,
Pendle Borough Council,Financial Services,Supplies and Services,Seminars etc All Costs,4601,BARCLAYCARD COMMERCIAL,A0045954, 22/02/2017,AAS0278304,123.57,N,N/A,N,N/A,,
Pendle Borough Council,Financial Services,Supplies and Services,Seminars etc All Costs,4601,BARCLAYCARD COMMERCIAL,A0045954, 22/02/2017,AAS0278304,113.07,N,N/A,N,N/A,,
Pendle Borough Council,Financial Services,Supplies and Services,Seminars etc All Costs,4601,BARCLAYCARD COMMERCIAL,A0045954, 22/02/2017,AAS0278310,2.08,N,N/A,N,N/A,,
Pendle Borough Council,Financial Services,Supplies and Services,Seminars etc All Costs,4601,BARCLAYCARD COMMERCIAL,A0045954, 22/02/2017,AAS0278310,2.08,N,N/A,N,N/A,,
Pendle Borough Council,Financial Services,Supplies and Services,Seminars etc All Costs,4601,BARCLAYCARD COMMERCIAL,A0045954, 22/02/2017,AAS0278310,9.80,N,N/A,N,N/A,,
Pendle Borough Council,Financial Services,Supplies and Services,Other Expenses,4705,BARCLAYCARD COMMERCIAL,A0045954, 22/02/2017,AAS0278286,27.49,N,N/A,N,N/A,,
Pendle Borough Council,Financial Services,Supplies and Services,Other Expenses,4705,BARCLAYCARD COMMERCIAL,A0045954, 22/02/2017,AAS0278286,116.58,N,N/A,N,N/A,,
Pendle Borough Council,Financial Services,Supplies and Services,Subscriptions & Donations,4706,BARCLAYCARD COMMERCIAL,A0045954, 22/02/2017,AAS0278304,337.48,N,N/A,N,N/A,,
Pendle Borough Council,Financial Services,Transfer Payments,Accommodation ,6103,BARCLAYCARD COMMERCIAL,A0045954, 22/02/2017,AAS0278310,45.83,N,N/A,N,N/A,,
Pendle Borough Council,Financial Services,Transfer Payments,Accommodation ,6103,BARCLAYCARD COMMERCIAL,A0045954, 22/02/2017,AAS0278310,50.00,N,N/A,N,N/A,,
Pendle Borough Council,Financial Services,Transfer Payments,Accommodation ,6103,BARCLAYCARD COMMERCIAL,A0045954, 22/02/2017,AAS0278310,52.50,N,N/A,N,N/A,,
Pendle Borough Council,Financial Services,Transfer Payments,Accommodation ,6103,BARCLAYCARD COMMERCIAL,A0045954, 22/02/2017,AAS0278310,54.17,N,N/A,N,N/A,,
Pendle Borough Council,Financial Services,Transfer Payments,Accommodation ,6103,BARCLAYCARD COMMERCIAL,A0045954, 22/02/2017,AAS0278310,55.00,N,N/A,N,N/A,,
Pendle Borough Council,Financial Services,Transfer Payments,Accommodation ,6103,BARCLAYCARD COMMERCIAL,A0045954, 22/02/2017,AAS0278310,55.00,N,N/A,N,N/A,,
Pendle Borough Council,Financial Services,Transfer Payments,Accommodation ,6103,BARCLAYCARD COMMERCIAL,A0045954, 22/02/2017,AAS0278310,110.00,N,N/A,N,N/A,,
Pendle Borough Council,Financial Services,Transfer Payments,Accommodation ,6103,BARCLAYCARD COMMERCIAL,A0045954, 22/02/2017,AAS0278310,110.00,N,N/A,N,N/A,,
Pendle Borough Council,Financial Services,Transfer Payments,Accommodation ,6103,BARCLAYCARD COMMERCIAL,A0045954, 22/02/2017,AAS0278310,110.00,N,N/A,N,N/A,,
Pendle Borough Council,Financial Services,Transfer Payments,Accommodation ,6103,BARCLAYCARD COMMERCIAL,A0045954, 22/02/2017,AAS0278310,115.83,N,N/A,N,N/A,,
Pendle Borough Council,Financial Services,Transfer Payments,Accommodation ,6103,BARCLAYCARD COMMERCIAL,A0045954, 22/02/2017,AAS0278310,154.17,N,N/A,N,N/A,,
Pendle Borough Council,Financial Services,Transfer Payments,Accommodation ,6103,BARCLAYCARD COMMERCIAL,A0045954, 22/02/2017,AAS0278310,154.17,N,N/A,N,N/A,,
Pendle Borough Council,Financial Services,Transfer Payments,Accommodation ,6103,BARCLAYCARD COMMERCIAL,A0045954, 22/02/2017,AAS0278310,165.00,N,N/A,N,N/A,,
Pendle Borough Council,Financial Services,Transfer Payments,Accommodation ,6103,BARCLAYCARD COMMERCIAL,A0045954, 22/02/2017,AAS0278310,165.00,N,N/A,N,N/A,,
Pendle Borough Council,Financial Services,Transfer Payments,Accommodation ,6103,BARCLAYCARD COMMERCIAL,A0045954, 22/02/2017,AAS0278310,165.00,N,N/A,N,N/A,,
Pendle Borough Council,Financial Services,Transfer Payments,Accommodation ,6103,BARCLAYCARD COMMERCIAL,A0045954, 22/02/2017,AAS0278310,270.83,N,N/A,N,N/A,,
Pendle Borough Council,Financial Services,Capital Costs,Capital : Payments,CD14,NELSON FITTING,A0046254, 16/02/2017,AAS0277974,1498.33,N,N/A,N,N/A,,
Pendle Borough Council,Financial Services,Capital Costs,Capital : Payments,CD14,BLACKPOOL BOROUGH  COUNCIL,A0047029, 02/02/2017,AAS0277105,2415.00,N,N/A,N,N/A,,
Pendle Borough Council,Democratic & Legal Services,Supplies and Services,EFM : Office and computer equipment,4002,TWOFOLD LIMITED,A0047099, 16/02/2017,DAL0277866,222.61,N,N/A,N,N/A,,
Pendle Borough Council,Economic Development & Tourism,Supplies and Services,EFM Materials,4004,LOOP PUBLISHING LTD,A0047429, 09/02/2017,REG0277465,29.40,N,N/A,N,N/A,,
Pendle Borough Council,Chief Executives Policy Unit,Supplies and Services,Consultants Fees,4401,LOOP PUBLISHING LTD,A0047429, 02/02/2017,COR0277132,225.00,N,N/A,N,N/A,,
Pendle Borough Council,Property Services,Supplies and Services,Publicity & advertisement,4704,LOOP PUBLISHING LTD,A0047429, 23/02/2017,EST0278099,75.00,N,N/A,N,N/A,,
Pendle Borough Council,Property Services,Supplies and Services,Publicity & advertisement,4704,LOOP PUBLISHING LTD,A0047429, 23/02/2017,EST0278099,75.00,N,N/A,N,N/A,,
Pendle Borough Council,Engineering & Special Projects,Supplies and Services,Seminars etc All Costs,4601,REDACTED - PERSONAL DATA,A0049589, 02/02/2017,HED0277107,85.50,N,N/A,N,N/A,,
Pendle Borough Council,Engineering & Special Projects,,Other Income : Non-VATable,9303,REDACTED - PERSONAL DATA,A0049648, 02/02/2017,HED0277098,66.50,N,N/A,N,N/A,,
Pendle Borough Council,Property Services,Indirect Employee Expenses,Training,1211,AIRBORNE ENVIRONMENTAL CONSULTANTS LTD,A0049819, 02/02/2017,EST0277108,550.00,N,N/A,N,N/A,,
Pendle Borough Council,Engineering & Special Projects,Supplies and Services,EFM : Other Equipment,4003,VIP SYSTEM LIMITED,A0050529, 23/02/2017,HED0278111,229.02,N,N/A,N,N/A,,
Pendle Borough Council,Engineering & Special Projects,Supplies and Services,EFM : Other Equipment,4003,VIP SYSTEM LIMITED,A0050529, 23/02/2017,HED0278111,376.60,N,N/A,N,N/A,,
Pendle Borough Council,Engineering & Special Projects,Supplies and Services,EFM : Other Equipment,4003,VIP SYSTEM LIMITED,A0050529, 23/02/2017,HED0278111,188.30,N,N/A,N,N/A,,
Pendle Borough Council,Engineering & Special Projects,Supplies and Services,EFM : Other Equipment,4003,VIP SYSTEM LIMITED,A0050529, 23/02/2017,HED0278111,229.02,N,N/A,N,N/A,,
Pendle Borough Council,Parks & Recreation Services,Transport Related Expense,Tprt : Repairs : General,3105,ROSSENDALE VULCANISING (SALES LTD),A0051239, 16/02/2017,PCO0277886,12.00,N,N/A,N,N/A,,
Pendle Borough Council,Parks & Recreation Services,Transport Related Expense,Tprt : Repairs : General,3105,ROSSENDALE VULCANISING (SALES LTD),A0051239, 16/02/2017,PCO0277886,168.00,N,N/A,N,N/A,,
Pendle Borough Council,Parks & Recreation Services,Transport Related Expense,Tprt : Repairs : General,3105,ROSSENDALE VULCANISING (SALES LTD),A0051239, 16/02/2017,PCO0277886,225.00,N,N/A,N,N/A,,
Pendle Borough Council,Parks & Recreation Services,Transport Related Expense,Tprt : Repairs : General,3105,ROSSENDALE VULCANISING (SALES LTD),A0051239, 16/02/2017,PCO0277886,50.00,N,N/A,N,N/A,,
Pendle Borough Council,Democratic & Legal Services,Capital Costs,Capital : Legal Fees,CD09,THOMAS V SHAW CO LTD,A0051459, 23/02/2017,DAL0278112,300.00,N,N/A,N,N/A,,
Pendle Borough Council,Housing Regeneration Services,Premises Related Expense,Premises Cleaning,2601,ROACH CLEANING & MAINTENANCE SERVICES LTD,A0051553, 16/02/2017,HMR0277851,40.00,N,N/A,N,N/A,,
Pendle Borough Council,Human Resources,Indirect Employee Expenses,Recruitment,1221,LIBERATA UK LTD,A0051618, 16/02/2017,PER0277973,260.00,N,N/A,N,N/A,,
Pendle Borough Council,Financial Services,Premises Related Expense,Rents,2301,LIBERATA UK LTD,A0051618, 15/02/2017,AAS0278015,1748.48,N,N/A,N,N/A,,
Pendle Borough Council,Financial Services,Agency Costs,Liberata,5301,LIBERATA UK LTD,A0051618, 15/02/2017,AAS0278014,10672.50,N,N/A,N,N/A,,
Pendle Borough Council,Financial Services,Agency Costs,Liberata,5301,LIBERATA UK LTD,A0051618, 15/02/2017,AAS0278014,33600.81,N,N/A,N,N/A,,
Pendle Borough Council,Financial Services,Agency Costs,Liberata,5301,LIBERATA UK LTD,A0051618, 15/02/2017,AAS0278014,25091.93,N,N/A,N,N/A,,
Pendle Borough Council,Financial Services,Agency Costs,Liberata,5301,LIBERATA UK LTD,A0051618, 15/02/2017,AAS0278014,88420.32,N,N/A,N,N/A,,
Pendle Borough Council,Financial Services,Agency Costs,Liberata,5301,LIBERATA UK LTD,A0051618, 15/02/2017,AAS0278014,51798.80,N,N/A,N,N/A,,
Pendle Borough Council,Financial Services,Agency Costs,Liberata,5301,LIBERATA UK LTD,A0051618, 15/02/2017,AAS0278014,84447.27,N,N/A,N,N/A,,
Pendle Borough Council,Financial Services,Agency Costs,Liberata,5301,LIBERATA UK LTD,A0051618, 15/02/2017,AAS0278014,122220.71,N,N/A,N,N/A,,
Pendle Borough Council,Housing Regeneration Services,Capital Costs,Ren Grant : 1996 Act,CH22,BLUEBELL NORTH WEST LIMITED,A0051694, 02/02/2017,HMR0277052,3240.00,N,N/A,N,540,,
Pendle Borough Council,Property Services,Premises Related Expense,Electricity,2203,SOUTHERN ELECTRIC,A0051726, 23/02/2017,EST0278102,118.50,N,N/A,N,N/A,,
Pendle Borough Council,Human Resources,Supplies and Services,Other Expenses,4705,FIDELITI LIMITED,A0052058, 09/02/2017,PER0277424,69.65,N,N/A,N,N/A,,
Pendle Borough Council,Property Services,Premises Related Expense,Bldgs : R & M : Day To Day,2001,ALERT FIRE AND SECURITY LIMITED,A0052065, 09/02/2017,EST0277445,597.23,N,N/A,N,N/A,,
Pendle Borough Council,Parks & Recreation Services,Premises Related Expense,Grounds : R & M : Day to Day : Routine,2101,C B PRICE & SONS BUILDERS,A0052117, 09/02/2017,PCO0277389,1600.00,N,N/A,N,N/A,,
Pendle Borough Council,Parks & Recreation Services,Premises Related Expense,Grounds : R & M : Day to Day : Routine,2101,C B PRICE & SONS BUILDERS,A0052117, 23/02/2017,PCO0278040,4800.00,N,N/A,N,N/A,,
Pendle Borough Council,Democratic & Legal Services,Supplies and Services,Consultants Fees,4401,ANTHONY COLLINS SOLICITORS LLP,A0052334, 23/02/2017,DAL0278139,772.50,N,N/A,N,N/A,,
Pendle Borough Council,Parks & Recreation Services,Supplies and Services,Seminars etc All Costs,4601,MYERSCOUGH COLLEGE,A0053390, 02/02/2017,PCO0277059,104.50,N,N/A,N,N/A,,
Pendle Borough Council,Engineering & Special Projects,Premises Related Expense,Grounds : R & M : Day to Day : Routine,2101,NEIL WILLSON,A0053659, 16/02/2017,HED0277931,40.46,N,N/A,N,N/A,,
Pendle Borough Council,Engineering & Special Projects,Premises Related Expense,Grounds : R & M : Day to Day : Routine,2101,NEIL WILLSON,A0053659, 16/02/2017,HED0277931,40.47,N,N/A,N,N/A,,
Pendle Borough Council,Engineering & Special Projects,Premises Related Expense,Grounds : R & M : Day to Day : Routine,2101,NEIL WILLSON,A0053659, 16/02/2017,HED0277931,40.48,N,N/A,N,N/A,,
Pendle Borough Council,Engineering & Special Projects,Premises Related Expense,Grounds : R & M : Day to Day : Routine,2101,NEIL WILLSON,A0053659, 16/02/2017,HED0277931,40.48,N,N/A,N,N/A,,
Pendle Borough Council,Engineering & Special Projects,Premises Related Expense,Grounds : R & M : Day to Day : Routine,2101,NEIL WILLSON,A0053659, 16/02/2017,HED0277931,40.48,N,N/A,N,N/A,,
Pendle Borough Council,Engineering & Special Projects,Premises Related Expense,Grounds : R & M : Day to Day : Routine,2101,NEIL WILLSON,A0053659, 16/02/2017,HED0277931,40.50,N,N/A,N,N/A,,
Pendle Borough Council,Engineering & Special Projects,Premises Related Expense,Grounds : R & M : Day to Day : Routine,2101,NEIL WILLSON,A0053659, 16/02/2017,HED0277931,40.50,N,N/A,N,N/A,,
Pendle Borough Council,Engineering & Special Projects,Premises Related Expense,Grounds : R & M : Day to Day : Routine,2101,NEIL WILLSON,A0053659, 16/02/2017,HED0277931,40.50,N,N/A,N,N/A,,
Pendle Borough Council,Engineering & Special Projects,Premises Related Expense,Grounds : R & M : Day to Day : Routine,2101,NEIL WILLSON,A0053659, 16/02/2017,HED0277931,40.50,N,N/A,N,N/A,,
Pendle Borough Council,Engineering & Special Projects,Premises Related Expense,Grounds : R & M : Day to Day : Routine,2101,NEIL WILLSON,A0053659, 16/02/2017,HED0277931,218.63,N,N/A,N,N/A,,
Pendle Borough Council,Parks & Recreation Services,Premises Related Expense,Grounds : R & M : Day to Day : Routine,2101,NEIL WILLSON,A0053659, 23/02/2017,PCO0278045,385.00,N,N/A,N,N/A,,
Pendle Borough Council,Democratic & Legal Services,Supplies and Services,Mobile Phones,4508,O2 (UK) LIMITED,A0053660, 16/02/2017,DAL0277989,10.00,N,N/A,N,N/A,,
Pendle Borough Council,Democratic & Legal Services,Supplies and Services,Mobile Phones,4508,O2 (UK) LIMITED,A0053660, 16/02/2017,DAL0277989,17.24,N,N/A,N,N/A,,
Pendle Borough Council,Democratic & Legal Services,Supplies and Services,Mobile Phones,4508,O2 (UK) LIMITED,A0053660, 16/02/2017,DAL0277989,10.40,N,N/A,N,N/A,,
Pendle Borough Council,Democratic & Legal Services,Supplies and Services,Mobile Phones,4508,O2 (UK) LIMITED,A0053660, 16/02/2017,DAL0277989,13.50,N,N/A,N,N/A,,
Pendle Borough Council,Democratic & Legal Services,Supplies and Services,Mobile Phones,4508,O2 (UK) LIMITED,A0053660, 16/02/2017,DAL0277989,9.63,N,N/A,N,N/A,,
Pendle Borough Council,Democratic & Legal Services,Supplies and Services,Mobile Phones,4508,O2 (UK) LIMITED,A0053660, 16/02/2017,DAL0277989,11.50,N,N/A,N,N/A,,
Pendle Borough Council,Democratic & Legal Services,Supplies and Services,Mobile Phones,4508,O2 (UK) LIMITED,A0053660, 16/02/2017,DAL0277989,11.50,N,N/A,N,N/A,,
Pendle Borough Council,Democratic & Legal Services,Supplies and Services,Mobile Phones,4508,O2 (UK) LIMITED,A0053660, 16/02/2017,DAL0277989,14.01,N,N/A,N,N/A,,
Pendle Borough Council,Democratic & Legal Services,Supplies and Services,Mobile Phones,4508,O2 (UK) LIMITED,A0053660, 16/02/2017,DAL0277989,10.04,N,N/A,N,N/A,,
Pendle Borough Council,Democratic & Legal Services,Supplies and Services,Mobile Phones,4508,O2 (UK) LIMITED,A0053660, 16/02/2017,DAL0277989,9.58,N,N/A,N,N/A,,
Pendle Borough Council,Democratic & Legal Services,Supplies and Services,Mobile Phones,4508,O2 (UK) LIMITED,A0053660, 16/02/2017,DAL0277989,9.00,N,N/A,N,N/A,,
Pendle Borough Council,Democratic & Legal Services,Supplies and Services,Mobile Phones,4508,O2 (UK) LIMITED,A0053660, 16/02/2017,DAL0277989,9.00,N,N/A,N,N/A,,
Pendle Borough Council,Housing Regeneration Services,Capital Costs,Capital : Payments,CD14,NPOWER,A0054545, 16/02/2017,HMR0277909,22.32,N,N/A,N,N/A,,
Pendle Borough Council,Housing Regeneration Services,Capital Costs,Capital : Payments,CD14,NPOWER,A0054545, 16/02/2017,HMR0277856,47.18,N,N/A,N,N/A,,
Pendle Borough Council,Housing Regeneration Services,Capital Costs,Capital : Payments,CD14,NPOWER,A0054545, 09/02/2017,HMR0277438,86.68,N,N/A,N,N/A,,
Pendle Borough Council,Housing Regeneration Services,Capital Costs,Capital : Payments,CD14,NPOWER,A0054545, 09/02/2017,HMR0277439,196.54,N,N/A,N,N/A,,
Pendle Borough Council,Engineering & Special Projects,,Other Income : Non-VATable,9303,MOHAMMED SAEED,A0055577, 16/02/2017,HED0277982,37.26,N,N/A,N,N/A,,
Pendle Borough Council,Parks & Recreation Services,Indirect Employee Expenses,Training,1211,BEN SHAW TRAINING LIMITED,A0055722, 09/02/2017,PCO0277433,115.00,N,N/A,N,N/A,,
Pendle Borough Council,Parks & Recreation Services,Indirect Employee Expenses,Training,1211,BEN SHAW TRAINING LIMITED,A0055722, 09/02/2017,PCO0277433,180.00,N,N/A,N,N/A,,
Pendle Borough Council,Parks & Recreation Services,Indirect Employee Expenses,Emp : Training : General,1217,BEN SHAW TRAINING LIMITED,A0055722, 23/02/2017,PCO0278050,675.00,N,N/A,N,N/A,,
Pendle Borough Council,Parks & Recreation Services,Indirect Employee Expenses,Emp : Medical Expenses,1236,BEN SHAW TRAINING LIMITED,A0055722, 09/02/2017,PCO0277428,110.00,N,N/A,N,N/A,,
Pendle Borough Council,Parks & Recreation Services,Indirect Employee Expenses,Emp : Medical Expenses,1236,BEN SHAW TRAINING LIMITED,A0055722, 09/02/2017,PCO0277431,110.00,N,N/A,N,N/A,,
Pendle Borough Council,Parks & Recreation Services,Indirect Employee Expenses,Emp : Medical Expenses,1236,BEN SHAW TRAINING LIMITED,A0055722, 16/02/2017,PCO0277890,110.00,N,N/A,N,N/A,,
Pendle Borough Council,Parks & Recreation Services,Supplies and Services,Seminars etc All Costs,4601,BEN SHAW TRAINING LIMITED,A0055722, 02/02/2017,PCO0277064,115.00,N,N/A,N,N/A,,
Pendle Borough Council,Parks & Recreation Services,Supplies and Services,Seminars etc All Costs,4601,BEN SHAW TRAINING LIMITED,A0055722, 02/02/2017,PCO0277065,115.00,N,N/A,N,N/A,,
Pendle Borough Council,Parks & Recreation Services,Supplies and Services,Seminars etc All Costs,4601,BEN SHAW TRAINING LIMITED,A0055722, 02/02/2017,PCO0277066,115.00,N,N/A,N,N/A,,
Pendle Borough Council,Parks & Recreation Services,Supplies and Services,Seminars etc All Costs,4601,BEN SHAW TRAINING LIMITED,A0055722, 02/02/2017,PCO0277061,180.00,N,N/A,N,N/A,,
Pendle Borough Council,Parks & Recreation Services,Supplies and Services,Seminars etc All Costs,4601,BEN SHAW TRAINING LIMITED,A0055722, 02/02/2017,PCO0277065,360.00,N,N/A,N,N/A,,
Pendle Borough Council,Parks & Recreation Services,Supplies and Services,Seminars etc All Costs,4601,BEN SHAW TRAINING LIMITED,A0055722, 02/02/2017,PCO0277066,360.00,N,N/A,N,N/A,,
Pendle Borough Council,Parks & Recreation Services,Supplies and Services,Seminars etc All Costs,4601,BEN SHAW TRAINING LIMITED,A0055722, 02/02/2017,PCO0277064,450.00,N,N/A,N,N/A,,
Pendle Borough Council,Parks & Recreation Services,Premises Related Expense,Grounds : R & M : Day to Day : Routine,2101,A BINNS & CO,A0057121, 09/02/2017,PCO0277393,425.00,N,N/A,N,N/A,,
Pendle Borough Council,Property Services,Premises Related Expense,Electricity,2203,BRITISH GAS BUSINESS,A0057202, 09/02/2017,EST0277413,27.04,N,N/A,N,N/A,,
Pendle Borough Council,Property Services,Premises Related Expense,Electricity,2203,BRITISH GAS BUSINESS,A0057202, 09/02/2017,EST0277414,27.45,N,N/A,N,N/A,,
Pendle Borough Council,Property Services,Premises Related Expense,Electricity,2203,BRITISH GAS BUSINESS,A0057202, 09/02/2017,EST0277411,45.00,N,N/A,N,N/A,,
Pendle Borough Council,Economic Development & Tourism,Supplies and Services,EFM Materials,4004,EIGHT IMAGING,A0057511, 02/02/2017,REG0277153,500.00,N,N/A,N,N/A,,
Pendle Borough Council,Democratic & Legal Services,Capital Financing Costs,Lease costs:Computer (Orchard),8204,CIVICA UK LIMITED,A0057596, 09/02/2017,DAL0277426,3500.00,N,N/A,N,N/A,,
Pendle Borough Council,Environmental Health Services,Supplies and Services,Seminars etc All Costs,4601,LANCASTER CITY COUNCIL,A0057870, 02/02/2017,ENV0277148,250.00,N,N/A,N,N/A,,
Pendle Borough Council,Operational Services,Supplies and Services,Other Expenses,4705,P LEE WASTE OIL LIMTED,A0058412, 23/02/2017,OPS0278067,820.00,N,N/A,N,N/A,,
Pendle Borough Council,Engineering & Special Projects,,Other Income : Non-VATable,9303,REDACTED - PERSONAL DATA,A0058599, 16/02/2017,HED0277983,33.25,N,N/A,N,N/A,,
Pendle Borough Council,Property Services,Premises Related Expense,Bldgs : R & M : Day To Day,2001,SECURITY MONITORING CENTRES LTD,A0059068, 09/02/2017,EST4005531,-54.71,N,N/A,N,N/A,,
Pendle Borough Council,Property Services,Premises Related Expense,Bldgs : R & M : Day To Day,2001,SECURITY MONITORING CENTRES LTD,A0059068, 09/02/2017,EST0277417,59.97,N,N/A,N,N/A,,
Pendle Borough Council,Operational Services,Supplies and Services,Telephones : Direct,4502,SECURITY MONITORING CENTRES LTD,A0059068, 16/02/2017,OPS0277926,121.67,N,N/A,N,N/A,,
Pendle Borough Council,Engineering & Special Projects,Agency Costs,Lancashire C C,5102,NSL LIMITED,A0059256, 16/02/2017,HED0277934,1423.20,N,N/A,N,N/A,,
Pendle Borough Council,Human Resources,Indirect Employee Expenses,Recruitment,1221,JOHNSTON PUBLISHING LIMITED,A0059640, 09/02/2017,PER0277425,313.00,N,N/A,N,N/A,,
Pendle Borough Council,Democratic & Legal Services,Supplies and Services,Adverts : Statutory Notice,4702,JOHNSTON PUBLISHING LIMITED,A0059640, 02/02/2017,DAL0277073,209.76,N,N/A,N,N/A,,
Pendle Borough Council,Democratic & Legal Services,Supplies and Services,Adverts : Statutory Notice,4702,JOHNSTON PUBLISHING LIMITED,A0059640, 16/02/2017,DAL0277860,216.00,N,N/A,N,N/A,,
Pendle Borough Council,Democratic & Legal Services,Supplies and Services,Adverts : Statutory Notice,4702,JOHNSTON PUBLISHING LIMITED,A0059640, 02/02/2017,DAL0277075,262.20,N,N/A,N,N/A,,
Pendle Borough Council,Democratic & Legal Services,Supplies and Services,Adverts : Statutory Notice,4702,JOHNSTON PUBLISHING LIMITED,A0059640, 02/02/2017,DAL0277071,288.42,N,N/A,N,N/A,,
Pendle Borough Council,Democratic & Legal Services,Supplies and Services,Adverts : Statutory Notice,4702,JOHNSTON PUBLISHING LIMITED,A0059640, 23/02/2017,DAL0278007,297.00,N,N/A,N,N/A,,
Pendle Borough Council,Democratic & Legal Services,Supplies and Services,Publicity & advertisement,4704,JOHNSTON PUBLISHING LIMITED,A0059640, 09/02/2017,DAL0277182,131.10,N,N/A,N,N/A,,
Pendle Borough Council,Property Services,Capital Costs,Capital : Payments,CD14,MAXIGIENE ENVIRONMENTAL SERVICES LTD,A0060911, 16/02/2017,EST0277996,2452.50,N,N/A,N,N/A,,
Pendle Borough Council,Operational Services,Supplies and Services,EFM Materials,4004,CONTAINER CARE SOLUTIONS LIMITED,A0061112, 16/02/2017,OPS0277911,320.00,N,N/A,N,N/A,,
Pendle Borough Council,Operational Services,Supplies and Services,EFM Materials,4004,CONTAINER CARE SOLUTIONS LIMITED,A0061112, 16/02/2017,OPS0277911,480.00,N,N/A,N,N/A,,
Pendle Borough Council,Operational Services,Supplies and Services,Other Expenses,4705,CONTAINER CARE SOLUTIONS LIMITED,A0061112, 23/02/2017,OPS0278183,-90.00,N,N/A,N,N/A,,
Pendle Borough Council,Operational Services,Supplies and Services,Other Expenses,4705,CONTAINER CARE SOLUTIONS LIMITED,A0061112, 23/02/2017,OPS0278183,690.00,N,N/A,N,N/A,,
Pendle Borough Council,Property Services,Supplies and Services,Performing Rights Fees,4406,PERFORMING RIGHT SOCIETY LIMITED,A0061407, 23/02/2017,EST0278098,29.70,N,N/A,N,N/A,,
Pendle Borough Council,Property Services,Supplies and Services,Performing Rights Fees,4406,PERFORMING RIGHT SOCIETY LIMITED,A0061407, 23/02/2017,EST0278098,529.80,N,N/A,N,N/A,,
Pendle Borough Council,Economic Development & Tourism,Supplies and Services,Grants/Contributions,4739,PENDLE ENTERPRISE & REGENERATION LTD,A0061803, 02/02/2017,REG0277155,1910.35,N,N/A,N,N/A,,
Pendle Borough Council,Information Services,Capital Costs,Capital : Payments,CD14,PHOENIX SOFTWARE LTD,A0062279, 23/02/2017,ITS0278086,1051.68,N,N/A,N,N/A,,
Pendle Borough Council,Engineering & Special Projects,Capital Costs,Capital : Payments,CD14,TRAWDEN FOREST PARISH COUNCIL,A0062286, 23/02/2017,HED0278077,325.00,N,N/A,N,N/A,,
Pendle Borough Council,Economic Development & Tourism,Supplies and Services,Other Expenses,4705,LIBRA TEXTILES LTD,A0062627, 16/02/2017,REG0278003,4313.85,N,N/A,N,N/A,,
Pendle Borough Council,Financial Services,Transport Related Expense,Tprt : Annual Hire Charge,3601,ARVAL LTD (ALLSTAR FUEL SERVICES),A0062668, 15/02/2017,AAS0278022,144.48,N,N/A,N,N/A,,
Pendle Borough Council,Financial Services,Transport Related Expense,Tprt : Annual Hire Charge,3601,ARVAL LTD (ALLSTAR FUEL SERVICES),A0062668, 15/02/2017,AAS0278022,144.48,N,N/A,N,N/A,,
Pendle Borough Council,Financial Services,Transport Related Expense,Tprt : Annual Hire Charge,3601,ARVAL LTD (ALLSTAR FUEL SERVICES),A0062668, 15/02/2017,AAS0278022,144.48,N,N/A,N,N/A,,
Pendle Borough Council,Financial Services,Transport Related Expense,Tprt : Annual Hire Charge,3601,ARVAL LTD (ALLSTAR FUEL SERVICES),A0062668, 15/02/2017,AAS0278022,144.48,N,N/A,N,N/A,,
Pendle Borough Council,Financial Services,Transport Related Expense,Tprt : Annual Hire Charge,3601,ARVAL LTD (ALLSTAR FUEL SERVICES),A0062668, 07/02/2017,AAS0278020,20.00,N,N/A,N,N/A,,
Pendle Borough Council,Financial Services,Transport Related Expense,Tprt : Annual Hire Charge,3601,ARVAL LTD (ALLSTAR FUEL SERVICES),A0062668, 15/02/2017,AAS0278021,223.88,N,N/A,N,N/A,,
Pendle Borough Council,Financial Services,Transport Related Expense,Tprt : Annual Hire Charge,3601,ARVAL LTD (ALLSTAR FUEL SERVICES),A0062668, 07/02/2017,AAS0278020,20.00,N,N/A,N,N/A,,
Pendle Borough Council,Financial Services,Transport Related Expense,Tprt : Annual Hire Charge,3601,ARVAL LTD (ALLSTAR FUEL SERVICES),A0062668, 15/02/2017,AAS0278021,224.87,N,N/A,N,N/A,,
Pendle Borough Council,Financial Services,Transport Related Expense,Tprt : Annual Hire Charge,3601,ARVAL LTD (ALLSTAR FUEL SERVICES),A0062668, 15/02/2017,AAS0278022,144.48,N,N/A,N,N/A,,
Pendle Borough Council,Operational Services,Premises Related Expense,Bldgs : R & M : Day To Day,2001,KEYPLUS SECURITY LIMITED,A0062723, 16/02/2017,OPS0277923,37.50,N,N/A,N,N/A,,
Pendle Borough Council,Operational Services,Premises Related Expense,Bldgs : R & M : Day To Day,2001,KEYPLUS SECURITY LIMITED,A0062723, 16/02/2017,OPS0277923,37.50,N,N/A,N,N/A,,
Pendle Borough Council,Operational Services,Supplies and Services,Other Expenses,4705,NORTH WEST TRADING COMPANY,A0063527, 16/02/2017,OPS0277927,275.00,N,N/A,N,N/A,,
Pendle Borough Council,Democratic & Legal Services,Supplies and Services,Seminars etc All Costs,4601,CENTRE FOR PUBLIC SCRUTINY,A0064051, 02/02/2017,DAL0277053,225.00,N,N/A,N,N/A,,
Pendle Borough Council,Democratic & Legal Services,Supplies and Services,Postages,4501,WHISTL UK LIMITED,A0064458, 16/02/2017,DAL0277862,3.74,N,N/A,N,N/A,,
Pendle Borough Council,Democratic & Legal Services,Supplies and Services,Postages,4501,WHISTL UK LIMITED,A0064458, 09/02/2017,DAL0277451,6.37,N,N/A,N,N/A,,
Pendle Borough Council,Democratic & Legal Services,Supplies and Services,Postages,4501,WHISTL UK LIMITED,A0064458, 23/02/2017,DAL0278161,6.68,N,N/A,N,N/A,,
Pendle Borough Council,Democratic & Legal Services,Supplies and Services,Postages,4501,WHISTL UK LIMITED,A0064458, 02/02/2017,DAL0277158,7.87,N,N/A,N,N/A,,
Pendle Borough Council,Democratic & Legal Services,Supplies and Services,Postages,4501,WHISTL UK LIMITED,A0064458, 09/02/2017,DAL0277460,10.77,N,N/A,N,N/A,,
Pendle Borough Council,Democratic & Legal Services,Supplies and Services,Postages,4501,WHISTL UK LIMITED,A0064458, 02/02/2017,DAL0277158,0.37,N,N/A,N,N/A,,
Pendle Borough Council,Democratic & Legal Services,Supplies and Services,Postages,4501,WHISTL UK LIMITED,A0064458, 23/02/2017,DAL0278161,0.64,N,N/A,N,N/A,,
Pendle Borough Council,Democratic & Legal Services,Supplies and Services,Postages,4501,WHISTL UK LIMITED,A0064458, 09/02/2017,DAL0277451,1.47,N,N/A,N,N/A,,
Pendle Borough Council,Democratic & Legal Services,Supplies and Services,Postages,4501,WHISTL UK LIMITED,A0064458, 16/02/2017,DAL0277862,54.73,N,N/A,N,N/A,,
Pendle Borough Council,Democratic & Legal Services,Supplies and Services,Postages,4501,WHISTL UK LIMITED,A0064458, 23/02/2017,DAL0278161,65.86,N,N/A,N,N/A,,
Pendle Borough Council,Democratic & Legal Services,Supplies and Services,Postages,4501,WHISTL UK LIMITED,A0064458, 09/02/2017,DAL0277460,78.59,N,N/A,N,N/A,,
Pendle Borough Council,Democratic & Legal Services,Supplies and Services,Postages,4501,WHISTL UK LIMITED,A0064458, 02/02/2017,DAL0277158,98.81,N,N/A,N,N/A,,
Pendle Borough Council,Democratic & Legal Services,Supplies and Services,Postages,4501,WHISTL UK LIMITED,A0064458, 09/02/2017,DAL0277451,136.83,N,N/A,N,N/A,,
Pendle Borough Council,Democratic & Legal Services,Supplies and Services,Postages,4501,WHISTL UK LIMITED,A0064458, 02/02/2017,DAL0277158,1.12,N,N/A,N,N/A,,
Pendle Borough Council,Democratic & Legal Services,Supplies and Services,Postages,4501,WHISTL UK LIMITED,A0064458, 09/02/2017,DAL0277460,1.86,N,N/A,N,N/A,,
Pendle Borough Council,Democratic & Legal Services,Supplies and Services,Postages,4501,WHISTL UK LIMITED,A0064458, 09/02/2017,DAL0277451,2.98,N,N/A,N,N/A,,
Pendle Borough Council,Democratic & Legal Services,Supplies and Services,Postages,4501,WHISTL UK LIMITED,A0064458, 16/02/2017,DAL0277862,5.23,N,N/A,N,N/A,,
Pendle Borough Council,Democratic & Legal Services,Supplies and Services,Postages,4501,WHISTL UK LIMITED,A0064458, 23/02/2017,DAL0278161,10.85,N,N/A,N,N/A,,
Pendle Borough Council,Democratic & Legal Services,Supplies and Services,Postages,4501,WHISTL UK LIMITED,A0064458, 02/02/2017,DAL0277158,3.35,N,N/A,N,N/A,,
Pendle Borough Council,Democratic & Legal Services,Supplies and Services,Postages,4501,WHISTL UK LIMITED,A0064458, 09/02/2017,DAL0277451,5.19,N,N/A,N,N/A,,
Pendle Borough Council,Democratic & Legal Services,Supplies and Services,Postages,4501,WHISTL UK LIMITED,A0064458, 16/02/2017,DAL0277862,6.32,N,N/A,N,N/A,,
Pendle Borough Council,Democratic & Legal Services,Supplies and Services,Postages,4501,WHISTL UK LIMITED,A0064458, 09/02/2017,DAL0277460,39.80,N,N/A,N,N/A,,
Pendle Borough Council,Democratic & Legal Services,Supplies and Services,Postages,4501,WHISTL UK LIMITED,A0064458, 23/02/2017,DAL0278161,59.00,N,N/A,N,N/A,,
Pendle Borough Council,Democratic & Legal Services,Supplies and Services,Postages,4501,WHISTL UK LIMITED,A0064458, 09/02/2017,DAL0277460,16.71,N,N/A,N,N/A,,
Pendle Borough Council,Democratic & Legal Services,Supplies and Services,Postages,4501,WHISTL UK LIMITED,A0064458, 23/02/2017,DAL0278161,18.21,N,N/A,N,N/A,,
Pendle Borough Council,Democratic & Legal Services,Supplies and Services,Postages,4501,WHISTL UK LIMITED,A0064458, 02/02/2017,DAL0277158,18.72,N,N/A,N,N/A,,
Pendle Borough Council,Democratic & Legal Services,Supplies and Services,Postages,4501,WHISTL UK LIMITED,A0064458, 16/02/2017,DAL0277862,23.22,N,N/A,N,N/A,,
Pendle Borough Council,Democratic & Legal Services,Supplies and Services,Postages,4501,WHISTL UK LIMITED,A0064458, 09/02/2017,DAL0277451,36.77,N,N/A,N,N/A,,
Pendle Borough Council,Housing Regeneration Services,Capital Costs,Capital : Payments,CD14,ST VINCENTS HOME IMPROVEMENT AGENCY,A0065527, 23/02/2017,HMR0278110,1971.00,N,N/A,N,N/A,,
Pendle Borough Council,Democratic & Legal Services,Supplies and Services,Meeting Expenses,4610,THE RAINHALL CENTRE,A0066193, 02/02/2017,DAL0277159,45.00,N,N/A,N,N/A,,
Pendle Borough Council,Human Resources,Transport Related Expense,Car Allows : Offs : Lease Exps,3806,LEX AUTOLEASE LIMITED,A0066530, 16/02/2017,PER4005242,-770.45,N,N/A,N,N/A,,
Pendle Borough Council,Human Resources,Transport Related Expense,Car Allows : Offs : Lease Exps,3806,LEX AUTOLEASE LIMITED,A0066530, 16/02/2017,PER0277125,165.00,N,N/A,N,N/A,,
Pendle Borough Council,Human Resources,Transport Related Expense,Car Allows : Offs : Lease Exps,3806,LEX AUTOLEASE LIMITED,A0066530, 16/02/2017,PER0277971,2317.61,N,N/A,N,N/A,,
Pendle Borough Council,Human Resources,Transport Related Expense,Car Allows : Offs : Lease Exps,3806,LEX AUTOLEASE LIMITED,A0066530, 16/02/2017,PER0277971,2465.46,N,N/A,N,N/A,,
Pendle Borough Council,Human Resources,Transport Related Expense,Car Allows : Offs : Lease Exps,3806,LEX AUTOLEASE LIMITED,A0066530, 16/02/2017,PER0277124,246.28,N,N/A,N,N/A,,
Pendle Borough Council,Human Resources,Transport Related Expense,Car Allows : Offs : Lease Exps,3806,LEX AUTOLEASE LIMITED,A0066530, 16/02/2017,PER0277124,273.62,N,N/A,N,N/A,,
Pendle Borough Council,Property Services,Premises Related Expense,Bldgs : R & M : Day To Day,2001,SPEAKMAN CONTRACTORS LTD,A0066581, 23/02/2017,EST0278082,60.95,N,N/A,N,N/A,,
Pendle Borough Council,Property Services,Premises Related Expense,Bldgs : R & M : Day To Day,2001,SPEAKMAN CONTRACTORS LTD,A0066581, 23/02/2017,EST0278082,20.39,N,N/A,N,N/A,,
Pendle Borough Council,Property Services,Premises Related Expense,Bldgs : R & M : Day To Day,2001,SPEAKMAN CONTRACTORS LTD,A0066581, 16/02/2017,EST0277986,40.78,N,N/A,N,N/A,,
Pendle Borough Council,Property Services,Premises Related Expense,Bldgs : R & M : Day To Day,2001,SPEAKMAN CONTRACTORS LTD,A0066581, 23/02/2017,EST0278080,77.70,N,N/A,N,N/A,,
Pendle Borough Council,Property Services,Premises Related Expense,Bldgs : R & M : Day To Day,2001,SPEAKMAN CONTRACTORS LTD,A0066581, 16/02/2017,EST0277986,45.97,N,N/A,N,N/A,,
Pendle Borough Council,Property Services,Premises Related Expense,Bldgs : R & M : Day To Day,2001,SPEAKMAN CONTRACTORS LTD,A0066581, 09/02/2017,EST0277446,5500.00,N,N/A,N,N/A,,
Pendle Borough Council,Property Services,Premises Related Expense,Bldgs : R & M : Day To Day,2001,SPEAKMAN CONTRACTORS LTD,A0066581, 16/02/2017,EST0277986,173.83,N,N/A,N,N/A,,
Pendle Borough Council,Property Services,Premises Related Expense,Bldgs : R & M : Day To Day,2001,SPEAKMAN CONTRACTORS LTD,A0066581, 23/02/2017,EST0278082,40.78,N,N/A,N,N/A,,
Pendle Borough Council,Property Services,Premises Related Expense,Bldgs : R & M : Day To Day,2001,SPEAKMAN CONTRACTORS LTD,A0066581, 23/02/2017,EST0278082,83.29,N,N/A,N,N/A,,
Pendle Borough Council,Property Services,Premises Related Expense,Bldgs : R & M : Day To Day,2001,SPEAKMAN CONTRACTORS LTD,A0066581, 16/02/2017,EST0277986,85.23,N,N/A,N,N/A,,
Pendle Borough Council,Property Services,Premises Related Expense,Bldgs : R & M : Day To Day,2001,SPEAKMAN CONTRACTORS LTD,A0066581, 23/02/2017,EST0278082,220.40,N,N/A,N,N/A,,
Pendle Borough Council,Property Services,Premises Related Expense,Bldgs : R & M : Day To Day,2001,SPEAKMAN CONTRACTORS LTD,A0066581, 16/02/2017,EST0277986,425.09,N,N/A,N,N/A,,
Pendle Borough Council,Property Services,Premises Related Expense,Bldgs : R & M : Day To Day,2001,SPEAKMAN CONTRACTORS LTD,A0066581, 16/02/2017,EST0277986,762.13,N,N/A,N,N/A,,
Pendle Borough Council,Property Services,Premises Related Expense,Bldgs : R & M : Day To Day,2001,SPEAKMAN CONTRACTORS LTD,A0066581, 16/02/2017,EST0277986,134.80,N,N/A,N,N/A,,
Pendle Borough Council,Property Services,Premises Related Expense,Bldgs : R & M : Day To Day,2001,SPEAKMAN CONTRACTORS LTD,A0066581, 23/02/2017,EST0278082,299.89,N,N/A,N,N/A,,
Pendle Borough Council,Property Services,Premises Related Expense,Bldgs : Vandalism Repairs,2005,SPEAKMAN CONTRACTORS LTD,A0066581, 09/02/2017,EST0277446,500.00,N,N/A,N,N/A,,
Pendle Borough Council,Property Services,Transport Related Expense,Tprt : Repairs : General,3105,SPEAKMAN CONTRACTORS LTD,A0066581, 23/02/2017,EST0278082,40.78,N,N/A,N,N/A,,
Pendle Borough Council,Property Services,Capital Costs,Capital : Payments,CD14,SPEAKMAN CONTRACTORS LTD,A0066581, 16/02/2017,EST0277986,152.93,N,N/A,N,N/A,,
Pendle Borough Council,Property Services,Capital Costs,Capital : Payments,CD14,SPEAKMAN CONTRACTORS LTD,A0066581, 23/02/2017,EST0278082,1170.33,N,N/A,N,N/A,,
Pendle Borough Council,Engineering & Special Projects,Premises Related Expense,Grounds : R & M : Day to Day : Routine,2101,LIVESEY BUILDING MAINTENANCE CONTRACTORS,A0066865, 16/02/2017,HED0277953,160.00,N,N/A,N,N/A,,
Pendle Borough Council,Engineering & Special Projects,Premises Related Expense,Grounds : R & M : Day to Day : Routine,2101,LIVESEY BUILDING MAINTENANCE CONTRACTORS,A0066865, 16/02/2017,HED0277953,320.00,N,N/A,N,N/A,,
Pendle Borough Council,Engineering & Special Projects,Premises Related Expense,Grounds : R & M : Day to Day : Routine,2101,LIVESEY BUILDING MAINTENANCE CONTRACTORS,A0066865, 16/02/2017,HED0277956,450.00,N,N/A,N,N/A,,
Pendle Borough Council,Engineering & Special Projects,Premises Related Expense,Grounds : R & M : Day to Day : Routine,2101,LIVESEY BUILDING MAINTENANCE CONTRACTORS,A0066865, 16/02/2017,HED0277956,750.00,N,N/A,N,N/A,,
Pendle Borough Council,Human Resources,Indirect Employee Expenses,Emp : Medical Expenses,1236,PEOPLE ASSET MANAGEMENT LIMITED,A0067613, 09/02/2017,PER0277423,1089.00,N,N/A,N,N/A,,
Pendle Borough Council,Operational Services,Transport Related Expense,Tprt : Repairs : General,3105,PROBRUSH T/A NORTHERN MUNICIPAL SPARES LTD,A0068263, 23/02/2017,OPS0278188,84.42,N,N/A,N,N/A,,
Pendle Borough Council,Parks & Recreation Services,Transport Related Expense,Tprt : Repairs : General,3105,PROBRUSH T/A NORTHERN MUNICIPAL SPARES LTD,A0068263, 09/02/2017,PCO0277358,185.50,N,N/A,N,N/A,,
Pendle Borough Council,Operational Services,Transport Related Expense,Tprt : Repairs : General,3105,PROBRUSH T/A NORTHERN MUNICIPAL SPARES LTD,A0068263, 23/02/2017,OPS0278188,84.42,N,N/A,N,N/A,,
Pendle Borough Council,Parks & Recreation Services,Transport Related Expense,Tprt : Repairs : General,3105,PROBRUSH T/A NORTHERN MUNICIPAL SPARES LTD,A0068263, 09/02/2017,PCO0277358,185.51,N,N/A,N,N/A,,
Pendle Borough Council,Operational Services,Transport Related Expense,Tprt : Repairs : General,3105,PROBRUSH T/A NORTHERN MUNICIPAL SPARES LTD,A0068263, 23/02/2017,OPS0278188,84.42,N,N/A,N,N/A,,
Pendle Borough Council,Parks & Recreation Services,Transport Related Expense,Tprt : Repairs : General,3105,PROBRUSH T/A NORTHERN MUNICIPAL SPARES LTD,A0068263, 09/02/2017,PCO0277358,185.51,N,N/A,N,N/A,,
Pendle Borough Council,Operational Services,Transport Related Expense,Tprt : Repairs : General,3105,PROBRUSH T/A NORTHERN MUNICIPAL SPARES LTD,A0068263, 23/02/2017,OPS0278188,84.42,N,N/A,N,N/A,,
Pendle Borough Council,Parks & Recreation Services,Transport Related Expense,Tprt : Repairs : General,3105,PROBRUSH T/A NORTHERN MUNICIPAL SPARES LTD,A0068263, 09/02/2017,PCO0277358,185.51,N,N/A,N,N/A,,
Pendle Borough Council,Operational Services,Transport Related Expense,Tprt : Repairs : General,3105,PROBRUSH T/A NORTHERN MUNICIPAL SPARES LTD,A0068263, 23/02/2017,OPS0278188,84.42,N,N/A,N,N/A,,
Pendle Borough Council,Parks & Recreation Services,Transport Related Expense,Tprt : Repairs : General,3105,PROBRUSH T/A NORTHERN MUNICIPAL SPARES LTD,A0068263, 09/02/2017,PCO0277358,185.51,N,N/A,N,N/A,,
Pendle Borough Council,Operational Services,Transport Related Expense,Tprt : Repairs : General,3105,PROBRUSH T/A NORTHERN MUNICIPAL SPARES LTD,A0068263, 23/02/2017,OPS0278188,84.42,N,N/A,N,N/A,,
Pendle Borough Council,Parks & Recreation Services,Transport Related Expense,Tprt : Repairs : General,3105,PROBRUSH T/A NORTHERN MUNICIPAL SPARES LTD,A0068263, 09/02/2017,PCO0277358,185.51,N,N/A,N,N/A,,
Pendle Borough Council,Engineering & Special Projects,Supplies and Services,Other Expenses,4705,CHIPSIDE LTD,A0068587, 16/02/2017,HED4005555,-23.85,N,N/A,N,N/A,,
Pendle Borough Council,Engineering & Special Projects,Supplies and Services,Other Expenses,4705,CHIPSIDE LTD,A0068587, 16/02/2017,HED0277933,33.83,N,N/A,N,N/A,,
Pendle Borough Council,Housing Regeneration Services,Capital Costs,Ren Grant : 1996 Act,CH22,ELECTRICITY NORTH WEST LIMITED,A0068905, 23/02/2017,HMR0278048,962.69,N,N/A,N,160.45,,
Pendle Borough Council,Parks & Recreation Services,Supplies and Services,Other Expenses,4705,CASELLA MONITOR,A0069523, 09/02/2017,PCO0277391,15.00,N,N/A,N,N/A,,
Pendle Borough Council,Parks & Recreation Services,Supplies and Services,Other Expenses,4705,CASELLA MONITOR,A0069523, 09/02/2017,PCO0277391,89.00,N,N/A,N,N/A,,
Pendle Borough Council,Parks & Recreation Services,Supplies and Services,Other Expenses,4705,CASELLA MONITOR,A0069523, 09/02/2017,PCO0277391,177.00,N,N/A,N,N/A,,
Pendle Borough Council,Financial Services,Premises Related Expense,Electricity,2203,BRITISH GAS BUSINESS,A0069538, 24/02/2017,AAS0278324,96.03,N,N/A,N,N/A,,
Pendle Borough Council,Financial Services,Premises Related Expense,Electricity,2203,BRITISH GAS BUSINESS,A0069538, 02/02/2017,AAS0278019,56.51,N,N/A,N,N/A,,
Pendle Borough Council,Financial Services,Premises Related Expense,Electricity,2203,CORONA ENERGY,A0069539, 17/02/2017,AAS0278033,263.33,N,N/A,N,N/A,,
Pendle Borough Council,Chief Executives Policy Unit,Supplies and Services,Other Expenses,4705,THORNE ACCESS AND SECURITY,A0070220, 02/02/2017,COR0277041,106.88,N,N/A,N,N/A,,
Pendle Borough Council,Operational Services,Capital Costs,Capital : Payments,CD14,CRAEMER UK LIMITED,A0070869, 02/02/2017,OPS0277081,1400.00,N,N/A,N,N/A,,
Pendle Borough Council,Operational Services,Supplies and Services,Other Expenses,4705,PALM RECYCLING LIMITED,A0070924, 02/02/2017,OPS0277085,500.00,N,N/A,N,N/A,,
Pendle Borough Council,Operational Services,Supplies and Services,Other Expenses,4705,PALM RECYCLING LIMITED,A0070924, 02/02/2017,OPS0277086,500.00,N,N/A,N,N/A,,
Pendle Borough Council,Operational Services,Supplies and Services,Other Expenses,4705,PALM RECYCLING LIMITED,A0070924, 09/02/2017,OPS0277408,500.00,N,N/A,N,N/A,,
Pendle Borough Council,Financial Services,Supplies and Services,Sub-Contractors,4007,QHS SOLUTIONS LIMITED,A0071912, 01/02/2017,AAS0278018,666.67,N,N/A,N,N/A,,
Pendle Borough Council,Operational Services,Supplies and Services,Seminars etc All Costs,4601,QHS SOLUTIONS LIMITED,A0071912, 23/02/2017,OPS0278184,250.00,N,N/A,N,N/A,,
Pendle Borough Council,Environmental Health Services,Supplies and Services,Tests & Inspection Fees,4409,UNITED UTILITIES WATER PLC,A0072400, 16/02/2017,ENV0277941,135.70,N,N/A,N,N/A,,
Pendle Borough Council,Financial Services,Supplies and Services,Consultants Fees,4401,GLOBAL PAYMENTS,A0072461, 16/02/2017,AAS0278023,7.00,N,N/A,N,N/A,,
Pendle Borough Council,Financial Services,Supplies and Services,Consultants Fees,4401,GLOBAL PAYMENTS,A0072461, 16/02/2017,AAS0278023,940.66,N,N/A,N,N/A,,
Pendle Borough Council,Financial Services,Supplies and Services,Credit card and online charges,4421,GLOBAL PAYMENTS,A0072461, 16/02/2017,AAS0278024,7.00,N,N/A,N,N/A,,
Pendle Borough Council,Financial Services,Supplies and Services,Credit card and online charges,4421,GLOBAL PAYMENTS,A0072461, 16/02/2017,AAS0278025,7.00,N,N/A,N,N/A,,
Pendle Borough Council,Financial Services,Supplies and Services,Credit card and online charges,4421,GLOBAL PAYMENTS,A0072461, 16/02/2017,AAS0278024,1096.29,N,N/A,N,N/A,,
Pendle Borough Council,Financial Services,Supplies and Services,Credit card and online charges,4421,GLOBAL PAYMENTS,A0072461, 16/02/2017,AAS0278025,1365.19,N,N/A,N,N/A,,
Pendle Borough Council,Financial Services,Support Services,Bank Charges,7201,LLOYDS BANKING GROUP,A0072462, 24/02/2017,AAS0278323,45.00,N,N/A,N,N/A,,
Pendle Borough Council,Financial Services,Support Services,Bank Charges,7201,LLOYDS BANKING GROUP,A0072462, 20/02/2017,AAS0278325,569.58,N,N/A,N,N/A,,
Pendle Borough Council,Housing Regeneration Services,,Paid in the Year,PD03,A J HEY BUILDING SERVICES,A0072755, 16/02/2017,HMR0277916,5000.00,N,N/A,N,N/A,,
Pendle Borough Council,Parks & Recreation Services,Supplies and Services,Sub-Contractors,4007,OCS GROUP UK LIMITED,A0072816, 09/02/2017,PCO0277364,349.78,N,N/A,N,N/A,,
Pendle Borough Council,Parks & Recreation Services,Supplies and Services,Sub-Contractors,4007,OCS GROUP UK LIMITED,A0072816, 09/02/2017,PCO0277363,2.00,N,N/A,N,N/A,,
Pendle Borough Council,Operational Services,Supplies and Services,Sub-Contractors,4007,OCS GROUP UK LIMITED,A0072816, 09/02/2017,OPS0277407,4.00,N,N/A,N,N/A,,
Pendle Borough Council,Parks & Recreation Services,Supplies and Services,Sub-Contractors,4007,OCS GROUP UK LIMITED,A0072816, 09/02/2017,PCO0277359,10.00,N,N/A,N,N/A,,
Pendle Borough Council,Parks & Recreation Services,Supplies and Services,Sub-Contractors,4007,OCS GROUP UK LIMITED,A0072816, 09/02/2017,PCO0277362,11.99,N,N/A,N,N/A,,
Pendle Borough Council,Economic Development & Tourism,Premises Related Expense,Bldgs : R & M : Day To Day,2001,TCS (WASTE) LIMITED,A0072822, 23/02/2017,REG0278030,402.80,N,N/A,N,N/A,,
Pendle Borough Council,Operational Services,Premises Related Expense,Grounds : R & M : Day to Day : Routine,2101,TCS (WASTE) LIMITED,A0072822, 16/02/2017,OPS0277920,70.00,N,N/A,N,N/A,,
Pendle Borough Council,Operational Services,Premises Related Expense,Grounds : R & M : Day to Day : Routine,2101,TCS (WASTE) LIMITED,A0072822, 16/02/2017,OPS0277920,70.00,N,N/A,N,N/A,,
Pendle Borough Council,Operational Services,Premises Related Expense,Grounds : R & M : Day to Day : Routine,2101,TCS (WASTE) LIMITED,A0072822, 16/02/2017,OPS0277920,70.00,N,N/A,N,N/A,,
Pendle Borough Council,Operational Services,Premises Related Expense,Grounds : R & M : Day to Day : Routine,2101,TCS (WASTE) LIMITED,A0072822, 16/02/2017,OPS0277920,70.00,N,N/A,N,N/A,,
Pendle Borough Council,Operational Services,Premises Related Expense,Grounds : R & M : Day to Day : Routine,2101,TCS (WASTE) LIMITED,A0072822, 16/02/2017,OPS0277920,70.00,N,N/A,N,N/A,,
Pendle Borough Council,Operational Services,Premises Related Expense,Grounds : R & M : Day to Day : Routine,2101,TCS (WASTE) LIMITED,A0072822, 16/02/2017,OPS0277920,70.00,N,N/A,N,N/A,,
Pendle Borough Council,Operational Services,Premises Related Expense,Grounds : R & M : Day to Day : Routine,2101,TCS (WASTE) LIMITED,A0072822, 16/02/2017,OPS0277919,280.00,N,N/A,N,N/A,,
Pendle Borough Council,Financial Services,Indirect Employee Expenses,Recruitment,1221,DBS,A0072958, 17/02/2017,AAS0278032,968.00,N,N/A,N,N/A,,
Pendle Borough Council,Financial Services,Supplies and Services,Other Expenses,4705,DBS,A0072958, 17/02/2017,AAS0278032,1144.00,N,N/A,N,N/A,,
Pendle Borough Council,Engineering & Special Projects,Supplies and Services,Newspapers & Periodicals,4305,MARTINS,A0074550, 02/02/2017,HED0277106,18.30,N,N/A,N,N/A,,
Pendle Borough Council,Economic Development & Tourism,Transport Related Expense,Tprt : Repairs : General,3105,REDACTED - PERSONAL DATA,A0075060, 02/02/2017,REG0277176,148.61,N,N/A,N,N/A,,
Pendle Borough Council,Planning & Building Control,,Fees Income : Non-VATable,9302,REDACTED - PERSONAL DATA,A0075364, 16/02/2017,PBC0277938,25.00,N,N/A,N,N/A,,
Pendle Borough Council,Housing Regeneration Services,Capital Costs,Capital : Payments,CD14,REDACTED - PERSONAL DATA,A0075947, 16/02/2017,HMR0277914,1551.66,N,N/A,N,N/A,,
Pendle Borough Council,Democratic & Legal Services,Supplies and Services,Printing & Stationery,4301,THOMSON REUTERS,A0077400, 16/02/2017,DAL0277969,102.00,N,N/A,N,N/A,,
Pendle Borough Council,Democratic & Legal Services,Supplies and Services,Printing & Stationery,4301,THOMSON REUTERS,A0077400, 16/02/2017,DAL0277969,102.00,N,N/A,N,N/A,,
Pendle Borough Council,Financial Services,Supplies and Services,Other Expenses,4705,RIGHTMOVE.CO.UK,A0077496, 01/02/2017,AAS0278017,312.80,N,N/A,N,N/A,,
Pendle Borough Council,Financial Services,Capital Costs,Capital : Payments,CD14,RIGHTMOVE.CO.UK,A0077496, 01/02/2017,AAS0278017,607.20,N,N/A,N,N/A,,
Pendle Borough Council,Housing Regeneration Services,Capital Costs,Ren Grant : 1996 Act,CH22,M L PLUMBING & BUILDING,A0078739, 23/02/2017,HMR0278049,2480.00,N,N/A,N,413.33,,
Pendle Borough Council,Engineering & Special Projects,Premises Related Expense,Passenger Shelter Cleaning,2606,JANDON CLEANING SERVICES,A0079028, 02/02/2017,HED0277165,140.00,N,N/A,N,N/A,,
Pendle Borough Council,Engineering & Special Projects,Premises Related Expense,Passenger Shelter Cleaning,2606,JANDON CLEANING SERVICES,A0079028, 02/02/2017,HED0277165,100.00,N,N/A,N,N/A,,
Pendle Borough Council,Engineering & Special Projects,Premises Related Expense,Passenger Shelter Cleaning,2606,JANDON CLEANING SERVICES,A0079028, 02/02/2017,HED0277165,160.00,N,N/A,N,N/A,,
Pendle Borough Council,Housing Regeneration Services,Supplies and Services,EFM : Other Equipment,4003,KINGS WASHING MACHINE RENTALS,A0079878, 23/02/2017,HMR0278010,55.00,N,N/A,N,N/A,,
Pendle Borough Council,Human Resources,Indirect Employee Expenses,Emp : Medical Expenses,1236,REDACTED - PERSONAL DATA,A0081260, 02/02/2017,PER0277122,40.00,N,N/A,N,N/A,,
Pendle Borough Council,Human Resources,Indirect Employee Expenses,Emp : Medical Expenses,1236,REDACTED - PERSONAL DATA,A0081260, 16/02/2017,PER0277970,80.00,N,N/A,N,N/A,,
Pendle Borough Council,Operational Services,Transport Related Expense,Tprt : Annual Hire Charge,3601,BLACK HORSE CONTRACT HIRE - FLEET 564391,A0081350, 16/02/2017,OPS0277924,339.38,N,N/A,N,N/A,,
Pendle Borough Council,Engineering & Special Projects,Supplies and Services,EFM : Other Equipment,4003,INSTITUTE OF LICENSING LIMITED,A0082227, 23/02/2017,HED0278108,75.00,N,N/A,N,N/A,,
Pendle Borough Council,Financial Services,Supplies and Services,Subscriptions & Donations,4706,ROUGHLEE PARISH COUNCIL,A0082370, 09/02/2017,AAS0277678,500.00,N,N/A,N,N/A,,
Pendle Borough Council,Operational Services,Capital Costs,Capital : Payments,CD14,WEBASPX LIMITED,A0082416, 23/02/2017,OPS0278066,5268.00,N,N/A,N,N/A,,
Pendle Borough Council,Financial Services,Supplies and Services,Allpay,4422,ALLPAY LIMITED,A0084372, 09/02/2017,AAS0277450,10.01,N,N/A,N,N/A,,
Pendle Borough Council,Financial Services,Supplies and Services,Allpay,4422,ALLPAY LIMITED,A0084372, 23/02/2017,AAS0278138,19.05,N,N/A,N,N/A,,
Pendle Borough Council,Financial Services,Supplies and Services,Allpay,4422,ALLPAY LIMITED,A0084372, 23/02/2017,AAS0278136,25.94,N,N/A,N,N/A,,
Pendle Borough Council,Financial Services,Supplies and Services,Allpay,4422,ALLPAY LIMITED,A0084372, 23/02/2017,AAS0278137,33.70,N,N/A,N,N/A,,
Pendle Borough Council,Financial Services,Supplies and Services,Allpay,4422,ALLPAY LIMITED,A0084372, 23/02/2017,AAS0278133,1122.65,N,N/A,N,N/A,,
Pendle Borough Council,Housing Regeneration Services,Capital Costs,Capital : Payments,CD14,ELITE PLUMBING,A0084584, 16/02/2017,HMR0277915,3792.00,N,N/A,N,N/A,,
Pendle Borough Council,Housing Regeneration Services,Capital Costs,Capital : Payments,CD14,ELITE PLUMBING,A0084584, 16/02/2017,HMR0277910,90.00,N,N/A,N,N/A,,
Pendle Borough Council,Housing Regeneration Services,Capital Costs,Capital : Payments,CD14,ELITE PLUMBING,A0084584, 16/02/2017,HMR0277912,180.00,N,N/A,N,N/A,,
Pendle Borough Council,Environmental Health Services,Premises Related Expense,Bldgs : R & M : Abnormal,2002,RODNEY CAPSTICK BUILDING MAINTENANCE,A0085112, 02/02/2017,ENV0277164,68.00,N,N/A,N,N/A,,
Pendle Borough Council,Engineering & Special Projects,Premises Related Expense,Grounds : R & M : Day to Day : Routine,2101,MARCHBRIDGE BUILDERS LIMITED,A0087284, 23/02/2017,HED0278091,261.00,N,N/A,N,N/A,,
Pendle Borough Council,Democratic & Legal Services,Supplies and Services,Consultants Fees,4401,PRINTDESIGNS LIMITED,A0088150, 02/02/2017,DAL0277161,129.50,N,N/A,N,N/A,,
Pendle Borough Council,Economic Development & Tourism,Supplies and Services,Other Expenses,4705,PRINTDESIGNS LIMITED,A0088150, 23/02/2017,REG0278089,90.00,N,N/A,N,N/A,,
Pendle Borough Council,Revenues Services,Supplies and Services,Consultants Fees,4401,JBW GROUP LIMITED,A0088708, 16/02/2017,TRE0277958,220.00,N,N/A,N,N/A,,
Pendle Borough Council,Revenues Services,Supplies and Services,Consultants Fees,4401,JBW GROUP LIMITED,A0088708, 16/02/2017,TRE0277959,275.00,N,N/A,N,N/A,,
Pendle Borough Council,Revenues Services,Supplies and Services,Consultants Fees,4401,JBW GROUP LIMITED,A0088708, 16/02/2017,TRE0277960,330.00,N,N/A,N,N/A,,
Pendle Borough Council,Engineering & Special Projects,Premises Related Expense,Grounds : R & M : Day to Day : Routine,2101,JETCAM CLEANSING COLNE LTD,A0088807, 23/02/2017,HED0278009,287.28,N,N/A,N,N/A,,
Pendle Borough Council,Financial Services,Supplies and Services,Consultants Fees,4401,AURORA ACCOUNTING SERVICES,A0089134, 02/02/2017,AAS0277179,960.00,N,N/A,N,N/A,,
Pendle Borough Council,Property Services,Capital Costs,Capital : Payments,CD14,CATCHPOINT (UK) LTD,A0089500, 02/02/2017,EST0277113,807.00,N,N/A,N,N/A,,
Pendle Borough Council,Operational Services,Indirect Employee Expenses,Lone Worker Monitoring Service,1270,SOLOPROTECT LIMITED,A0089719, 23/02/2017,OPS0278070,10.63,N,N/A,N,N/A,,
Pendle Borough Council,Operational Services,Indirect Employee Expenses,Lone Worker Monitoring Service,1270,SOLOPROTECT LIMITED,A0089719, 23/02/2017,OPS0278071,10.63,N,N/A,N,N/A,,
Pendle Borough Council,Operational Services,Indirect Employee Expenses,Lone Worker Monitoring Service,1270,SOLOPROTECT LIMITED,A0089719, 23/02/2017,OPS0278073,10.63,N,N/A,N,N/A,,
Pendle Borough Council,Operational Services,Indirect Employee Expenses,Lone Worker Monitoring Service,1270,SOLOPROTECT LIMITED,A0089719, 23/02/2017,OPS0278074,10.63,N,N/A,N,N/A,,
Pendle Borough Council,Operational Services,Indirect Employee Expenses,Lone Worker Monitoring Service,1270,SOLOPROTECT LIMITED,A0089719, 23/02/2017,OPS0278075,10.63,N,N/A,N,N/A,,
Pendle Borough Council,Operational Services,Indirect Employee Expenses,Lone Worker Monitoring Service,1270,SOLOPROTECT LIMITED,A0089719, 23/02/2017,OPS0278072,10.84,N,N/A,N,N/A,,
Pendle Borough Council,Operational Services,Indirect Employee Expenses,Lone Worker Monitoring Service,1270,SOLOPROTECT LIMITED,A0089719, 02/02/2017,OPS0277084,387.10,N,N/A,N,N/A,,
Pendle Borough Council,Environmental Health Services,Supplies and Services,Other Expenses,4705,SOLOPROTECT LIMITED,A0089719, 02/02/2017,ENV0277149,43.36,N,N/A,N,N/A,,
Pendle Borough Council,Engineering & Special Projects,Capital Costs,Capital : Payments,CD14,FRIENDS OF WALVERDEN PARK,A0089945, 09/02/2017,HED0277469,200.00,N,N/A,N,N/A,,
Pendle Borough Council,Parks & Recreation Services,Supplies and Services,Expenditure : Materials,0002,SALTERFORTH NURSERIES & GARDEN CTR LTD,A0090064, 23/02/2017,PCO0278051,8.31,N,N/A,N,N/A,,
Pendle Borough Council,Parks & Recreation Services,Supplies and Services,Expenditure : Materials,0002,SALTERFORTH NURSERIES & GARDEN CTR LTD,A0090064, 23/02/2017,PCO0278051,8.33,N,N/A,N,N/A,,
Pendle Borough Council,Operational Services,Agency Staff,Emp : Agency Wages,1004,RAPID RECRUIT LIMITED,A0090080, 02/02/2017,OPS0277120,963.18,N,N/A,N,N/A,,
Pendle Borough Council,Operational Services,Agency Staff,Emp : Agency Wages,1004,RAPID RECRUIT LIMITED,A0090080, 09/02/2017,OPS0277410,1245.00,N,N/A,N,N/A,,
Pendle Borough Council,Operational Services,Agency Staff,Emp : Agency Wages,1004,RAPID RECRUIT LIMITED,A0090080, 02/02/2017,OPS0277088,1524.98,N,N/A,N,N/A,,
Pendle Borough Council,Operational Services,Agency Staff,Emp : Agency Wages,1004,RAPID RECRUIT LIMITED,A0090080, 23/02/2017,OPS0278190,1680.55,N,N/A,N,N/A,,
Pendle Borough Council,Operational Services,Agency Staff,Emp : Agency Wages,1004,RAPID RECRUIT LIMITED,A0090080, 02/02/2017,OPS0277120,1099.66,N,N/A,N,N/A,,
Pendle Borough Council,Operational Services,Agency Staff,Emp : Agency Wages,1004,RAPID RECRUIT LIMITED,A0090080, 09/02/2017,OPS0277410,1401.54,N,N/A,N,N/A,,
Pendle Borough Council,Operational Services,Agency Staff,Emp : Agency Wages,1004,RAPID RECRUIT LIMITED,A0090080, 23/02/2017,OPS0278190,1858.96,N,N/A,N,N/A,,
Pendle Borough Council,Operational Services,Agency Staff,Emp : Agency Wages,1004,RAPID RECRUIT LIMITED,A0090080, 02/02/2017,OPS0277088,2032.38,N,N/A,N,N/A,,
Pendle Borough Council,Operational Services,Agency Staff,Emp : Agency Wages,1004,RAPID RECRUIT LIMITED,A0090080, 23/02/2017,OPS0278190,967.37,N,N/A,N,N/A,,
Pendle Borough Council,Operational Services,Agency Staff,Emp : Agency Wages,1004,RAPID RECRUIT LIMITED,A0090080, 02/02/2017,OPS0277088,1009.07,N,N/A,N,N/A,,
Pendle Borough Council,Operational Services,Agency Staff,Emp : Agency Wages,1004,RAPID RECRUIT LIMITED,A0090080, 02/02/2017,OPS0277120,1537.76,N,N/A,N,N/A,,
Pendle Borough Council,Operational Services,Agency Staff,Emp : Agency Wages,1004,RAPID RECRUIT LIMITED,A0090080, 09/02/2017,OPS0277410,2167.33,N,N/A,N,N/A,,
Pendle Borough Council,Parks & Recreation Services,Transport Related Expense,Tprt : Repairs : General,3105,LEWIS EQUIPMENT LIMITED,A0090108, 23/02/2017,PCO0278042,3.45,N,N/A,N,N/A,,
Pendle Borough Council,Parks & Recreation Services,Transport Related Expense,Tprt : Repairs : General,3105,LEWIS EQUIPMENT LIMITED,A0090108, 23/02/2017,PCO0278042,12.50,N,N/A,N,N/A,,
Pendle Borough Council,Parks & Recreation Services,Transport Related Expense,Tprt : Repairs : General,3105,LEWIS EQUIPMENT LIMITED,A0090108, 23/02/2017,PCO0278042,49.11,N,N/A,N,N/A,,
Pendle Borough Council,Parks & Recreation Services,Transport Related Expense,Tprt : Repairs : General,3105,LEWIS EQUIPMENT LIMITED,A0090108, 23/02/2017,PCO0278042,133.98,N,N/A,N,N/A,,
Pendle Borough Council,Democratic & Legal Services,Supplies and Services,Seminars etc All Costs,4601,NATIONAL ASSOCIATION OF CIVIC OFFICERS,A0090228, 02/02/2017,DAL0277054,300.00,N,N/A,N,N/A,,
Pendle Borough Council,Economic Development & Tourism,Capital Costs,Capital : Payments,CD14,PENNINE ECOLOGICAL (BOLTON),A0090258, 02/02/2017,REG0277057,570.00,N,N/A,N,N/A,,
Pendle Borough Council,Financial Services,Transport Related Expense,Diesel Oil,3202,FUELMATE LTD,A0090265, 07/02/2017,AAS0278026,31.93,N,N/A,N,N/A,,
Pendle Borough Council,Financial Services,Transport Related Expense,Diesel Oil,3202,FUELMATE LTD,A0090265, 07/02/2017,AAS0278026,37.98,N,N/A,N,N/A,,
Pendle Borough Council,Financial Services,Transport Related Expense,Diesel Oil,3202,FUELMATE LTD,A0090265, 21/02/2017,AAS0278334,42.84,N,N/A,N,N/A,,
Pendle Borough Council,Financial Services,Transport Related Expense,Diesel Oil,3202,FUELMATE LTD,A0090265, 07/02/2017,AAS0278026,48.58,N,N/A,N,N/A,,
Pendle Borough Council,Financial Services,Transport Related Expense,Diesel Oil,3202,FUELMATE LTD,A0090265, 14/02/2017,AAS0278027,49.29,N,N/A,N,N/A,,
Pendle Borough Council,Financial Services,Transport Related Expense,Diesel Oil,3202,FUELMATE LTD,A0090265, 28/02/2017,AAS0278335,51.09,N,N/A,N,N/A,,
Pendle Borough Council,Financial Services,Transport Related Expense,Diesel Oil,3202,FUELMATE LTD,A0090265, 28/02/2017,AAS0278335,52.10,N,N/A,N,N/A,,
Pendle Borough Council,Financial Services,Transport Related Expense,Diesel Oil,3202,FUELMATE LTD,A0090265, 21/02/2017,AAS0278334,56.31,N,N/A,N,N/A,,
Pendle Borough Council,Financial Services,Transport Related Expense,Diesel Oil,3202,FUELMATE LTD,A0090265, 07/02/2017,AAS0278026,56.68,N,N/A,N,N/A,,
Pendle Borough Council,Financial Services,Transport Related Expense,Diesel Oil,3202,FUELMATE LTD,A0090265, 14/02/2017,AAS0278027,56.73,N,N/A,N,N/A,,
Pendle Borough Council,Financial Services,Transport Related Expense,Diesel Oil,3202,FUELMATE LTD,A0090265, 21/02/2017,AAS0278334,57.95,N,N/A,N,N/A,,
Pendle Borough Council,Financial Services,Transport Related Expense,Diesel Oil,3202,FUELMATE LTD,A0090265, 14/02/2017,AAS0278027,65.58,N,N/A,N,N/A,,
Pendle Borough Council,Financial Services,Transport Related Expense,Diesel Oil,3202,FUELMATE LTD,A0090265, 14/02/2017,AAS0278027,72.52,N,N/A,N,N/A,,
Pendle Borough Council,Financial Services,Transport Related Expense,Diesel Oil,3202,FUELMATE LTD,A0090265, 28/02/2017,AAS0278335,72.59,N,N/A,N,N/A,,
Pendle Borough Council,Financial Services,Transport Related Expense,Diesel Oil,3202,FUELMATE LTD,A0090265, 14/02/2017,AAS0278027,86.91,N,N/A,N,N/A,,
Pendle Borough Council,Financial Services,Transport Related Expense,Diesel Oil,3202,FUELMATE LTD,A0090265, 07/02/2017,AAS0278026,88.64,N,N/A,N,N/A,,
Pendle Borough Council,Financial Services,Transport Related Expense,Diesel Oil,3202,FUELMATE LTD,A0090265, 28/02/2017,AAS0278335,101.59,N,N/A,N,N/A,,
Pendle Borough Council,Financial Services,Transport Related Expense,Diesel Oil,3202,FUELMATE LTD,A0090265, 21/02/2017,AAS0278334,146.55,N,N/A,N,N/A,,
Pendle Borough Council,Financial Services,Transport Related Expense,Diesel Oil,3202,FUELMATE LTD,A0090265, 07/02/2017,AAS0278026,187.74,N,N/A,N,N/A,,
Pendle Borough Council,Financial Services,Transport Related Expense,Diesel Oil,3202,FUELMATE LTD,A0090265, 07/02/2017,AAS0278026,210.03,N,N/A,N,N/A,,
Pendle Borough Council,Financial Services,Transport Related Expense,Diesel Oil,3202,FUELMATE LTD,A0090265, 07/02/2017,AAS0278026,284.42,N,N/A,N,N/A,,
Pendle Borough Council,Financial Services,Transport Related Expense,Diesel Oil,3202,FUELMATE LTD,A0090265, 14/02/2017,AAS0278027,298.03,N,N/A,N,N/A,,
Pendle Borough Council,Financial Services,Transport Related Expense,Diesel Oil,3202,FUELMATE LTD,A0090265, 28/02/2017,AAS0278335,305.00,N,N/A,N,N/A,,
Pendle Borough Council,Financial Services,Transport Related Expense,Diesel Oil,3202,FUELMATE LTD,A0090265, 21/02/2017,AAS0278334,311.04,N,N/A,N,N/A,,
Pendle Borough Council,Financial Services,Transport Related Expense,Diesel Oil,3202,FUELMATE LTD,A0090265, 28/02/2017,AAS0278335,75.40,N,N/A,N,N/A,,
Pendle Borough Council,Financial Services,Transport Related Expense,Diesel Oil,3202,FUELMATE LTD,A0090265, 21/02/2017,AAS0278334,149.17,N,N/A,N,N/A,,
Pendle Borough Council,Financial Services,Transport Related Expense,Diesel Oil,3202,FUELMATE LTD,A0090265, 14/02/2017,AAS0278027,259.61,N,N/A,N,N/A,,
Pendle Borough Council,Financial Services,Transport Related Expense,Diesel Oil,3202,FUELMATE LTD,A0090265, 07/02/2017,AAS0278026,272.90,N,N/A,N,N/A,,
Pendle Borough Council,Financial Services,Transport Related Expense,Diesel Oil,3202,FUELMATE LTD,A0090265, 28/02/2017,AAS0278335,155.08,N,N/A,N,N/A,,
Pendle Borough Council,Financial Services,Transport Related Expense,Diesel Oil,3202,FUELMATE LTD,A0090265, 14/02/2017,AAS0278027,175.54,N,N/A,N,N/A,,
Pendle Borough Council,Financial Services,Transport Related Expense,Diesel Oil,3202,FUELMATE LTD,A0090265, 21/02/2017,AAS0278334,250.93,N,N/A,N,N/A,,
Pendle Borough Council,Financial Services,Transport Related Expense,Diesel Oil,3202,FUELMATE LTD,A0090265, 07/02/2017,AAS0278026,265.12,N,N/A,N,N/A,,
Pendle Borough Council,Financial Services,Transport Related Expense,Diesel Oil,3202,FUELMATE LTD,A0090265, 21/02/2017,AAS0278334,218.81,N,N/A,N,N/A,,
Pendle Borough Council,Financial Services,Transport Related Expense,Diesel Oil,3202,FUELMATE LTD,A0090265, 07/02/2017,AAS0278026,237.22,N,N/A,N,N/A,,
Pendle Borough Council,Financial Services,Transport Related Expense,Diesel Oil,3202,FUELMATE LTD,A0090265, 28/02/2017,AAS0278335,255.80,N,N/A,N,N/A,,
Pendle Borough Council,Financial Services,Transport Related Expense,Diesel Oil,3202,FUELMATE LTD,A0090265, 14/02/2017,AAS0278027,289.86,N,N/A,N,N/A,,
Pendle Borough Council,Financial Services,Transport Related Expense,Diesel Oil,3202,FUELMATE LTD,A0090265, 28/02/2017,AAS0278335,188.38,N,N/A,N,N/A,,
Pendle Borough Council,Financial Services,Transport Related Expense,Diesel Oil,3202,FUELMATE LTD,A0090265, 14/02/2017,AAS0278027,202.37,N,N/A,N,N/A,,
Pendle Borough Council,Financial Services,Transport Related Expense,Diesel Oil,3202,FUELMATE LTD,A0090265, 07/02/2017,AAS0278026,260.44,N,N/A,N,N/A,,
Pendle Borough Council,Financial Services,Transport Related Expense,Diesel Oil,3202,FUELMATE LTD,A0090265, 21/02/2017,AAS0278334,270.93,N,N/A,N,N/A,,
Pendle Borough Council,Financial Services,Transport Related Expense,Diesel Oil,3202,FUELMATE LTD,A0090265, 21/02/2017,AAS0278334,96.50,N,N/A,N,N/A,,
Pendle Borough Council,Financial Services,Transport Related Expense,Diesel Oil,3202,FUELMATE LTD,A0090265, 07/02/2017,AAS0278026,169.68,N,N/A,N,N/A,,
Pendle Borough Council,Financial Services,Transport Related Expense,Diesel Oil,3202,FUELMATE LTD,A0090265, 14/02/2017,AAS0278027,172.68,N,N/A,N,N/A,,
Pendle Borough Council,Financial Services,Transport Related Expense,Diesel Oil,3202,FUELMATE LTD,A0090265, 28/02/2017,AAS0278335,219.27,N,N/A,N,N/A,,
Pendle Borough Council,Financial Services,Transport Related Expense,Diesel Oil,3202,FUELMATE LTD,A0090265, 07/02/2017,AAS0278026,42.27,N,N/A,N,N/A,,
Pendle Borough Council,Financial Services,Transport Related Expense,Diesel Oil,3202,FUELMATE LTD,A0090265, 28/02/2017,AAS0278335,49.09,N,N/A,N,N/A,,
Pendle Borough Council,Financial Services,Transport Related Expense,Diesel Oil,3202,FUELMATE LTD,A0090265, 21/02/2017,AAS0278334,53.94,N,N/A,N,N/A,,
Pendle Borough Council,Financial Services,Transport Related Expense,Diesel Oil,3202,FUELMATE LTD,A0090265, 14/02/2017,AAS0278027,58.12,N,N/A,N,N/A,,
Pendle Borough Council,Financial Services,Transport Related Expense,Diesel Oil,3202,FUELMATE LTD,A0090265, 28/02/2017,AAS0278335,120.26,N,N/A,N,N/A,,
Pendle Borough Council,Financial Services,Transport Related Expense,Diesel Oil,3202,FUELMATE LTD,A0090265, 14/02/2017,AAS0278027,195.79,N,N/A,N,N/A,,
Pendle Borough Council,Financial Services,Transport Related Expense,Diesel Oil,3202,FUELMATE LTD,A0090265, 21/02/2017,AAS0278334,223.76,N,N/A,N,N/A,,
Pendle Borough Council,Financial Services,Transport Related Expense,Diesel Oil,3202,FUELMATE LTD,A0090265, 07/02/2017,AAS0278026,268.78,N,N/A,N,N/A,,
Pendle Borough Council,Financial Services,Transport Related Expense,Diesel Oil,3202,FUELMATE LTD,A0090265, 21/02/2017,AAS0278334,151.23,N,N/A,N,N/A,,
Pendle Borough Council,Financial Services,Transport Related Expense,Diesel Oil,3202,FUELMATE LTD,A0090265, 14/02/2017,AAS0278027,172.74,N,N/A,N,N/A,,
Pendle Borough Council,Financial Services,Transport Related Expense,Diesel Oil,3202,FUELMATE LTD,A0090265, 07/02/2017,AAS0278026,184.85,N,N/A,N,N/A,,
Pendle Borough Council,Financial Services,Transport Related Expense,Diesel Oil,3202,FUELMATE LTD,A0090265, 28/02/2017,AAS0278335,207.69,N,N/A,N,N/A,,
Pendle Borough Council,Financial Services,Transport Related Expense,Diesel Oil,3202,FUELMATE LTD,A0090265, 21/02/2017,AAS0278334,212.15,N,N/A,N,N/A,,
Pendle Borough Council,Financial Services,Transport Related Expense,Diesel Oil,3202,FUELMATE LTD,A0090265, 14/02/2017,AAS0278027,285.18,N,N/A,N,N/A,,
Pendle Borough Council,Financial Services,Transport Related Expense,Diesel Oil,3202,FUELMATE LTD,A0090265, 28/02/2017,AAS0278335,303.25,N,N/A,N,N/A,,
Pendle Borough Council,Financial Services,Transport Related Expense,Diesel Oil,3202,FUELMATE LTD,A0090265, 28/02/2017,AAS0278335,191.18,N,N/A,N,N/A,,
Pendle Borough Council,Financial Services,Transport Related Expense,Diesel Oil,3202,FUELMATE LTD,A0090265, 14/02/2017,AAS0278027,213.79,N,N/A,N,N/A,,
Pendle Borough Council,Financial Services,Transport Related Expense,Diesel Oil,3202,FUELMATE LTD,A0090265, 21/02/2017,AAS0278334,238.04,N,N/A,N,N/A,,
Pendle Borough Council,Financial Services,Transport Related Expense,Diesel Oil,3202,FUELMATE LTD,A0090265, 07/02/2017,AAS0278026,242.17,N,N/A,N,N/A,,
Pendle Borough Council,Financial Services,Transport Related Expense,Diesel Oil,3202,FUELMATE LTD,A0090265, 21/02/2017,AAS0278334,158.23,N,N/A,N,N/A,,
Pendle Borough Council,Financial Services,Transport Related Expense,Diesel Oil,3202,FUELMATE LTD,A0090265, 14/02/2017,AAS0278027,180.63,N,N/A,N,N/A,,
Pendle Borough Council,Financial Services,Transport Related Expense,Diesel Oil,3202,FUELMATE LTD,A0090265, 28/02/2017,AAS0278335,207.99,N,N/A,N,N/A,,
Pendle Borough Council,Financial Services,Transport Related Expense,Diesel Oil,3202,FUELMATE LTD,A0090265, 07/02/2017,AAS0278026,249.00,N,N/A,N,N/A,,
Pendle Borough Council,Financial Services,Transport Related Expense,Diesel Oil,3202,FUELMATE LTD,A0090265, 28/02/2017,AAS0278335,166.06,N,N/A,N,N/A,,
Pendle Borough Council,Financial Services,Transport Related Expense,Diesel Oil,3202,FUELMATE LTD,A0090265, 21/02/2017,AAS0278334,215.89,N,N/A,N,N/A,,
Pendle Borough Council,Financial Services,Transport Related Expense,Diesel Oil,3202,FUELMATE LTD,A0090265, 14/02/2017,AAS0278027,218.23,N,N/A,N,N/A,,
Pendle Borough Council,Financial Services,Transport Related Expense,Diesel Oil,3202,FUELMATE LTD,A0090265, 07/02/2017,AAS0278026,229.09,N,N/A,N,N/A,,
Pendle Borough Council,Financial Services,Transport Related Expense,Diesel Oil,3202,FUELMATE LTD,A0090265, 21/02/2017,AAS0278334,105.91,N,N/A,N,N/A,,
Pendle Borough Council,Financial Services,Transport Related Expense,Diesel Oil,3202,FUELMATE LTD,A0090265, 14/02/2017,AAS0278027,152.83,N,N/A,N,N/A,,
Pendle Borough Council,Financial Services,Transport Related Expense,Diesel Oil,3202,FUELMATE LTD,A0090265, 28/02/2017,AAS0278335,157.03,N,N/A,N,N/A,,
Pendle Borough Council,Financial Services,Transport Related Expense,Diesel Oil,3202,FUELMATE LTD,A0090265, 07/02/2017,AAS0278026,210.77,N,N/A,N,N/A,,
Pendle Borough Council,Financial Services,Transport Related Expense,Diesel Oil,3202,FUELMATE LTD,A0090265, 21/02/2017,AAS0278334,98.96,N,N/A,N,N/A,,
Pendle Borough Council,Financial Services,Transport Related Expense,Diesel Oil,3202,FUELMATE LTD,A0090265, 28/02/2017,AAS0278335,99.94,N,N/A,N,N/A,,
Pendle Borough Council,Financial Services,Transport Related Expense,Diesel Oil,3202,FUELMATE LTD,A0090265, 07/02/2017,AAS0278026,106.19,N,N/A,N,N/A,,
Pendle Borough Council,Financial Services,Transport Related Expense,Diesel Oil,3202,FUELMATE LTD,A0090265, 14/02/2017,AAS0278027,136.87,N,N/A,N,N/A,,
Pendle Borough Council,Financial Services,Transport Related Expense,Diesel Oil,3202,FUELMATE LTD,A0090265, 21/02/2017,AAS0278334,28.48,N,N/A,N,N/A,,
Pendle Borough Council,Financial Services,Transport Related Expense,Diesel Oil,3202,FUELMATE LTD,A0090265, 07/02/2017,AAS0278026,32.26,N,N/A,N,N/A,,
Pendle Borough Council,Financial Services,Transport Related Expense,Diesel Oil,3202,FUELMATE LTD,A0090265, 07/02/2017,AAS0278026,62.79,N,N/A,N,N/A,,
Pendle Borough Council,Financial Services,Transport Related Expense,Diesel Oil,3202,FUELMATE LTD,A0090265, 07/02/2017,AAS0278026,73.29,N,N/A,N,N/A,,
Pendle Borough Council,Financial Services,Transport Related Expense,Diesel Oil,3202,FUELMATE LTD,A0090265, 14/02/2017,AAS0278027,78.04,N,N/A,N,N/A,,
Pendle Borough Council,Financial Services,Transport Related Expense,Diesel Oil,3202,FUELMATE LTD,A0090265, 28/02/2017,AAS0278335,83.76,N,N/A,N,N/A,,
Pendle Borough Council,Financial Services,Transport Related Expense,Diesel Oil,3202,FUELMATE LTD,A0090265, 28/02/2017,AAS0278335,106.55,N,N/A,N,N/A,,
Pendle Borough Council,Financial Services,Transport Related Expense,Diesel Oil,3202,FUELMATE LTD,A0090265, 21/02/2017,AAS0278334,146.48,N,N/A,N,N/A,,
Pendle Borough Council,Financial Services,Transport Related Expense,Diesel Oil,3202,FUELMATE LTD,A0090265, 28/02/2017,AAS0278335,100.49,N,N/A,N,N/A,,
Pendle Borough Council,Financial Services,Transport Related Expense,Diesel Oil,3202,FUELMATE LTD,A0090265, 21/02/2017,AAS0278334,135.83,N,N/A,N,N/A,,
Pendle Borough Council,Financial Services,Transport Related Expense,Diesel Oil,3202,FUELMATE LTD,A0090265, 07/02/2017,AAS0278026,127.20,N,N/A,N,N/A,,
Pendle Borough Council,Financial Services,Transport Related Expense,Diesel Oil,3202,FUELMATE LTD,A0090265, 14/02/2017,AAS0278027,160.59,N,N/A,N,N/A,,
Pendle Borough Council,Financial Services,Transport Related Expense,Diesel Oil,3202,FUELMATE LTD,A0090265, 07/02/2017,AAS0278026,99.11,N,N/A,N,N/A,,
Pendle Borough Council,Financial Services,Transport Related Expense,Diesel Oil,3202,FUELMATE LTD,A0090265, 21/02/2017,AAS0278334,154.96,N,N/A,N,N/A,,
Pendle Borough Council,Financial Services,Transport Related Expense,Diesel Oil,3202,FUELMATE LTD,A0090265, 14/02/2017,AAS0278027,163.29,N,N/A,N,N/A,,
Pendle Borough Council,Financial Services,Transport Related Expense,Diesel Oil,3202,FUELMATE LTD,A0090265, 28/02/2017,AAS0278335,181.87,N,N/A,N,N/A,,
Pendle Borough Council,Financial Services,Transport Related Expense,Diesel Oil,3202,FUELMATE LTD,A0090265, 21/02/2017,AAS0278334,147.62,N,N/A,N,N/A,,
Pendle Borough Council,Financial Services,Transport Related Expense,Diesel Oil,3202,FUELMATE LTD,A0090265, 28/02/2017,AAS0278335,151.43,N,N/A,N,N/A,,
Pendle Borough Council,Financial Services,Transport Related Expense,Diesel Oil,3202,FUELMATE LTD,A0090265, 14/02/2017,AAS0278027,179.32,N,N/A,N,N/A,,
Pendle Borough Council,Financial Services,Transport Related Expense,Diesel Oil,3202,FUELMATE LTD,A0090265, 07/02/2017,AAS0278026,136.58,N,N/A,N,N/A,,
Pendle Borough Council,Financial Services,Transport Related Expense,Diesel Oil,3202,FUELMATE LTD,A0090265, 14/02/2017,AAS0278027,164.10,N,N/A,N,N/A,,
Pendle Borough Council,Financial Services,Transport Related Expense,Diesel Oil,3202,FUELMATE LTD,A0090265, 21/02/2017,AAS0278334,169.39,N,N/A,N,N/A,,
Pendle Borough Council,Financial Services,Transport Related Expense,Diesel Oil,3202,FUELMATE LTD,A0090265, 28/02/2017,AAS0278335,175.62,N,N/A,N,N/A,,
Pendle Borough Council,Financial Services,Transport Related Expense,Diesel Oil,3202,FUELMATE LTD,A0090265, 14/02/2017,AAS0278027,99.70,N,N/A,N,N/A,,
Pendle Borough Council,Financial Services,Transport Related Expense,Diesel Oil,3202,FUELMATE LTD,A0090265, 07/02/2017,AAS0278026,107.41,N,N/A,N,N/A,,
Pendle Borough Council,Financial Services,Transport Related Expense,Diesel Oil,3202,FUELMATE LTD,A0090265, 28/02/2017,AAS0278335,116.72,N,N/A,N,N/A,,
Pendle Borough Council,Financial Services,Transport Related Expense,Diesel Oil,3202,FUELMATE LTD,A0090265, 21/02/2017,AAS0278334,146.11,N,N/A,N,N/A,,
Pendle Borough Council,Financial Services,Transport Related Expense,Diesel Oil,3202,FUELMATE LTD,A0090265, 14/02/2017,AAS0278027,64.23,N,N/A,N,N/A,,
Pendle Borough Council,Financial Services,Transport Related Expense,Diesel Oil,3202,FUELMATE LTD,A0090265, 14/02/2017,AAS0278027,52.40,N,N/A,N,N/A,,
Pendle Borough Council,Financial Services,Transport Related Expense,Diesel Oil,3202,FUELMATE LTD,A0090265, 14/02/2017,AAS0278027,54.86,N,N/A,N,N/A,,
Pendle Borough Council,Financial Services,Transport Related Expense,Diesel Oil,3202,FUELMATE LTD,A0090265, 14/02/2017,AAS0278027,55.82,N,N/A,N,N/A,,
Pendle Borough Council,Financial Services,Transport Related Expense,Diesel Oil,3202,FUELMATE LTD,A0090265, 14/02/2017,AAS0278027,65.02,N,N/A,N,N/A,,
Pendle Borough Council,Financial Services,Transport Related Expense,Diesel Oil,3202,FUELMATE LTD,A0090265, 07/02/2017,AAS0278026,66.33,N,N/A,N,N/A,,
Pendle Borough Council,Financial Services,Transport Related Expense,Diesel Oil,3202,FUELMATE LTD,A0090265, 28/02/2017,AAS0278335,72.98,N,N/A,N,N/A,,
Pendle Borough Council,Financial Services,Transport Related Expense,Diesel Oil,3202,FUELMATE LTD,A0090265, 21/02/2017,AAS0278334,74.24,N,N/A,N,N/A,,
Pendle Borough Council,Financial Services,Transport Related Expense,Diesel Oil,3202,FUELMATE LTD,A0090265, 21/02/2017,AAS0278334,45.41,N,N/A,N,N/A,,
Pendle Borough Council,Financial Services,Transport Related Expense,Diesel Oil,3202,FUELMATE LTD,A0090265, 14/02/2017,AAS0278027,45.71,N,N/A,N,N/A,,
Pendle Borough Council,Financial Services,Transport Related Expense,Diesel Oil,3202,FUELMATE LTD,A0090265, 21/02/2017,AAS0278334,70.47,N,N/A,N,N/A,,
Pendle Borough Council,Financial Services,Transport Related Expense,Diesel Oil,3202,FUELMATE LTD,A0090265, 14/02/2017,AAS0278027,19.42,N,N/A,N,N/A,,
Pendle Borough Council,Financial Services,Transport Related Expense,Diesel Oil,3202,FUELMATE LTD,A0090265, 28/02/2017,AAS0278335,33.50,N,N/A,N,N/A,,
Pendle Borough Council,Financial Services,Transport Related Expense,Diesel Oil,3202,FUELMATE LTD,A0090265, 07/02/2017,AAS0278026,38.21,N,N/A,N,N/A,,
Pendle Borough Council,Financial Services,Transport Related Expense,Diesel Oil,3202,FUELMATE LTD,A0090265, 14/02/2017,AAS0278027,47.10,N,N/A,N,N/A,,
Pendle Borough Council,Financial Services,Transport Related Expense,Diesel Oil,3202,FUELMATE LTD,A0090265, 28/02/2017,AAS0278335,24.31,N,N/A,N,N/A,,
Pendle Borough Council,Financial Services,Transport Related Expense,Diesel Oil,3202,FUELMATE LTD,A0090265, 07/02/2017,AAS0278026,37.92,N,N/A,N,N/A,,
Pendle Borough Council,Financial Services,Transport Related Expense,Diesel Oil,3202,FUELMATE LTD,A0090265, 21/02/2017,AAS0278334,46.70,N,N/A,N,N/A,,
Pendle Borough Council,Financial Services,Transport Related Expense,Diesel Oil,3202,FUELMATE LTD,A0090265, 28/02/2017,AAS0278335,65.32,N,N/A,N,N/A,,
Pendle Borough Council,Financial Services,Transport Related Expense,Diesel Oil,3202,FUELMATE LTD,A0090265, 07/02/2017,AAS0278026,75.41,N,N/A,N,N/A,,
Pendle Borough Council,Financial Services,Transport Related Expense,Diesel Oil,3202,FUELMATE LTD,A0090265, 14/02/2017,AAS0278027,112.28,N,N/A,N,N/A,,
Pendle Borough Council,Financial Services,Transport Related Expense,Diesel Oil,3202,FUELMATE LTD,A0090265, 21/02/2017,AAS0278334,116.48,N,N/A,N,N/A,,
Pendle Borough Council,Financial Services,Transport Related Expense,Diesel Oil,3202,FUELMATE LTD,A0090265, 21/02/2017,AAS0278334,32.16,N,N/A,N,N/A,,
Pendle Borough Council,Financial Services,Transport Related Expense,Diesel Oil,3202,FUELMATE LTD,A0090265, 14/02/2017,AAS0278027,68.38,N,N/A,N,N/A,,
Pendle Borough Council,Financial Services,Transport Related Expense,Diesel Oil,3202,FUELMATE LTD,A0090265, 28/02/2017,AAS0278335,32.31,N,N/A,N,N/A,,
Pendle Borough Council,Financial Services,Transport Related Expense,Diesel Oil,3202,FUELMATE LTD,A0090265, 07/02/2017,AAS0278026,42.25,N,N/A,N,N/A,,
Pendle Borough Council,Financial Services,Transport Related Expense,Diesel Oil,3202,FUELMATE LTD,A0090265, 21/02/2017,AAS0278334,58.65,N,N/A,N,N/A,,
Pendle Borough Council,Financial Services,Transport Related Expense,Diesel Oil,3202,FUELMATE LTD,A0090265, 21/02/2017,AAS0278334,53.55,N,N/A,N,N/A,,
Pendle Borough Council,Financial Services,Transport Related Expense,Diesel Oil,3202,FUELMATE LTD,A0090265, 28/02/2017,AAS0278335,35.45,N,N/A,N,N/A,,
Pendle Borough Council,Financial Services,Transport Related Expense,Diesel Oil,3202,FUELMATE LTD,A0090265, 14/02/2017,AAS0278027,50.72,N,N/A,N,N/A,,
Pendle Borough Council,Financial Services,Transport Related Expense,Diesel Oil,3202,FUELMATE LTD,A0090265, 07/02/2017,AAS0278026,52.63,N,N/A,N,N/A,,
Pendle Borough Council,Financial Services,Transport Related Expense,Diesel Oil,3202,FUELMATE LTD,A0090265, 21/02/2017,AAS0278334,54.35,N,N/A,N,N/A,,
Pendle Borough Council,Financial Services,Transport Related Expense,Diesel Oil,3202,FUELMATE LTD,A0090265, 07/02/2017,AAS0278026,48.95,N,N/A,N,N/A,,
Pendle Borough Council,Financial Services,Transport Related Expense,Diesel Oil,3202,FUELMATE LTD,A0090265, 14/02/2017,AAS0278027,49.39,N,N/A,N,N/A,,
Pendle Borough Council,Financial Services,Transport Related Expense,Diesel Oil,3202,FUELMATE LTD,A0090265, 07/02/2017,AAS0278026,36.36,N,N/A,N,N/A,,
Pendle Borough Council,Financial Services,Transport Related Expense,Diesel Oil,3202,FUELMATE LTD,A0090265, 21/02/2017,AAS0278334,65.05,N,N/A,N,N/A,,
Pendle Borough Council,Financial Services,Transport Related Expense,Diesel Oil,3202,FUELMATE LTD,A0090265, 28/02/2017,AAS0278335,47.76,N,N/A,N,N/A,,
Pendle Borough Council,Financial Services,Transport Related Expense,Diesel Oil,3202,FUELMATE LTD,A0090265, 28/02/2017,AAS0278335,37.70,N,N/A,N,N/A,,
Pendle Borough Council,Financial Services,Transport Related Expense,Diesel Oil,3202,FUELMATE LTD,A0090265, 28/02/2017,AAS0278335,51.05,N,N/A,N,N/A,,
Pendle Borough Council,Financial Services,Transport Related Expense,Diesel Oil,3202,FUELMATE LTD,A0090265, 14/02/2017,AAS0278027,71.79,N,N/A,N,N/A,,
Pendle Borough Council,Financial Services,Transport Related Expense,Diesel Oil,3202,FUELMATE LTD,A0090265, 28/02/2017,AAS0278335,75.38,N,N/A,N,N/A,,
Pendle Borough Council,Financial Services,Transport Related Expense,Diesel Oil,3202,FUELMATE LTD,A0090265, 14/02/2017,AAS0278027,54.79,N,N/A,N,N/A,,
Pendle Borough Council,Financial Services,Transport Related Expense,Diesel Oil,3202,FUELMATE LTD,A0090265, 07/02/2017,AAS0278026,55.39,N,N/A,N,N/A,,
Pendle Borough Council,Financial Services,Transport Related Expense,Diesel Oil,3202,FUELMATE LTD,A0090265, 21/02/2017,AAS0278334,56.09,N,N/A,N,N/A,,
Pendle Borough Council,Financial Services,Transport Related Expense,Diesel Oil,3202,FUELMATE LTD,A0090265, 21/02/2017,AAS0278334,45.34,N,N/A,N,N/A,,
Pendle Borough Council,Financial Services,Transport Related Expense,Diesel Oil,3202,FUELMATE LTD,A0090265, 07/02/2017,AAS0278026,52.52,N,N/A,N,N/A,,
Pendle Borough Council,Financial Services,Transport Related Expense,Diesel Oil,3202,FUELMATE LTD,A0090265, 07/02/2017,AAS0278026,51.73,N,N/A,N,N/A,,
Pendle Borough Council,Financial Services,Transport Related Expense,Diesel Oil,3202,FUELMATE LTD,A0090265, 21/02/2017,AAS0278334,54.71,N,N/A,N,N/A,,
Pendle Borough Council,Financial Services,Transport Related Expense,Diesel Oil,3202,FUELMATE LTD,A0090265, 28/02/2017,AAS0278335,55.01,N,N/A,N,N/A,,
Pendle Borough Council,Financial Services,Transport Related Expense,Diesel Oil,3202,FUELMATE LTD,A0090265, 07/02/2017,AAS0278026,55.97,N,N/A,N,N/A,,
Pendle Borough Council,Financial Services,Transport Related Expense,Diesel Oil,3202,FUELMATE LTD,A0090265, 14/02/2017,AAS0278027,57.40,N,N/A,N,N/A,,
Pendle Borough Council,Financial Services,Transport Related Expense,Diesel Oil,3202,FUELMATE LTD,A0090265, 14/02/2017,AAS0278027,56.90,N,N/A,N,N/A,,
Pendle Borough Council,Financial Services,Transport Related Expense,Diesel Oil,3202,FUELMATE LTD,A0090265, 28/02/2017,AAS0278335,57.52,N,N/A,N,N/A,,
Pendle Borough Council,Financial Services,Transport Related Expense,Diesel Oil,3202,FUELMATE LTD,A0090265, 21/02/2017,AAS0278334,59.29,N,N/A,N,N/A,,
Pendle Borough Council,Financial Services,Transport Related Expense,Diesel Oil,3202,FUELMATE LTD,A0090265, 21/02/2017,AAS0278334,60.91,N,N/A,N,N/A,,
Pendle Borough Council,Financial Services,Transport Related Expense,Diesel Oil,3202,FUELMATE LTD,A0090265, 14/02/2017,AAS0278027,66.18,N,N/A,N,N/A,,
Pendle Borough Council,Financial Services,Transport Related Expense,Diesel Oil,3202,FUELMATE LTD,A0090265, 28/02/2017,AAS0278335,43.30,N,N/A,N,N/A,,
Pendle Borough Council,Financial Services,Transport Related Expense,Diesel Oil,3202,FUELMATE LTD,A0090265, 07/02/2017,AAS0278026,43.69,N,N/A,N,N/A,,
Pendle Borough Council,Financial Services,Transport Related Expense,Diesel Oil,3202,FUELMATE LTD,A0090265, 21/02/2017,AAS0278334,31.70,N,N/A,N,N/A,,
Pendle Borough Council,Financial Services,Transport Related Expense,Diesel Oil,3202,FUELMATE LTD,A0090265, 14/02/2017,AAS0278027,45.82,N,N/A,N,N/A,,
Pendle Borough Council,Financial Services,Transport Related Expense,Diesel Oil,3202,FUELMATE LTD,A0090265, 28/02/2017,AAS0278335,49.83,N,N/A,N,N/A,,
Pendle Borough Council,Financial Services,Transport Related Expense,Diesel Oil,3202,FUELMATE LTD,A0090265, 21/02/2017,AAS0278334,54.96,N,N/A,N,N/A,,
Pendle Borough Council,Financial Services,Transport Related Expense,Diesel Oil,3202,FUELMATE LTD,A0090265, 07/02/2017,AAS0278026,86.97,N,N/A,N,N/A,,
Pendle Borough Council,Economic Development & Tourism,Supplies and Services,EFM Materials,4004,DR L R PARKER,A0090282, 09/02/2017,REG0277467,47.97,N,N/A,N,N/A,,
Pendle Borough Council,Human Resources,Supplies and Services,Seminars etc All Costs,4601,10 EIGHTY LIMITED,A0090349, 02/02/2017,PER0277129,150.00,N,N/A,N,N/A,,
Pendle Borough Council,Revenues Services,Supplies and Services,Consultants Fees,4401,HM COURTS & TRIBUNALS SERVICE,A0090353, 16/02/2017,TRE0277965,450.00,N,N/A,N,N/A,,
Pendle Borough Council,Operational Services,Supplies and Services,Printing & Stationery,4301,APPLE-P LIMITED,A0090443, 16/02/2017,OPS0277913,453.00,N,N/A,N,N/A,,
Pendle Borough Council,Housing Regeneration Services,,Paid in the Year,PD03,REDACTED - PERSONAL DATA,A0090557, 16/02/2017,HMR0277918,5000.00,N,N/A,N,N/A,,
Pendle Borough Council,Housing Regeneration Services,,Paid in the Year,PD03,REDACTED - PERSONAL DATA,A0090563, 16/02/2017,HMR0277859,1780.00,N,N/A,N,N/A,,
Pendle Borough Council,Planning & Building Control,Supplies and Services,Seminars etc All Costs,4601,IDOX SOFTWARE LIMITED,A0090564, 02/02/2017,PBC0277166,1000.00,N,N/A,N,N/A,,
Pendle Borough Council,Housing Regeneration Services,,Paid in the Year,PD03,REDACTED - PERSONAL DATA,A0090565, 09/02/2017,HMR0277415,675.00,N,N/A,N,N/A,,
Pendle Borough Council,Housing Regeneration Services,,Paid in the Year,PD03,REDACTED - PERSONAL DATA,A0090571, 16/02/2017,HMR0277857,77.00,N,N/A,N,N/A,,
Pendle Borough Council,Housing Regeneration Services,,Paid in the Year,PD03,REDACTED - PERSONAL DATA,A0090601, 09/02/2017,HMR0277418,2846.16,N,N/A,N,N/A,,
Pendle Borough Council,Democratic & Legal Services,Supplies and Services,Consultants Fees,4401,REDACTED - PERSONAL DATA,A0090669, 23/02/2017,DAL0278127,500.00,N,N/A,N,N/A,,
Pendle Borough Council,Housing Regeneration Services,,Paid in the Year,PD03,REDACTED - PERSONAL DATA,A0090681, 09/02/2017,HMR0277404,5000.00,N,N/A,N,N/A,,
Pendle Borough Council,Engineering & Special Projects,Capital Costs,Capital : Payments,CD14,COLNE CRICKET AND BOWLING CLUB,A0090696, 09/02/2017,HED0277474,1592.26,N,N/A,N,N/A,,
Pendle Borough Council,Engineering & Special Projects,Capital Costs,Capital : Payments,CD14,JINNAH CRICKET CLUB,A0090697, 16/02/2017,HED0277992,1000.00,N,N/A,N,N/A,,
Pendle Borough Council,Revenues Services,Supplies and Services,Consultants Fees,4401,PS&P LTD,A0090720, 16/02/2017,TRE0277964,1.48,N,N/A,N,N/A,,
Pendle Borough Council,Revenues Services,Supplies and Services,Consultants Fees,4401,PS&P LTD,A0090720, 16/02/2017,TRE0277963,3.48,N,N/A,N,N/A,,
Pendle Borough Council,Housing Regeneration Services,Supplies and Services,"Monitoring, Console etc",4510,TOGETHER HOUSING ASSOCIATION,A0090740, 23/02/2017,HMR0278103,24.37,N,N/A,N,N/A,,
Pendle Borough Council,Human Resources,Capital Costs,Capital : Payments,CD14,TOGETHER HOUSING ASSOCIATION,A0090740, 23/02/2017,PER0277043,210000.00,N,N/A,N,N/A,,
Pendle Borough Council,Operational Services,Agency Staff,Emp : Agency Wages,1004,M65 RECRUITMENT,A0090760, 16/02/2017,OPS0277925,213.24,N,N/A,N,N/A,,
Pendle Borough Council,Operational Services,Agency Staff,Emp : Agency Wages,1004,M65 RECRUITMENT,A0090760, 23/02/2017,OPS0278189,214.43,N,N/A,N,N/A,,
Pendle Borough Council,Operational Services,Agency Staff,Emp : Agency Wages,1004,M65 RECRUITMENT,A0090760, 02/02/2017,OPS0277089,370.49,N,N/A,N,N/A,,
Pendle Borough Council,Operational Services,Agency Staff,Emp : Agency Wages,1004,M65 RECRUITMENT,A0090760, 02/02/2017,OPS0277090,441.97,N,N/A,N,N/A,,
Pendle Borough Council,Operational Services,Agency Staff,Emp : Agency Wages,1004,M65 RECRUITMENT,A0090760, 02/02/2017,OPS0277090,71.48,N,N/A,N,N/A,,
Pendle Borough Council,Housing Regeneration Services,,Paid in the Year,PD03,REDACTED - PERSONAL DATA,A0090776, 09/02/2017,HMR0277405,5000.00,N,N/A,N,N/A,,
Pendle Borough Council,Financial Services,Premises Related Expense,Electricity,2203,GAZPROM ENERGY,A0090838, 23/02/2017,AAS0278131,44.83,N,N/A,N,N/A,,
Pendle Borough Council,Parks & Recreation Services,Supplies and Services,Printing & Stationery,4301,TUVISIO,A0090842, 23/02/2017,PCO0278046,5.32,N,N/A,N,N/A,,
Pendle Borough Council,Parks & Recreation Services,Supplies and Services,Printing & Stationery,4301,TUVISIO,A0090842, 23/02/2017,PCO0278046,15.00,N,N/A,N,N/A,,
Pendle Borough Council,Parks & Recreation Services,Supplies and Services,Printing & Stationery,4301,TUVISIO,A0090842, 23/02/2017,PCO0278046,65.66,N,N/A,N,N/A,,
Pendle Borough Council,Revenues Services,Supplies and Services,Consultants Fees,4401,HM COURTS & TRIBUNALS SERVICE,A0090903, 16/02/2017,TRE0277968,99.00,N,N/A,N,N/A,,
Pendle Borough Council,Revenues Services,Supplies and Services,Consultants Fees,4401,HM COURTS & TRIBUNALS SERVICE,A0090903, 09/02/2017,TRE0277432,490.00,N,N/A,N,N/A,,
Pendle Borough Council,Revenues Services,Supplies and Services,Consultants Fees,4401,HM COURTS & TRIBUNALS SERVICE,A0090903, 09/02/2017,TRE0277435,980.00,N,N/A,N,N/A,,
Pendle Borough Council,Revenues Services,Supplies and Services,Consultants Fees,4401,HM COURTS & TRIBUNALS SERVICE,A0090903, 16/02/2017,TRE0277967,980.00,N,N/A,N,N/A,,
Pendle Borough Council,Revenues Services,Supplies and Services,Consultants Fees,4401,HM COURTS & TRIBUNALS SERVICE,A0090903, 09/02/2017,TRE0277434,1470.00,N,N/A,N,N/A,,
Pendle Borough Council,Revenues Services,Supplies and Services,Consultants Fees,4401,HM COURTS & TRIBUNALS SERVICE,A0090903, 16/02/2017,TRE0277968,3888.00,N,N/A,N,N/A,,
Pendle Borough Council,Housing Regeneration Services,,Paid in the Year,PD03,CROCODILE FLOOD SOLUTIONS LIMITED,A0090962, 09/02/2017,HMR0277403,925.27,N,N/A,N,N/A,,
Pendle Borough Council,Housing Regeneration Services,,Paid in the Year,PD03,CROCODILE FLOOD SOLUTIONS LIMITED,A0090962, 16/02/2017,HMR0277999,2507.60,N,N/A,N,N/A,,
Pendle Borough Council,Housing Regeneration Services,,Paid in the Year,PD03,CROCODILE FLOOD SOLUTIONS LIMITED,A0090962, 16/02/2017,HMR0278001,2772.80,N,N/A,N,N/A,,
Pendle Borough Council,Financial Services,Premises Related Expense,Gas,2202,DONG ENERGY SALES (UK) LTD,A0090977, 09/02/2017,AAS0278144,20.45,N,N/A,N,N/A,,
Pendle Borough Council,Financial Services,Premises Related Expense,Gas,2202,DONG ENERGY SALES (UK) LTD,A0090977, 09/02/2017,AAS0278196,26.27,N,N/A,N,N/A,,
Pendle Borough Council,Financial Services,Premises Related Expense,Gas,2202,DONG ENERGY SALES (UK) LTD,A0090977, 09/02/2017,AAS0278214,27.66,N,N/A,N,N/A,,
Pendle Borough Council,Financial Services,Premises Related Expense,Gas,2202,DONG ENERGY SALES (UK) LTD,A0090977, 09/02/2017,AAS0278145,41.06,N,N/A,N,N/A,,
Pendle Borough Council,Financial Services,Premises Related Expense,Gas,2202,DONG ENERGY SALES (UK) LTD,A0090977, 09/02/2017,AAS0278195,57.66,N,N/A,N,N/A,,
Pendle Borough Council,Financial Services,Premises Related Expense,Gas,2202,DONG ENERGY SALES (UK) LTD,A0090977, 09/02/2017,AAS0278215,60.59,N,N/A,N,N/A,,
Pendle Borough Council,Financial Services,Premises Related Expense,Gas,2202,DONG ENERGY SALES (UK) LTD,A0090977, 09/02/2017,AAS0278155,132.88,N,N/A,N,N/A,,
Pendle Borough Council,Financial Services,Premises Related Expense,Gas,2202,DONG ENERGY SALES (UK) LTD,A0090977, 09/02/2017,AAS0278206,208.50,N,N/A,N,N/A,,
Pendle Borough Council,Financial Services,Premises Related Expense,Gas,2202,DONG ENERGY SALES (UK) LTD,A0090977, 09/02/2017,AAS0278225,219.42,N,N/A,N,N/A,,
Pendle Borough Council,Financial Services,Premises Related Expense,Gas,2202,DONG ENERGY SALES (UK) LTD,A0090977, 09/02/2017,AAS0278157,80.51,N,N/A,N,N/A,,
Pendle Borough Council,Financial Services,Premises Related Expense,Gas,2202,DONG ENERGY SALES (UK) LTD,A0090977, 09/02/2017,AAS0278209,132.55,N,N/A,N,N/A,,
Pendle Borough Council,Financial Services,Premises Related Expense,Gas,2202,DONG ENERGY SALES (UK) LTD,A0090977, 09/02/2017,AAS0278228,139.77,N,N/A,N,N/A,,
Pendle Borough Council,Financial Services,Premises Related Expense,Gas,2202,DONG ENERGY SALES (UK) LTD,A0090977, 09/02/2017,AAS0278154,112.56,N,N/A,N,N/A,,
Pendle Borough Council,Financial Services,Premises Related Expense,Gas,2202,DONG ENERGY SALES (UK) LTD,A0090977, 09/02/2017,AAS0278204,191.59,N,N/A,N,N/A,,
Pendle Borough Council,Financial Services,Premises Related Expense,Gas,2202,DONG ENERGY SALES (UK) LTD,A0090977, 09/02/2017,AAS0278223,202.33,N,N/A,N,N/A,,
Pendle Borough Council,Financial Services,Premises Related Expense,Gas,2202,DONG ENERGY SALES (UK) LTD,A0090977, 09/02/2017,AAS0278156,158.84,N,N/A,N,N/A,,
Pendle Borough Council,Financial Services,Premises Related Expense,Gas,2202,DONG ENERGY SALES (UK) LTD,A0090977, 09/02/2017,AAS0278205,237.98,N,N/A,N,N/A,,
Pendle Borough Council,Financial Services,Premises Related Expense,Gas,2202,DONG ENERGY SALES (UK) LTD,A0090977, 09/02/2017,AAS0278224,241.10,N,N/A,N,N/A,,
Pendle Borough Council,Financial Services,Premises Related Expense,Gas,2202,DONG ENERGY SALES (UK) LTD,A0090977, 09/02/2017,AAS0278158,58.22,N,N/A,N,N/A,,
Pendle Borough Council,Financial Services,Premises Related Expense,Gas,2202,DONG ENERGY SALES (UK) LTD,A0090977, 09/02/2017,AAS0278210,81.56,N,N/A,N,N/A,,
Pendle Borough Council,Financial Services,Premises Related Expense,Gas,2202,DONG ENERGY SALES (UK) LTD,A0090977, 09/02/2017,AAS0278229,85.76,N,N/A,N,N/A,,
Pendle Borough Council,Financial Services,Premises Related Expense,Gas,2202,DONG ENERGY SALES (UK) LTD,A0090977, 09/02/2017,AAS0278141,128.31,N,N/A,N,N/A,,
Pendle Borough Council,Financial Services,Premises Related Expense,Gas,2202,DONG ENERGY SALES (UK) LTD,A0090977, 09/02/2017,AAS0278192,206.17,N,N/A,N,N/A,,
Pendle Borough Council,Financial Services,Premises Related Expense,Gas,2202,DONG ENERGY SALES (UK) LTD,A0090977, 09/02/2017,AAS0278211,217.26,N,N/A,N,N/A,,
Pendle Borough Council,Financial Services,Premises Related Expense,Gas,2202,DONG ENERGY SALES (UK) LTD,A0090977, 09/02/2017,AAS0278146,66.11,N,N/A,N,N/A,,
Pendle Borough Council,Financial Services,Premises Related Expense,Gas,2202,DONG ENERGY SALES (UK) LTD,A0090977, 09/02/2017,AAS0278197,95.69,N,N/A,N,N/A,,
Pendle Borough Council,Financial Services,Premises Related Expense,Gas,2202,DONG ENERGY SALES (UK) LTD,A0090977, 09/02/2017,AAS0278216,100.70,N,N/A,N,N/A,,
Pendle Borough Council,Financial Services,Premises Related Expense,Gas,2202,DONG ENERGY SALES (UK) LTD,A0090977, 09/02/2017,AAS0278143,68.93,N,N/A,N,N/A,,
Pendle Borough Council,Financial Services,Premises Related Expense,Gas,2202,DONG ENERGY SALES (UK) LTD,A0090977, 09/02/2017,AAS0278194,98.75,N,N/A,N,N/A,,
Pendle Borough Council,Financial Services,Premises Related Expense,Gas,2202,DONG ENERGY SALES (UK) LTD,A0090977, 09/02/2017,AAS0278213,112.89,N,N/A,N,N/A,,
Pendle Borough Council,Financial Services,Premises Related Expense,Gas,2202,DONG ENERGY SALES (UK) LTD,A0090977, 09/02/2017,AAS0278142,25.39,N,N/A,N,N/A,,
Pendle Borough Council,Financial Services,Premises Related Expense,Gas,2202,DONG ENERGY SALES (UK) LTD,A0090977, 09/02/2017,AAS0278193,33.85,N,N/A,N,N/A,,
Pendle Borough Council,Financial Services,Premises Related Expense,Gas,2202,DONG ENERGY SALES (UK) LTD,A0090977, 09/02/2017,AAS0278212,35.47,N,N/A,N,N/A,,
Pendle Borough Council,Financial Services,Premises Related Expense,Gas,2202,DONG ENERGY SALES (UK) LTD,A0090977, 09/02/2017,AAS0278150,180.66,N,N/A,N,N/A,,
Pendle Borough Council,Financial Services,Premises Related Expense,Gas,2202,DONG ENERGY SALES (UK) LTD,A0090977, 09/02/2017,AAS0278200,273.60,N,N/A,N,N/A,,
Pendle Borough Council,Financial Services,Premises Related Expense,Gas,2202,DONG ENERGY SALES (UK) LTD,A0090977, 09/02/2017,AAS0278219,277.02,N,N/A,N,N/A,,
Pendle Borough Council,Financial Services,Premises Related Expense,Gas,2202,DONG ENERGY SALES (UK) LTD,A0090977, 09/02/2017,AAS0278151,139.32,N,N/A,N,N/A,,
Pendle Borough Council,Financial Services,Premises Related Expense,Gas,2202,DONG ENERGY SALES (UK) LTD,A0090977, 09/02/2017,AAS0278201,217.79,N,N/A,N,N/A,,
Pendle Borough Council,Financial Services,Premises Related Expense,Gas,2202,DONG ENERGY SALES (UK) LTD,A0090977, 09/02/2017,AAS0278220,229.73,N,N/A,N,N/A,,
Pendle Borough Council,Economic Development & Tourism,Supplies and Services,Grants/Contributions,4739,THAT COW,A0091021, 23/02/2017,REG0278117,723.58,N,N/A,N,N/A,,
Pendle Borough Council,Housing Regeneration Services,Supplies and Services,Consultants Fees,4401,CALICO HOMES,A0091059, 09/02/2017,HMR0277453,6565.64,N,N/A,N,N/A,,
Pendle Borough Council,Housing Regeneration Services,Supplies and Services,Consultants Fees,4401,CALICO HOMES,A0091059, 23/02/2017,HMR0278011,7337.65,N,N/A,N,N/A,,
Pendle Borough Council,Housing Regeneration Services,Supplies and Services,Consultants Fees,4401,CALICO HOMES,A0091059, 09/02/2017,HMR0277454,9385.08,N,N/A,N,N/A,,
Pendle Borough Council,Engineering & Special Projects,,Other Income : Non-VATable,9303,REDACTED - PERSONAL DATA,A0091061, 02/02/2017,HED0277102,55.00,N,N/A,N,N/A,,
Pendle Borough Council,Engineering & Special Projects,,Other Income : Non-VATable,9303,REDACTED - PERSONAL DATA,A0091062, 02/02/2017,HED0277097,153.75,N,N/A,N,N/A,,
Pendle Borough Council,Parks & Recreation Services,Premises Related Expense,Bldgs : R & M : Day To Day,2001,REDACTED - PERSONAL DATA,A0091063, 02/02/2017,PCO0277080,-1166.67,N,N/A,N,N/A,,
Pendle Borough Council,Parks & Recreation Services,Premises Related Expense,Bldgs : R & M : Day To Day,2001,REDACTED - PERSONAL DATA,A0091063, 02/02/2017,PCO0277080,1166.67,N,N/A,N,N/A,,
Pendle Borough Council,Housing Regeneration Services,Supplies and Services,Other Expenses,4705,REDACTED - PERSONAL DATA,A0091065, 02/02/2017,HMR0277160,100.00,N,N/A,N,N/A,,
Pendle Borough Council,Environmental Health Services,,Fees Income : Non-VATable,9302,REDACTED - PERSONAL DATA,A0091068, 09/02/2017,ENV0277458,202.64,N,N/A,N,N/A,,
Pendle Borough Council,Housing Regeneration Services,,Paid in the Year,PD03,REDACTED - PERSONAL DATA,A0091069, 09/02/2017,HMR0277402,660.00,N,N/A,N,N/A,,
Pendle Borough Council,Parks & Recreation Services,,Fees Income : Non-VATable,9302,REDACTED - PERSONAL DATA,A0091071, 09/02/2017,PCO0277395,6.92,N,N/A,N,N/A,,
Pendle Borough Council,Parks & Recreation Services,,Fees Income : Non-VATable,9302,REDACTED - PERSONAL DATA,A0091072, 09/02/2017,PCO0277394,30.00,N,N/A,N,N/A,,
Pendle Borough Council,Housing Regeneration Services,Supplies and Services,Interpretation Services,4750,REDACTED - PERSONAL DATA,A0091073, 09/02/2017,HMR0277441,768.75,N,N/A,N,N/A,,
Pendle Borough Council,Engineering & Special Projects,Capital Costs,Capital : Payments,CD14,BURNLEY & PENDLE TRAVEL LIMITED,A0091075, 09/02/2017,HED0277475,641.66,N,N/A,N,N/A,,
Pendle Borough Council,Engineering & Special Projects,Capital Costs,Capital : Payments,CD14,BURNLEY & PENDLE TRAVEL LIMITED,A0091075, 09/02/2017,HED0277476,641.66,N,N/A,N,N/A,,
Pendle Borough Council,Engineering & Special Projects,Capital Costs,Capital : Payments,CD14,BURNLEY & PENDLE TRAVEL LIMITED,A0091075, 09/02/2017,HED0277477,3849.96,N,N/A,N,N/A,,
Pendle Borough Council,Engineering & Special Projects,Premises Related Expense,Grounds : R & M : Day to Day : Routine,2101,BRITISH CYCLING FEDERATION,A0091076, 09/02/2017,HED0277677,450.00,N,N/A,N,N/A,,
Pendle Borough Council,Planning & Building Control,,Fees Income : VATable,9202,REDACTED - PERSONAL DATA,A0091078, 16/02/2017,PBC0277937,135.00,N,N/A,N,N/A,,
Pendle Borough Council,Planning & Building Control,,Fees Income : VATable,9202,REDACTED - PERSONAL DATA,A0091079, 16/02/2017,PBC0277936,29.17,N,N/A,N,N/A,,
Pendle Borough Council,Planning & Building Control,Supplies and Services,Consultants Fees,4401,RSK ADAS LIMITED,A0091081, 23/02/2017,PBC0278096,460.00,N,N/A,N,N/A,,
Pendle Borough Council,Planning & Building Control,,Fees Income : Non-VATable,9302,REDACTED - PERSONAL DATA,A0091089, 16/02/2017,PBC0277948,172.00,N,N/A,N,N/A,,
Pendle Borough Council,Democratic & Legal Services,Supplies and Services,EFM : Other Equipment,4003,REDACTED - PERSONAL DATA,A0091090, 16/02/2017,DAL0277978,1000.00,N,N/A,N,N/A,,
Pendle Borough Council,Democratic & Legal Services,Premises Related Expense,Ground Rents/Wayleaves,2302,CO-OPERATIVE GROUP,A0091091, 16/02/2017,DAL0277981,7.50,N,N/A,N,N/A,,
Pendle Borough Council,Engineering & Special Projects,Capital Costs,Capital : Payments,CD14,ST JOHN SOUTHWORTH RCP SCHOOL,A0091093, 16/02/2017,HED0278005,250.00,N,N/A,N,N/A,,
Pendle Borough Council,Financial Services,,Fees Income : Non-VATable,9302,HARBOTTLE & LEWIS LLP,A0091095, 15/02/2017,AAS0278016,360.00,N,N/A,N,N/A,,
Pendle Borough Council,Democratic & Legal Services,Capital Costs,Capital : Disturbance Payments,CD03,REDACTED - PERSONAL DATA,A0091096, 23/02/2017,DAL0278140,2320.99,N,N/A,N,N/A,,
